﻿organisation_name,service_responsible,supplier_code,supplier_name,payment_date,transaction_ref,net_amount_by_line_item,irrecoverable_vat,purpose_of_spend,procurement_category_name,transaction_type,payment_type,card_transaction,invoice_date,financial_year,financial_period,supplier_invoice_reference,cost_centre_code,cost_centre_desc,account_code,account_desc,SeRCOP_subdivision_code,SeRCOP_Subdivision_description,SeRCOP_division_codee,SeRCOP_division_description,SeRCOP_service_code,SeRCOP_service_description,SeRCOP_major_service_code,SeRCOP_major_service_description
GUILDFORD BOROUGH COUNCIL,Regeneration & Planning Policy,982690,LSO Consulting Limited,07/11/2023,30113500,70000,0,Consultancy,,Invoice,BACS,No,11/10/2023 00:00,2023,7,24,F5530,Major Projects,D6001,Consultancy,XXX99,*** UNASSIGNED ***,WCC,CEC Recharges,WC,CEC Recharges,A,Central Services
GUILDFORD BOROUGH COUNCIL,Environmental Services,174500,Anonymous,02/11/2023,30113531,3629,0,Services,,Invoice,BACS,No,09/10/2023 00:00,2023,7,26,A1500,Crematorium,D6004,Services,CEA10,Crematoria,CEA,"Cemetery, Cremation and Mortuary Services",CE,Environmental & Regulatory Services,C,"Cultural, Environmental & Planning Services"
GUILDFORD BOROUGH COUNCIL,Communication & Customer Services,1000779,Aylen Consulting Ltd,07/11/2023,30115221,63000,0,Consultancy,,Invoice,BACS,No,03/09/2023 00:00,2023,8,41,G3547,ICT Development,D6001,Consultancy,DBX70,Other Management Costs,DBX,Support Service and Management Costs,DB,Children's Social Care,E,Childrens and Education Services
GUILDFORD BOROUGH COUNCIL,Housing Services,1000169,The Lion Brewery,09/11/2023,30114469,1216.7,0,Emergency Accomodation,,Invoice,BACS,No,19/10/2023 00:00,2023,7,44,C3311,Homelessness,D8009,Emergency Accomodation,KGU00,Supporting People - Strategy,KGU,Supporting People,KG,Housing General Fund,K,Housing Services
GUILDFORD BOROUGH COUNCIL,Housing Services,1000169,The Lion Brewery,30/11/2023,30117066,2600,0,Emergency Accomodation,,Invoice,BACS,No,01/11/2023 00:00,2023,8,45,C3311,Homelessness,D8009,Emergency Accomodation,KGU00,Supporting People - Strategy,KGU,Supporting People,KG,Housing General Fund,K,Housing Services
GUILDFORD BOROUGH COUNCIL,Bid Revenue Account,755160,Elevate Guildford Ltd,24/10/2023,30114692,90000,0,Payments To Elevate Guildford,Other Travel And Tourism Service Providers,Invoice,BACS,No,15/08/2023 00:00,2023,7,129,R5501,Bid Revenue Account,P1415,Payments To Elevate Guildford,XXX99,*** UNASSIGNED ***,WCC,CEC Recharges,WC,CEC Recharges,A,Central Services
GUILDFORD BOROUGH COUNCIL,Bid Revenue Account,755160,Elevate Guildford Ltd,24/10/2023,30114693,70000,0,Payments To Elevate Guildford,Other Travel And Tourism Service Providers,Invoice,BACS,No,17/10/2023 00:00,2023,7,136,R5501,Bid Revenue Account,P1415,Payments To Elevate Guildford,XXX99,*** UNASSIGNED ***,WCC,CEC Recharges,WC,CEC Recharges,A,Central Services
GUILDFORD BOROUGH COUNCIL,Commercial Services,755160,Elevate Guildford Ltd,12/12/2023,30116232,2000,0,Events,Other Travel And Tourism Service Providers,Invoice,BACS,No,17/11/2023 00:00,2023,8,138,F5525,Economic Development,D8006,Events,CCF00,"Tourism Policy, Marketing & Development",CCF,Tourism,CC,Cultural & Related Services,C,"Cultural, Environmental & Planning Services"
GUILDFORD BOROUGH COUNCIL,Housing Services,686720,Surrey County Windows Ltd,05/10/2023,30112984,4651.68,0,Materials,Window And Door Installers,Invoice,BACS,No,29/09/2023 00:00,2023,7,150,K1515,Building Maintenance,D2003,Materials,DBX45,Property Services,DBX,Support Service and Management Costs,DB,Children's Social Care,E,Childrens and Education Services
GUILDFORD BOROUGH COUNCIL,Housing Services,686720,Surrey County Windows Ltd,05/10/2023,30112984,4135.97,0,Services,Window And Door Installers,Invoice,BACS,No,29/09/2023 00:00,2023,7,150,K1515,Building Maintenance,D6004,Services,DBX45,Property Services,DBX,Support Service and Management Costs,DB,Children's Social Care,E,Childrens and Education Services
GUILDFORD BOROUGH COUNCIL,Housing Services,686720,Surrey County Windows Ltd,05/10/2023,30113001,429.91,0,Services,Window And Door Installers,Invoice,BACS,No,29/09/2023 00:00,2023,7,151,K1515,Building Maintenance,D6004,Services,DBX45,Property Services,DBX,Support Service and Management Costs,DB,Children's Social Care,E,Childrens and Education Services
GUILDFORD BOROUGH COUNCIL,Housing Services,686720,Surrey County Windows Ltd,05/10/2023,30113001,939.09,0,Materials,Window And Door Installers,Invoice,BACS,No,29/09/2023 00:00,2023,7,151,K1515,Building Maintenance,D2003,Materials,DBX45,Property Services,DBX,Support Service and Management Costs,DB,Children's Social Care,E,Childrens and Education Services
GUILDFORD BOROUGH COUNCIL,Housing Services,686720,Surrey County Windows Ltd,12/10/2023,30113368,1872.58,0,Services,Window And Door Installers,Invoice,BACS,No,06/10/2023 00:00,2023,7,152,K1515,Building Maintenance,D6004,Services,DBX45,Property Services,DBX,Support Service and Management Costs,DB,Children's Social Care,E,Childrens and Education Services
GUILDFORD BOROUGH COUNCIL,Housing Services,686720,Surrey County Windows Ltd,12/10/2023,30113368,3848.58,0,Materials,Window And Door Installers,Invoice,BACS,No,06/10/2023 00:00,2023,7,152,K1515,Building Maintenance,D2003,Materials,DBX45,Property Services,DBX,Support Service and Management Costs,DB,Children's Social Care,E,Childrens and Education Services
GUILDFORD BOROUGH COUNCIL,Housing Services,686720,Surrey County Windows Ltd,19/10/2023,30114194,5434.33,0,Materials,Window And Door Installers,Invoice,BACS,No,13/10/2023 00:00,2023,7,153,K1515,Building Maintenance,D2003,Materials,DBX45,Property Services,DBX,Support Service and Management Costs,DB,Children's Social Care,E,Childrens and Education Services
GUILDFORD BOROUGH COUNCIL,Housing Services,686720,Surrey County Windows Ltd,19/10/2023,30114194,2659.3,0,Services,Window And Door Installers,Invoice,BACS,No,13/10/2023 00:00,2023,7,153,K1515,Building Maintenance,D6004,Services,DBX45,Property Services,DBX,Support Service and Management Costs,DB,Children's Social Care,E,Childrens and Education Services
GUILDFORD BOROUGH COUNCIL,Housing Services,686720,Surrey County Windows Ltd,26/10/2023,30114767,3218.5,0,Services,Window And Door Installers,Invoice,BACS,No,20/10/2023 00:00,2023,7,154,K1515,Building Maintenance,D6004,Services,DBX45,Property Services,DBX,Support Service and Management Costs,DB,Children's Social Care,E,Childrens and Education Services
GUILDFORD BOROUGH COUNCIL,Housing Services,686720,Surrey County Windows Ltd,26/10/2023,30114767,6767.25,0,Materials,Window And Door Installers,Invoice,BACS,No,20/10/2023 00:00,2023,7,154,K1515,Building Maintenance,D2003,Materials,DBX45,Property Services,DBX,Support Service and Management Costs,DB,Children's Social Care,E,Childrens and Education Services
GUILDFORD BOROUGH COUNCIL,Housing Services,686720,Surrey County Windows Ltd,02/11/2023,30115219,3300.41,0,Services,Window And Door Installers,Invoice,BACS,No,27/10/2023 00:00,2023,8,155,K1515,Building Maintenance,D6004,Services,DBX45,Property Services,DBX,Support Service and Management Costs,DB,Children's Social Care,E,Childrens and Education Services
GUILDFORD BOROUGH COUNCIL,Housing Services,686720,Surrey County Windows Ltd,02/11/2023,30115219,5738.64,0,Materials,Window And Door Installers,Invoice,BACS,No,27/10/2023 00:00,2023,8,155,K1515,Building Maintenance,D2003,Materials,DBX45,Property Services,DBX,Support Service and Management Costs,DB,Children's Social Care,E,Childrens and Education Services
GUILDFORD BOROUGH COUNCIL,Housing Services,686720,Surrey County Windows Ltd,09/11/2023,30115634,6621.12,0,Materials,Window And Door Installers,Invoice,BACS,No,03/11/2023 00:00,2023,8,156,K1515,Building Maintenance,D2003,Materials,DBX45,Property Services,DBX,Support Service and Management Costs,DB,Children's Social Care,E,Childrens and Education Services
GUILDFORD BOROUGH COUNCIL,Housing Services,686720,Surrey County Windows Ltd,09/11/2023,30115634,2887.95,0,Services,Window And Door Installers,Invoice,BACS,No,03/11/2023 00:00,2023,8,156,K1515,Building Maintenance,D6004,Services,DBX45,Property Services,DBX,Support Service and Management Costs,DB,Children's Social Care,E,Childrens and Education Services
GUILDFORD BOROUGH COUNCIL,Housing Services,686720,Surrey County Windows Ltd,09/11/2023,30115648,895,0,Services,Window And Door Installers,Invoice,BACS,No,03/11/2023 00:00,2023,8,157,K1515,Building Maintenance,D6004,Services,DBX45,Property Services,DBX,Support Service and Management Costs,DB,Children's Social Care,E,Childrens and Education Services
GUILDFORD BOROUGH COUNCIL,Housing Services,686720,Surrey County Windows Ltd,09/11/2023,30115648,600,0,Materials,Window And Door Installers,Invoice,BACS,No,03/11/2023 00:00,2023,8,157,K1515,Building Maintenance,D2003,Materials,DBX45,Property Services,DBX,Support Service and Management Costs,DB,Children's Social Care,E,Childrens and Education Services
GUILDFORD BOROUGH COUNCIL,Housing Services,686720,Surrey County Windows Ltd,23/11/2023,30116525,3315.08,0,Services,Window And Door Installers,Invoice,BACS,No,10/11/2023 00:00,2023,8,158,K1515,Building Maintenance,D6004,Services,DBX45,Property Services,DBX,Support Service and Management Costs,DB,Children's Social Care,E,Childrens and Education Services
GUILDFORD BOROUGH COUNCIL,Housing Services,686720,Surrey County Windows Ltd,23/11/2023,30116525,6723.34,0,Materials,Window And Door Installers,Invoice,BACS,No,10/11/2023 00:00,2023,8,158,K1515,Building Maintenance,D2003,Materials,DBX45,Property Services,DBX,Support Service and Management Costs,DB,Children's Social Care,E,Childrens and Education Services
GUILDFORD BOROUGH COUNCIL,Housing Services,686720,Surrey County Windows Ltd,23/11/2023,30116527,960,0,Services,Window And Door Installers,Invoice,BACS,No,17/11/2023 00:00,2023,8,159,K1515,Building Maintenance,D6004,Services,DBX45,Property Services,DBX,Support Service and Management Costs,DB,Children's Social Care,E,Childrens and Education Services
GUILDFORD BOROUGH COUNCIL,Housing Services,686720,Surrey County Windows Ltd,23/11/2023,30116527,3371.19,0,Materials,Window And Door Installers,Invoice,BACS,No,17/11/2023 00:00,2023,8,159,K1515,Building Maintenance,D2003,Materials,DBX45,Property Services,DBX,Support Service and Management Costs,DB,Children's Social Care,E,Childrens and Education Services
GUILDFORD BOROUGH COUNCIL,Housing Services,686720,Surrey County Windows Ltd,07/12/2023,30117516,2942.92,0,Services,Window And Door Installers,Invoice,BACS,No,24/11/2023 00:00,2023,9,160,K1515,Building Maintenance,D6004,Services,DBX45,Property Services,DBX,Support Service and Management Costs,DB,Children's Social Care,E,Childrens and Education Services
GUILDFORD BOROUGH COUNCIL,Housing Services,686720,Surrey County Windows Ltd,07/12/2023,30117516,5911.55,0,Materials,Window And Door Installers,Invoice,BACS,No,24/11/2023 00:00,2023,9,160,K1515,Building Maintenance,D2003,Materials,DBX45,Property Services,DBX,Support Service and Management Costs,DB,Children's Social Care,E,Childrens and Education Services
GUILDFORD BOROUGH COUNCIL,Housing Services,686720,Surrey County Windows Ltd,12/12/2023,30117853,3405.23,0,Services,Window And Door Installers,Invoice,BACS,No,01/12/2023 00:00,2023,9,161,K1515,Building Maintenance,D6004,Services,DBX45,Property Services,DBX,Support Service and Management Costs,DB,Children's Social Care,E,Childrens and Education Services
GUILDFORD BOROUGH COUNCIL,Housing Services,686720,Surrey County Windows Ltd,12/12/2023,30117853,5106.79,0,Materials,Window And Door Installers,Invoice,BACS,No,01/12/2023 00:00,2023,9,161,K1515,Building Maintenance,D2003,Materials,DBX45,Property Services,DBX,Support Service and Management Costs,DB,Children's Social Care,E,Childrens and Education Services
GUILDFORD BOROUGH COUNCIL,Housing Services,686720,Surrey County Windows Ltd,14/12/2023,30118156,2142,0,Services,Window And Door Installers,Invoice,BACS,No,08/12/2023 00:00,2023,9,162,K1515,Building Maintenance,D6004,Services,DBX45,Property Services,DBX,Support Service and Management Costs,DB,Children's Social Care,E,Childrens and Education Services
GUILDFORD BOROUGH COUNCIL,Housing Services,686720,Surrey County Windows Ltd,14/12/2023,30118156,4754.79,0,Materials,Window And Door Installers,Invoice,BACS,No,08/12/2023 00:00,2023,9,162,K1515,Building Maintenance,D2003,Materials,DBX45,Property Services,DBX,Support Service and Management Costs,DB,Children's Social Care,E,Childrens and Education Services
GUILDFORD BOROUGH COUNCIL,Housing Services,686720,Surrey County Windows Ltd,21/12/2023,30118561,1313.9,0,Services,Window And Door Installers,Invoice,BACS,No,15/12/2023 00:00,2023,9,163,K1515,Building Maintenance,D6004,Services,DBX45,Property Services,DBX,Support Service and Management Costs,DB,Children's Social Care,E,Childrens and Education Services
GUILDFORD BOROUGH COUNCIL,Housing Services,686720,Surrey County Windows Ltd,21/12/2023,30118561,3370.07,0,Materials,Window And Door Installers,Invoice,BACS,No,15/12/2023 00:00,2023,9,163,K1515,Building Maintenance,D2003,Materials,DBX45,Property Services,DBX,Support Service and Management Costs,DB,Children's Social Care,E,Childrens and Education Services
GUILDFORD BOROUGH COUNCIL,Housing Services,686720,Surrey County Windows Ltd,21/12/2023,30118564,3713.69,0,Services,Window And Door Installers,Invoice,BACS,No,23/06/2023 00:00,2023,9,164,K1515,Building Maintenance,D6004,Services,DBX45,Property Services,DBX,Support Service and Management Costs,DB,Children's Social Care,E,Childrens and Education Services
GUILDFORD BOROUGH COUNCIL,Housing Services,686720,Surrey County Windows Ltd,21/12/2023,30118564,3162.31,0,Materials,Window And Door Installers,Invoice,BACS,No,23/06/2023 00:00,2023,9,164,K1515,Building Maintenance,D2003,Materials,DBX45,Property Services,DBX,Support Service and Management Costs,DB,Children's Social Care,E,Childrens and Education Services
GUILDFORD BOROUGH COUNCIL,Housing Services,686720,Surrey County Windows Ltd,28/12/2023,30118889,1924.63,0,Services,Window And Door Installers,Invoice,BACS,No,22/12/2023 00:00,2023,9,165,K1515,Building Maintenance,D6004,Services,DBX45,Property Services,DBX,Support Service and Management Costs,DB,Children's Social Care,E,Childrens and Education Services
GUILDFORD BOROUGH COUNCIL,Housing Services,686720,Surrey County Windows Ltd,28/12/2023,30118889,4385.34,0,Materials,Window And Door Installers,Invoice,BACS,No,22/12/2023 00:00,2023,9,165,K1515,Building Maintenance,D2003,Materials,DBX45,Property Services,DBX,Support Service and Management Costs,DB,Children's Social Care,E,Childrens and Education Services
GUILDFORD BOROUGH COUNCIL,Parks & Countryside,1000540,Tom Pearman Public Art,19/12/2023,30117253,6000,0,Contractor Payments,,Invoice,BACS,No,22/11/2023 00:00,2023,9,169,P18225,S106 Foxenden Quarry,1233,Contractor Payments,XXX99,*** UNASSIGNED ***,WCC,CEC Recharges,WC,CEC Recharges,A,Central Services
GUILDFORD BOROUGH COUNCIL,Housing Services,921860,Cinnamon Construction Limited (CIS),05/10/2023,30112974,7247,0,Services,General Builders,Invoice,BACS,No,02/10/2023 00:00,2023,7,174,K1515,Building Maintenance,D6004,Services,DBX45,Property Services,DBX,Support Service and Management Costs,DB,Children's Social Care,E,Childrens and Education Services
GUILDFORD BOROUGH COUNCIL,Housing Services,921860,Cinnamon Construction Limited (CIS),12/10/2023,30113349,6380,0,Services,General Builders,Invoice,BACS,No,05/10/2023 00:00,2023,7,175,K1515,Building Maintenance,D6004,Services,DBX45,Property Services,DBX,Support Service and Management Costs,DB,Children's Social Care,E,Childrens and Education Services
GUILDFORD BOROUGH COUNCIL,Housing Services,921860,Cinnamon Construction Limited (CIS),12/10/2023,30113356,8226,0,Services,General Builders,Invoice,BACS,No,09/10/2023 00:00,2023,7,176,K1515,Building Maintenance,D6004,Services,DBX45,Property Services,DBX,Support Service and Management Costs,DB,Children's Social Care,E,Childrens and Education Services
GUILDFORD BOROUGH COUNCIL,Housing Services,921860,Cinnamon Construction Limited (CIS),24/10/2023,30114446,8237,0,Services,General Builders,Invoice,BACS,No,16/10/2023 00:00,2023,7,177,K1515,Building Maintenance,D6004,Services,DBX45,Property Services,DBX,Support Service and Management Costs,DB,Children's Social Care,E,Childrens and Education Services
GUILDFORD BOROUGH COUNCIL,Housing Services,921860,Cinnamon Construction Limited (CIS),26/10/2023,30114764,6524.5,0,Services,General Builders,Invoice,BACS,No,23/10/2023 00:00,2023,7,178,K1515,Building Maintenance,D6004,Services,DBX45,Property Services,DBX,Support Service and Management Costs,DB,Children's Social Care,E,Childrens and Education Services
GUILDFORD BOROUGH COUNCIL,Housing Services,921860,Cinnamon Construction Limited (CIS),02/11/2023,30115264,8109.5,0,Services,General Builders,Invoice,BACS,No,30/10/2023 00:00,2023,8,179,K1515,Building Maintenance,D6004,Services,DBX45,Property Services,DBX,Support Service and Management Costs,DB,Children's Social Care,E,Childrens and Education Services
GUILDFORD BOROUGH COUNCIL,Housing Services,921860,Cinnamon Construction Limited (CIS),09/11/2023,30115669,4120,0,Services,General Builders,Invoice,BACS,No,06/11/2023 00:00,2023,8,180,K1515,Building Maintenance,D6004,Services,DBX45,Property Services,DBX,Support Service and Management Costs,DB,Children's Social Care,E,Childrens and Education Services
GUILDFORD BOROUGH COUNCIL,Housing Services,921860,Cinnamon Construction Limited (CIS),23/11/2023,30116529,8447,0,Services,General Builders,Invoice,BACS,No,16/11/2023 00:00,2023,8,181,K1515,Building Maintenance,D6004,Services,DBX45,Property Services,DBX,Support Service and Management Costs,DB,Children's Social Care,E,Childrens and Education Services
GUILDFORD BOROUGH COUNCIL,Housing Services,921860,Cinnamon Construction Limited (CIS),23/11/2023,30116501,7344,0,Services,General Builders,Invoice,BACS,No,20/11/2023 00:00,2023,8,182,K1515,Building Maintenance,D6004,Services,DBX45,Property Services,DBX,Support Service and Management Costs,DB,Children's Social Care,E,Childrens and Education Services
GUILDFORD BOROUGH COUNCIL,Housing Services,921860,Cinnamon Construction Limited (CIS),05/12/2023,30117430,7306.5,0,Services,General Builders,Invoice,BACS,No,27/11/2023 00:00,2023,9,183,K1515,Building Maintenance,D6004,Services,DBX45,Property Services,DBX,Support Service and Management Costs,DB,Children's Social Care,E,Childrens and Education Services
GUILDFORD BOROUGH COUNCIL,Housing Services,921860,Cinnamon Construction Limited (CIS),12/12/2023,30117838,17736.23,0,Services,General Builders,Invoice,BACS,No,04/12/2023 00:00,2023,9,184,K1515,Building Maintenance,D6004,Services,DBX45,Property Services,DBX,Support Service and Management Costs,DB,Children's Social Care,E,Childrens and Education Services
GUILDFORD BOROUGH COUNCIL,Housing Services,921860,Cinnamon Construction Limited (CIS),12/12/2023,30117840,2529.5,0,Services,General Builders,Invoice,BACS,No,04/12/2023 00:00,2023,9,185,K1515,Building Maintenance,D6004,Services,DBX45,Property Services,DBX,Support Service and Management Costs,DB,Children's Social Care,E,Childrens and Education Services
GUILDFORD BOROUGH COUNCIL,Housing Services,921860,Cinnamon Construction Limited (CIS),19/12/2023,30118268,10958.5,0,Services,General Builders,Invoice,BACS,No,11/12/2023 00:00,2023,9,186,K1515,Building Maintenance,D6004,Services,DBX45,Property Services,DBX,Support Service and Management Costs,DB,Children's Social Care,E,Childrens and Education Services
GUILDFORD BOROUGH COUNCIL,Housing Services,921860,Cinnamon Construction Limited (CIS),21/12/2023,30118648,5246,0,Services,General Builders,Invoice,BACS,No,18/12/2023 00:00,2023,9,187,K1515,Building Maintenance,D6004,Services,DBX45,Property Services,DBX,Support Service and Management Costs,DB,Children's Social Care,E,Childrens and Education Services
GUILDFORD BOROUGH COUNCIL,Housing Services,921860,Cinnamon Construction Limited (CIS),21/12/2023,30118666,6895.5,0,Services,General Builders,Invoice,BACS,No,18/12/2023 00:00,2023,9,188,K1515,Building Maintenance,D6004,Services,DBX45,Property Services,DBX,Support Service and Management Costs,DB,Children's Social Care,E,Childrens and Education Services
GUILDFORD BOROUGH COUNCIL,Housing Services,713710,D G Property Refurbishment Ltd,05/10/2023,30112990,850,0,Materials,Restoration Specialists,Invoice,BACS,No,02/10/2023 00:00,2023,7,194,K1515,Building Maintenance,D2003,Materials,DBX45,Property Services,DBX,Support Service and Management Costs,DB,Children's Social Care,E,Childrens and Education Services
GUILDFORD BOROUGH COUNCIL,Housing Services,713710,D G Property Refurbishment Ltd,05/10/2023,30112990,580,0,Services,Restoration Specialists,Invoice,BACS,No,02/10/2023 00:00,2023,7,194,K1515,Building Maintenance,D6004,Services,DBX45,Property Services,DBX,Support Service and Management Costs,DB,Children's Social Care,E,Childrens and Education Services
GUILDFORD BOROUGH COUNCIL,Housing Services,713710,D G Property Refurbishment Ltd,12/10/2023,30113535,1200,0,Materials,Restoration Specialists,Invoice,BACS,No,09/10/2023 00:00,2023,7,195,K1515,Building Maintenance,D2003,Materials,DBX45,Property Services,DBX,Support Service and Management Costs,DB,Children's Social Care,E,Childrens and Education Services
GUILDFORD BOROUGH COUNCIL,Housing Services,713710,D G Property Refurbishment Ltd,12/10/2023,30113535,1082.25,0,Services,Restoration Specialists,Invoice,BACS,No,09/10/2023 00:00,2023,7,195,K1515,Building Maintenance,D6004,Services,DBX45,Property Services,DBX,Support Service and Management Costs,DB,Children's Social Care,E,Childrens and Education Services
GUILDFORD BOROUGH COUNCIL,Housing Services,713710,D G Property Refurbishment Ltd,19/10/2023,30114136,1226.75,0,Services,Restoration Specialists,Invoice,BACS,No,16/10/2023 00:00,2023,7,196,K1515,Building Maintenance,D6004,Services,DBX45,Property Services,DBX,Support Service and Management Costs,DB,Children's Social Care,E,Childrens and Education Services
GUILDFORD BOROUGH COUNCIL,Housing Services,713710,D G Property Refurbishment Ltd,19/10/2023,30114136,1700,0,Materials,Restoration Specialists,Invoice,BACS,No,16/10/2023 00:00,2023,7,196,K1515,Building Maintenance,D2003,Materials,DBX45,Property Services,DBX,Support Service and Management Costs,DB,Children's Social Care,E,Childrens and Education Services
GUILDFORD BOROUGH COUNCIL,Housing Services,713710,D G Property Refurbishment Ltd,26/10/2023,30114748,2400,0,Materials,Restoration Specialists,Invoice,BACS,No,23/10/2023 00:00,2023,7,197,K1515,Building Maintenance,D2003,Materials,DBX45,Property Services,DBX,Support Service and Management Costs,DB,Children's Social Care,E,Childrens and Education Services
GUILDFORD BOROUGH COUNCIL,Housing Services,713710,D G Property Refurbishment Ltd,26/10/2023,30114748,1848.25,0,Services,Restoration Specialists,Invoice,BACS,No,23/10/2023 00:00,2023,7,197,K1515,Building Maintenance,D6004,Services,DBX45,Property Services,DBX,Support Service and Management Costs,DB,Children's Social Care,E,Childrens and Education Services
GUILDFORD BOROUGH COUNCIL,Housing Services,713710,D G Property Refurbishment Ltd,02/11/2023,30115186,2172,0,Services,Restoration Specialists,Invoice,BACS,No,30/10/2023 00:00,2023,8,198,K1515,Building Maintenance,D6004,Services,DBX45,Property Services,DBX,Support Service and Management Costs,DB,Children's Social Care,E,Childrens and Education Services
GUILDFORD BOROUGH COUNCIL,Housing Services,713710,D G Property Refurbishment Ltd,02/11/2023,30115186,3500,0,Materials,Restoration Specialists,Invoice,BACS,No,30/10/2023 00:00,2023,8,198,K1515,Building Maintenance,D2003,Materials,DBX45,Property Services,DBX,Support Service and Management Costs,DB,Children's Social Care,E,Childrens and Education Services
GUILDFORD BOROUGH COUNCIL,Housing Services,713710,D G Property Refurbishment Ltd,14/11/2023,30115853,3710,0,Services,Restoration Specialists,Invoice,BACS,No,06/11/2023 00:00,2023,8,199,K1515,Building Maintenance,D6004,Services,DBX45,Property Services,DBX,Support Service and Management Costs,DB,Children's Social Care,E,Childrens and Education Services
GUILDFORD BOROUGH COUNCIL,Housing Services,713710,D G Property Refurbishment Ltd,14/11/2023,30115853,5000,0,Materials,Restoration Specialists,Invoice,BACS,No,06/11/2023 00:00,2023,8,199,K1515,Building Maintenance,D2003,Materials,DBX45,Property Services,DBX,Support Service and Management Costs,DB,Children's Social Care,E,Childrens and Education Services
GUILDFORD BOROUGH COUNCIL,Housing Services,713710,D G Property Refurbishment Ltd,16/11/2023,30116031,1700,0,Services,Restoration Specialists,Invoice,BACS,No,13/11/2023 00:00,2023,8,200,K1515,Building Maintenance,D6004,Services,DBX45,Property Services,DBX,Support Service and Management Costs,DB,Children's Social Care,E,Childrens and Education Services
GUILDFORD BOROUGH COUNCIL,Housing Services,713710,D G Property Refurbishment Ltd,16/11/2023,30116031,6000,0,Materials,Restoration Specialists,Invoice,BACS,No,13/11/2023 00:00,2023,8,200,K1515,Building Maintenance,D2003,Materials,DBX45,Property Services,DBX,Support Service and Management Costs,DB,Children's Social Care,E,Childrens and Education Services
GUILDFORD BOROUGH COUNCIL,Housing Services,713710,D G Property Refurbishment Ltd,28/11/2023,30116810,4131.96,0,Services,Restoration Specialists,Invoice,BACS,No,20/11/2023 00:00,2023,8,201,K1515,Building Maintenance,D6004,Services,DBX45,Property Services,DBX,Support Service and Management Costs,DB,Children's Social Care,E,Childrens and Education Services
GUILDFORD BOROUGH COUNCIL,Housing Services,713710,D G Property Refurbishment Ltd,28/11/2023,30116810,5200,0,Materials,Restoration Specialists,Invoice,BACS,No,20/11/2023 00:00,2023,8,201,K1515,Building Maintenance,D2003,Materials,DBX45,Property Services,DBX,Support Service and Management Costs,DB,Children's Social Care,E,Childrens and Education Services
GUILDFORD BOROUGH COUNCIL,Housing Services,713710,D G Property Refurbishment Ltd,05/12/2023,30117397,3072.73,0,Services,Restoration Specialists,Invoice,BACS,No,27/11/2023 00:00,2023,9,202,K1515,Building Maintenance,D6004,Services,DBX45,Property Services,DBX,Support Service and Management Costs,DB,Children's Social Care,E,Childrens and Education Services
GUILDFORD BOROUGH COUNCIL,Housing Services,713710,D G Property Refurbishment Ltd,05/12/2023,30117397,3200,0,Materials,Restoration Specialists,Invoice,BACS,No,27/11/2023 00:00,2023,9,202,K1515,Building Maintenance,D2003,Materials,DBX45,Property Services,DBX,Support Service and Management Costs,DB,Children's Social Care,E,Childrens and Education Services
GUILDFORD BOROUGH COUNCIL,Housing Services,713710,D G Property Refurbishment Ltd,14/12/2023,30118159,1405.9,0,Services,Restoration Specialists,Invoice,BACS,No,11/12/2023 00:00,2023,9,203,K1515,Building Maintenance,D6004,Services,DBX45,Property Services,DBX,Support Service and Management Costs,DB,Children's Social Care,E,Childrens and Education Services
GUILDFORD BOROUGH COUNCIL,Housing Services,713710,D G Property Refurbishment Ltd,14/12/2023,30118159,1000,0,Materials,Restoration Specialists,Invoice,BACS,No,11/12/2023 00:00,2023,9,203,K1515,Building Maintenance,D2003,Materials,DBX45,Property Services,DBX,Support Service and Management Costs,DB,Children's Social Care,E,Childrens and Education Services
GUILDFORD BOROUGH COUNCIL,Housing Services,713710,D G Property Refurbishment Ltd,19/12/2023,30118276,9934,0,Materials,Restoration Specialists,Invoice,BACS,No,11/12/2023 00:00,2023,9,204,K1515,Building Maintenance,D2003,Materials,DBX45,Property Services,DBX,Support Service and Management Costs,DB,Children's Social Care,E,Childrens and Education Services
GUILDFORD BOROUGH COUNCIL,Housing Services,713710,D G Property Refurbishment Ltd,19/12/2023,30118276,9100,0,Services,Restoration Specialists,Invoice,BACS,No,11/12/2023 00:00,2023,9,204,K1515,Building Maintenance,D6004,Services,DBX45,Property Services,DBX,Support Service and Management Costs,DB,Children's Social Care,E,Childrens and Education Services
GUILDFORD BOROUGH COUNCIL,Housing Services,713710,D G Property Refurbishment Ltd,21/12/2023,30118683,11323,0,Services,Restoration Specialists,Invoice,BACS,No,18/12/2023 00:00,2023,9,205,K1515,Building Maintenance,D6004,Services,DBX45,Property Services,DBX,Support Service and Management Costs,DB,Children's Social Care,E,Childrens and Education Services
GUILDFORD BOROUGH COUNCIL,Housing Services,713710,D G Property Refurbishment Ltd,21/12/2023,30118683,20000,0,Materials,Restoration Specialists,Invoice,BACS,No,18/12/2023 00:00,2023,9,205,K1515,Building Maintenance,D2003,Materials,DBX45,Property Services,DBX,Support Service and Management Costs,DB,Children's Social Care,E,Childrens and Education Services
GUILDFORD BOROUGH COUNCIL,Housing Services,713710,D G Property Refurbishment Ltd,21/12/2023,30118692,12998,0,Services,Restoration Specialists,Invoice,BACS,No,18/12/2023 00:00,2023,9,206,K1515,Building Maintenance,D6004,Services,DBX45,Property Services,DBX,Support Service and Management Costs,DB,Children's Social Care,E,Childrens and Education Services
GUILDFORD BOROUGH COUNCIL,Housing Services,713710,D G Property Refurbishment Ltd,21/12/2023,30118692,27000,0,Materials,Restoration Specialists,Invoice,BACS,No,18/12/2023 00:00,2023,9,206,K1515,Building Maintenance,D2003,Materials,DBX45,Property Services,DBX,Support Service and Management Costs,DB,Children's Social Care,E,Childrens and Education Services
GUILDFORD BOROUGH COUNCIL,Housing Services,713710,D G Property Refurbishment Ltd,21/12/2023,30118649,909.97,0,Services,Restoration Specialists,Invoice,BACS,No,18/12/2023 00:00,2023,9,207,K1515,Building Maintenance,D6004,Services,DBX45,Property Services,DBX,Support Service and Management Costs,DB,Children's Social Care,E,Childrens and Education Services
GUILDFORD BOROUGH COUNCIL,Housing Services,713710,D G Property Refurbishment Ltd,21/12/2023,30118649,970,0,Materials,Restoration Specialists,Invoice,BACS,No,18/12/2023 00:00,2023,9,207,K1515,Building Maintenance,D2003,Materials,DBX45,Property Services,DBX,Support Service and Management Costs,DB,Children's Social Care,E,Childrens and Education Services
GUILDFORD BOROUGH COUNCIL,Housing Services,846250,Revive Services (CIS),02/11/2023,30115121,3120,0,Services,Other Cleaning And Janitorial Service Providers,Invoice,BACS,No,23/10/2023 00:00,2023,8,231,K1515,Building Maintenance,D6004,Services,DBX45,Property Services,DBX,Support Service and Management Costs,DB,Children's Social Care,E,Childrens and Education Services
GUILDFORD BOROUGH COUNCIL,Housing Services,846250,Revive Services (CIS),02/11/2023,30115201,460,0,Services,Other Cleaning And Janitorial Service Providers,Invoice,BACS,No,30/10/2023 00:00,2023,8,232,K1515,Building Maintenance,D6004,Services,DBX45,Property Services,DBX,Support Service and Management Costs,DB,Children's Social Care,E,Childrens and Education Services
GUILDFORD BOROUGH COUNCIL,Housing Services,846250,Revive Services (CIS),09/11/2023,30115655,1680,0,Services,Other Cleaning And Janitorial Service Providers,Invoice,BACS,No,06/11/2023 00:00,2023,8,233,K1515,Building Maintenance,D6004,Services,DBX45,Property Services,DBX,Support Service and Management Costs,DB,Children's Social Care,E,Childrens and Education Services
GUILDFORD BOROUGH COUNCIL,Housing Services,846250,Revive Services (CIS),16/11/2023,30116059,3710,0,Services,Other Cleaning And Janitorial Service Providers,Invoice,BACS,No,13/11/2023 00:00,2023,8,234,K1515,Building Maintenance,D6004,Services,DBX45,Property Services,DBX,Support Service and Management Costs,DB,Children's Social Care,E,Childrens and Education Services
GUILDFORD BOROUGH COUNCIL,Housing Services,846250,Revive Services (CIS),28/11/2023,30116821,1400,0,Services,Other Cleaning And Janitorial Service Providers,Invoice,BACS,No,21/11/2023 00:00,2023,8,235,K1515,Building Maintenance,D6004,Services,DBX45,Property Services,DBX,Support Service and Management Costs,DB,Children's Social Care,E,Childrens and Education Services
GUILDFORD BOROUGH COUNCIL,Housing Services,846250,Revive Services (CIS),05/12/2023,30117387,1520,0,Services,Other Cleaning And Janitorial Service Providers,Invoice,BACS,No,27/11/2023 00:00,2023,9,236,K1515,Building Maintenance,D6004,Services,DBX45,Property Services,DBX,Support Service and Management Costs,DB,Children's Social Care,E,Childrens and Education Services
GUILDFORD BOROUGH COUNCIL,Housing Services,846250,Revive Services (CIS),12/12/2023,30117846,2590,0,Services,Other Cleaning And Janitorial Service Providers,Invoice,BACS,No,04/01/2023 00:00,2023,9,237,K1515,Building Maintenance,D6004,Services,DBX45,Property Services,DBX,Support Service and Management Costs,DB,Children's Social Care,E,Childrens and Education Services
GUILDFORD BOROUGH COUNCIL,Housing Services,846250,Revive Services (CIS),14/12/2023,30118146,2180,0,Services,Other Cleaning And Janitorial Service Providers,Invoice,BACS,No,11/12/2023 00:00,2023,9,238,K1515,Building Maintenance,D6004,Services,DBX45,Property Services,DBX,Support Service and Management Costs,DB,Children's Social Care,E,Childrens and Education Services
GUILDFORD BOROUGH COUNCIL,Housing Services,846250,Revive Services (CIS),28/12/2023,30118912,940,0,Services,Other Cleaning And Janitorial Service Providers,Invoice,BACS,No,19/12/2023 00:00,2023,9,239,K1515,Building Maintenance,D6004,Services,DBX45,Property Services,DBX,Support Service and Management Costs,DB,Children's Social Care,E,Childrens and Education Services
GUILDFORD BOROUGH COUNCIL,Environmental Services,782010,Anonymous,21/12/2023,30117258,1600,0,Staff Training,Driver Training Providers,Invoice,BACS,No,29/11/2023 00:00,2023,9,247,A1900,Parks Management And Admin,A7100,Staff Training,CCE00,Community Parks & Open Spaces,CCE,Open Spaces,CC,Cultural & Related Services,C,"Cultural, Environmental & Planning Services"
GUILDFORD BOROUGH COUNCIL,Environmental Services,782010,Anonymous,21/12/2023,30117422,300,0,Contractors,Driver Training Providers,Invoice,BACS,No,01/12/2023 00:00,2023,9,249,K4551,Street Cleansing,D6012,Contractors,CES00,Street Cleansing (not chargeable to highways),CES,Street Cleansing (not chargeable to highways),CE,Environmental & Regulatory Services,C,"Cultural, Environmental & Planning Services"
GUILDFORD BOROUGH COUNCIL,Housing Services,413190,Anonymous,05/10/2023,30112970,1500,0,Services,,Invoice,BACS,No,28/09/2023 00:00,2023,7,467,K1515,Building Maintenance,D6004,Services,DBX45,Property Services,DBX,Support Service and Management Costs,DB,Children's Social Care,E,Childrens and Education Services
GUILDFORD BOROUGH COUNCIL,Housing Services,413190,Anonymous,05/10/2023,30112970,1340,0,Materials,,Invoice,BACS,No,28/09/2023 00:00,2023,7,467,K1515,Building Maintenance,D2003,Materials,DBX45,Property Services,DBX,Support Service and Management Costs,DB,Children's Social Care,E,Childrens and Education Services
GUILDFORD BOROUGH COUNCIL,Housing Services,413190,Anonymous,05/10/2023,30112987,2390,0,Services,,Invoice,BACS,No,28/09/2023 00:00,2023,7,468,K1515,Building Maintenance,D6004,Services,DBX45,Property Services,DBX,Support Service and Management Costs,DB,Children's Social Care,E,Childrens and Education Services
GUILDFORD BOROUGH COUNCIL,Housing Services,413190,Anonymous,05/10/2023,30112987,2000,0,Materials,,Invoice,BACS,No,28/09/2023 00:00,2023,7,468,K1515,Building Maintenance,D2003,Materials,DBX45,Property Services,DBX,Support Service and Management Costs,DB,Children's Social Care,E,Childrens and Education Services
GUILDFORD BOROUGH COUNCIL,Housing Services,413190,Anonymous,12/10/2023,30113360,1270,0,Materials,,Invoice,BACS,No,06/10/2023 00:00,2023,7,469,K1515,Building Maintenance,D2003,Materials,DBX45,Property Services,DBX,Support Service and Management Costs,DB,Children's Social Care,E,Childrens and Education Services
GUILDFORD BOROUGH COUNCIL,Housing Services,413190,Anonymous,12/10/2023,30113360,900,0,Services,,Invoice,BACS,No,06/10/2023 00:00,2023,7,469,K1515,Building Maintenance,D6004,Services,DBX45,Property Services,DBX,Support Service and Management Costs,DB,Children's Social Care,E,Childrens and Education Services
GUILDFORD BOROUGH COUNCIL,Housing Services,413190,Anonymous,19/10/2023,30114266,1120,0,Services,,Invoice,BACS,No,13/10/2023 00:00,2023,7,470,K1515,Building Maintenance,D6004,Services,DBX45,Property Services,DBX,Support Service and Management Costs,DB,Children's Social Care,E,Childrens and Education Services
GUILDFORD BOROUGH COUNCIL,Housing Services,413190,Anonymous,19/10/2023,30114266,1200,0,Materials,,Invoice,BACS,No,13/10/2023 00:00,2023,7,470,K1515,Building Maintenance,D2003,Materials,DBX45,Property Services,DBX,Support Service and Management Costs,DB,Children's Social Care,E,Childrens and Education Services
GUILDFORD BOROUGH COUNCIL,Housing Services,413190,Anonymous,24/10/2023,30114475,1700,0,Services,,Invoice,BACS,No,18/10/2023 00:00,2023,7,471,K1515,Building Maintenance,D6004,Services,DBX45,Property Services,DBX,Support Service and Management Costs,DB,Children's Social Care,E,Childrens and Education Services
GUILDFORD BOROUGH COUNCIL,Housing Services,413190,Anonymous,24/10/2023,30114475,1000,0,Materials,,Invoice,BACS,No,18/10/2023 00:00,2023,7,471,K1515,Building Maintenance,D2003,Materials,DBX45,Property Services,DBX,Support Service and Management Costs,DB,Children's Social Care,E,Childrens and Education Services
GUILDFORD BOROUGH COUNCIL,Housing Services,413190,Anonymous,23/11/2023,30116531,1650,0,Services,,Invoice,BACS,No,17/11/2023 00:00,2023,8,472,K1515,Building Maintenance,D6004,Services,DBX45,Property Services,DBX,Support Service and Management Costs,DB,Children's Social Care,E,Childrens and Education Services
GUILDFORD BOROUGH COUNCIL,Housing Services,413190,Anonymous,23/11/2023,30116531,4000,0,Materials,,Invoice,BACS,No,17/11/2023 00:00,2023,8,472,K1515,Building Maintenance,D2003,Materials,DBX45,Property Services,DBX,Support Service and Management Costs,DB,Children's Social Care,E,Childrens and Education Services
GUILDFORD BOROUGH COUNCIL,Housing Services,413190,Anonymous,21/12/2023,30118658,5050,0,Materials,,Invoice,BACS,No,15/12/2023 00:00,2023,9,473,K1515,Building Maintenance,D2003,Materials,DBX45,Property Services,DBX,Support Service and Management Costs,DB,Children's Social Care,E,Childrens and Education Services
GUILDFORD BOROUGH COUNCIL,Housing Services,413190,Anonymous,21/12/2023,30118658,4000,0,Services,,Invoice,BACS,No,15/12/2023 00:00,2023,9,473,K1515,Building Maintenance,D6004,Services,DBX45,Property Services,DBX,Support Service and Management Costs,DB,Children's Social Care,E,Childrens and Education Services
GUILDFORD BOROUGH COUNCIL,Commercial Services,933760,Ant Structures Ltd,21/12/2023,30117501,2210,0,GF Assets - Maintenance,Scaffolders,Invoice,BACS,No,30/11/2023 00:00,2023,9,496,B2257,Leapale Road Mscp,B1004,GF Assets - Maintenance,HTP10,Off-Street Parking,HTP,Parking Services,HT,"Highways, Roads and Transport Services",H,"Highways, Roads and Transport Services"
GUILDFORD BOROUGH COUNCIL,Housing Services,113100,C A Moore (CIS),05/10/2023,30112989,2000,0,Services,Joiners And Carpenters,Invoice,BACS,No,28/09/2023 00:00,2023,7,630,K1515,Building Maintenance,D6004,Services,DBX45,Property Services,DBX,Support Service and Management Costs,DB,Children's Social Care,E,Childrens and Education Services
GUILDFORD BOROUGH COUNCIL,Housing Services,113100,C A Moore (CIS),05/10/2023,30112989,1275,0,Materials,Joiners And Carpenters,Invoice,BACS,No,28/09/2023 00:00,2023,7,630,K1515,Building Maintenance,D2003,Materials,DBX45,Property Services,DBX,Support Service and Management Costs,DB,Children's Social Care,E,Childrens and Education Services
GUILDFORD BOROUGH COUNCIL,Housing Services,113100,C A Moore (CIS),05/10/2023,30112994,2200,0,Services,Joiners And Carpenters,Invoice,BACS,No,04/10/2023 00:00,2023,7,631,K1515,Building Maintenance,D6004,Services,DBX45,Property Services,DBX,Support Service and Management Costs,DB,Children's Social Care,E,Childrens and Education Services
GUILDFORD BOROUGH COUNCIL,Housing Services,113100,C A Moore (CIS),05/10/2023,30112994,3000,0,Materials,Joiners And Carpenters,Invoice,BACS,No,04/10/2023 00:00,2023,7,631,K1515,Building Maintenance,D2003,Materials,DBX45,Property Services,DBX,Support Service and Management Costs,DB,Children's Social Care,E,Childrens and Education Services
GUILDFORD BOROUGH COUNCIL,Housing Services,113100,C A Moore (CIS),12/10/2023,30113379,1000,0,Services,Joiners And Carpenters,Invoice,BACS,No,06/10/2023 00:00,2023,7,632,K1515,Building Maintenance,D6004,Services,DBX45,Property Services,DBX,Support Service and Management Costs,DB,Children's Social Care,E,Childrens and Education Services
GUILDFORD BOROUGH COUNCIL,Housing Services,113100,C A Moore (CIS),12/10/2023,30113379,1400,0,Materials,Joiners And Carpenters,Invoice,BACS,No,06/10/2023 00:00,2023,7,632,K1515,Building Maintenance,D2003,Materials,DBX45,Property Services,DBX,Support Service and Management Costs,DB,Children's Social Care,E,Childrens and Education Services
GUILDFORD BOROUGH COUNCIL,Housing Services,113100,C A Moore (CIS),19/10/2023,30114172,1000,0,Services,Joiners And Carpenters,Invoice,BACS,No,13/10/2023 00:00,2023,7,633,K1515,Building Maintenance,D6004,Services,DBX45,Property Services,DBX,Support Service and Management Costs,DB,Children's Social Care,E,Childrens and Education Services
GUILDFORD BOROUGH COUNCIL,Housing Services,113100,C A Moore (CIS),19/10/2023,30114172,2600,0,Materials,Joiners And Carpenters,Invoice,BACS,No,13/10/2023 00:00,2023,7,633,K1515,Building Maintenance,D2003,Materials,DBX45,Property Services,DBX,Support Service and Management Costs,DB,Children's Social Care,E,Childrens and Education Services
GUILDFORD BOROUGH COUNCIL,Housing Services,113100,C A Moore (CIS),24/10/2023,30114483,1340,0,Services,Joiners And Carpenters,Invoice,BACS,No,18/10/2023 00:00,2023,7,634,K1515,Building Maintenance,D6004,Services,DBX45,Property Services,DBX,Support Service and Management Costs,DB,Children's Social Care,E,Childrens and Education Services
GUILDFORD BOROUGH COUNCIL,Housing Services,113100,C A Moore (CIS),24/10/2023,30114483,1600,0,Materials,Joiners And Carpenters,Invoice,BACS,No,18/10/2023 00:00,2023,7,634,K1515,Building Maintenance,D2003,Materials,DBX45,Property Services,DBX,Support Service and Management Costs,DB,Children's Social Care,E,Childrens and Education Services
GUILDFORD BOROUGH COUNCIL,Housing Services,113100,C A Moore (CIS),23/11/2023,30116563,1200,0,Services,Joiners And Carpenters,Invoice,BACS,No,17/11/2023 00:00,2023,8,635,K1515,Building Maintenance,D6004,Services,DBX45,Property Services,DBX,Support Service and Management Costs,DB,Children's Social Care,E,Childrens and Education Services
GUILDFORD BOROUGH COUNCIL,Housing Services,113100,C A Moore (CIS),23/11/2023,30116563,5430,0,Materials,Joiners And Carpenters,Invoice,BACS,No,17/11/2023 00:00,2023,8,635,K1515,Building Maintenance,D2003,Materials,DBX45,Property Services,DBX,Support Service and Management Costs,DB,Children's Social Care,E,Childrens and Education Services
GUILDFORD BOROUGH COUNCIL,Housing Services,113100,C A Moore (CIS),23/11/2023,30116561,1750,0,Services,Joiners And Carpenters,Invoice,BACS,No,20/11/2023 00:00,2023,8,636,K1515,Building Maintenance,D6004,Services,DBX45,Property Services,DBX,Support Service and Management Costs,DB,Children's Social Care,E,Childrens and Education Services
GUILDFORD BOROUGH COUNCIL,Housing Services,113100,C A Moore (CIS),23/11/2023,30116561,5500,0,Materials,Joiners And Carpenters,Invoice,BACS,No,20/11/2023 00:00,2023,8,636,K1515,Building Maintenance,D2003,Materials,DBX45,Property Services,DBX,Support Service and Management Costs,DB,Children's Social Care,E,Childrens and Education Services
GUILDFORD BOROUGH COUNCIL,Housing Services,113100,C A Moore (CIS),21/12/2023,30118620,6605,0,Materials,Joiners And Carpenters,Invoice,BACS,No,15/12/2023 00:00,2023,9,637,K1515,Building Maintenance,D2003,Materials,DBX45,Property Services,DBX,Support Service and Management Costs,DB,Children's Social Care,E,Childrens and Education Services
GUILDFORD BOROUGH COUNCIL,Housing Services,113100,C A Moore (CIS),21/12/2023,30118620,3000,0,Services,Joiners And Carpenters,Invoice,BACS,No,15/12/2023 00:00,2023,9,637,K1515,Building Maintenance,D6004,Services,DBX45,Property Services,DBX,Support Service and Management Costs,DB,Children's Social Care,E,Childrens and Education Services
GUILDFORD BOROUGH COUNCIL,Housing Services,113100,C A Moore (CIS),21/12/2023,30118688,1000,0,Services,Joiners And Carpenters,Invoice,BACS,No,15/12/2023 00:00,2023,9,638,K1515,Building Maintenance,D6004,Services,DBX45,Property Services,DBX,Support Service and Management Costs,DB,Children's Social Care,E,Childrens and Education Services
GUILDFORD BOROUGH COUNCIL,Housing Services,113100,C A Moore (CIS),21/12/2023,30118688,2950,0,Materials,Joiners And Carpenters,Invoice,BACS,No,15/12/2023 00:00,2023,9,638,K1515,Building Maintenance,D2003,Materials,DBX45,Property Services,DBX,Support Service and Management Costs,DB,Children's Social Care,E,Childrens and Education Services
GUILDFORD BOROUGH COUNCIL,Legal & Democratic Services,431000,Abinger Marquee Hire Ltd,23/11/2023,30115158,7700,0,"Advertising, Publicity & Promotion",Marquee Suppliers,Invoice,BACS,No,30/10/2023 00:00,2023,7,704,F2131,Civic Expenses,D5002,"Advertising, Publicity & Promotion",AAD00,Democratic Representation & Management,AAD,Democratic Representation & Management,AA,Corporate & Democratic Core,A,Central Services
GUILDFORD BOROUGH COUNCIL,Planning & Development,972970,Francis Taylor Building,10/10/2023,30111485,14250,0,Consultancy,,Invoice,BACS,No,14/09/2023 00:00,2023,7,839,D5100,Development Control - Fee Earn,D6001,Consultancy,CPC00,Development Control Advice,CPC,Development Control,CP,Planning and Development Services,C,"Cultural, Environmental & Planning Services"
GUILDFORD BOROUGH COUNCIL,Planning & Development,1000995,St John's Chambers,21/11/2023,30116411,1250,0,Consultancy,,Invoice,BACS,No,01/09/2023 00:00,2023,8,950,D5100,Development Control - Fee Earn,D6001,Consultancy,CPC00,Development Control Advice,CPC,Development Control,CP,Planning and Development Services,C,"Cultural, Environmental & Planning Services"
GUILDFORD BOROUGH COUNCIL,Property,1000735,White Star Properties Limited,24/10/2023,30114442,350.28,0,Consultants Fees,,Invoice,BACS,No,16/10/2023 00:00,2023,7,1068,P74040,WUV - Weyside Urban Village (SARP),1221,Consultants Fees,XXX99,*** UNASSIGNED ***,WCC,CEC Recharges,WC,CEC Recharges,A,Central Services
GUILDFORD BOROUGH COUNCIL,Property,1000735,White Star Properties Limited,24/10/2023,30114442,18417,0,Consultants Fees,,Invoice,BACS,No,16/10/2023 00:00,2023,7,1068,P74040,WUV - Weyside Urban Village (SARP),1221,Consultants Fees,XXX99,*** UNASSIGNED ***,WCC,CEC Recharges,WC,CEC Recharges,A,Central Services
GUILDFORD BOROUGH COUNCIL,Property,1000735,White Star Properties Limited,21/11/2023,30116032,18417,0,Consultants Fees,,Invoice,BACS,No,12/11/2023 00:00,2023,8,1069,P74040,WUV - Weyside Urban Village (SARP),1221,Consultants Fees,XXX99,*** UNASSIGNED ***,WCC,CEC Recharges,WC,CEC Recharges,A,Central Services
GUILDFORD BOROUGH COUNCIL,Property,1000735,White Star Properties Limited,21/11/2023,30116032,343.37,0,Consultants Fees,,Invoice,BACS,No,12/11/2023 00:00,2023,8,1069,P74040,WUV - Weyside Urban Village (SARP),1221,Consultants Fees,XXX99,*** UNASSIGNED ***,WCC,CEC Recharges,WC,CEC Recharges,A,Central Services
GUILDFORD BOROUGH COUNCIL,Property,1000735,White Star Properties Limited,14/12/2023,30117742,18417,0,Consultants Fees,,Invoice,BACS,No,06/12/2023 00:00,2023,9,1070,P74040,WUV - Weyside Urban Village (SARP),1221,Consultants Fees,XXX99,*** UNASSIGNED ***,WCC,CEC Recharges,WC,CEC Recharges,A,Central Services
GUILDFORD BOROUGH COUNCIL,Community Services,510110,Woking Citizens Advice Bureau,26/10/2023,30113763,2500,0,Grants And Subscriptions,"Youth Clubs, Hostels And Associations",Invoice,BACS,No,12/10/2023 00:00,2023,7,1078,C3111,Community Grant Scheme,D9001,Grants And Subscriptions,XXX99,*** UNASSIGNED ***,WCC,CEC Recharges,WC,CEC Recharges,A,Central Services
GUILDFORD BOROUGH COUNCIL,Community Services,136770,Voluntary Action South West Surrey,05/10/2023,30112921,4873.5,0,Grants And Subscriptions,Charities And Voluntary Organisations,Invoice,BACS,No,02/10/2023 00:00,2023,7,1090,C3111,Community Grant Scheme,D9001,Grants And Subscriptions,XXX99,*** UNASSIGNED ***,WCC,CEC Recharges,WC,CEC Recharges,A,Central Services
GUILDFORD BOROUGH COUNCIL,Environmental Services,1000927,Height of Safety Ltd,26/10/2023,30112928,329,0,Equipment,,Invoice,BACS,No,02/10/2023 00:00,2023,7,1160,K5551,Fleet Workshops,D2001,Equipment,W3A48,Current Service Costs - Fleet Management,W3A,Current Service Costs adjustment,W3,Current Service Costs,W,Other Operating Income and Expenditure
GUILDFORD BOROUGH COUNCIL,Community Services,908000,Beeline Taxis,24/10/2023,30113172,1144,0,Expenses,Taxis And Private Hire Companies,Invoice,BACS,No,01/10/2023 00:00,2023,7,1172,C8100,Community Hubs,D8004,Expenses,KGU00,Supporting People - Strategy,KGU,Supporting People,KG,Housing General Fund,K,Housing Services
GUILDFORD BOROUGH COUNCIL,Community Services,908000,Beeline Taxis,05/12/2023,30117418,1760,0,Expenses,Taxis And Private Hire Companies,Invoice,CHAPS,No,30/11/2023 00:00,2023,9,1265,C8100,Community Hubs,D8004,Expenses,KGU00,Supporting People - Strategy,KGU,Supporting People,KG,Housing General Fund,K,Housing Services
GUILDFORD BOROUGH COUNCIL,HRA Service Delivery,908000,Beeline Taxis,06/12/2023,30117496,264,0,Services,Taxis And Private Hire Companies,Invoice,CHAPS,No,30/11/2023 00:00,2023,9,1301,M1152,Tenant Participation (BHS),D6004,Services,W3A05,Current Service Costs - Housing Services,W3A,Current Service Costs adjustment,W3,Current Service Costs,W,Other Operating Income and Expenditure
GUILDFORD BOROUGH COUNCIL,Commercial Services,851330,Press & Starkey LLP,19/10/2023,30112798,1260,0,Asset Maintenance,Quantity Surveyors,Invoice,BACS,No,25/09/2023 00:00,2023,7,1322,A7550,Lido,B1001,Asset Maintenance,CCD40,Outdoor Sports & Recreation Facilities,CCD,Recreation & Sport,CC,Cultural & Related Services,C,"Cultural, Environmental & Planning Services"
GUILDFORD BOROUGH COUNCIL,Parks & Countryside,1000685,Specialist Lining Services Limited,31/10/2023,30114921,3844.9,0,Contractor Payments,,Invoice,BACS,No,11/08/2023 00:00,2023,7,1371,P18238,Stoke Park Paddling Pool,1233,Contractor Payments,XXX99,*** UNASSIGNED ***,WCC,CEC Recharges,WC,CEC Recharges,A,Central Services
GUILDFORD BOROUGH COUNCIL,HRA Service Delivery,718130,A.I.M. Removals & Deliveries,31/10/2023,30113159,900,0,Expenses,Removal Service Providers,Invoice,BACS,No,05/10/2023 00:00,2023,7,1391,M8121,Strategic Support (SHS),D8004,Expenses,W3A05,Current Service Costs - Housing Services,W3A,Current Service Costs adjustment,W3,Current Service Costs,W,Other Operating Income and Expenditure
GUILDFORD BOROUGH COUNCIL,Property,1000750,Collard Group Ltd,12/12/2023,30115860,126563.7,0,Consultants Fees,,Invoice,BACS,No,09/11/2023 00:00,2023,9,1398,P74040,WUV - Weyside Urban Village (SARP),1221,Consultants Fees,XXX99,*** UNASSIGNED ***,WCC,CEC Recharges,WC,CEC Recharges,A,Central Services
GUILDFORD BOROUGH COUNCIL,HRA Service Delivery,718130,A.I.M. Removals & Deliveries,09/11/2023,30114326,950,0,Expenses,Removal Service Providers,Invoice,BACS,No,17/10/2023 00:00,2023,7,1400,M8121,Strategic Support (SHS),D8004,Expenses,W3A05,Current Service Costs - Housing Services,W3A,Current Service Costs adjustment,W3,Current Service Costs,W,Other Operating Income and Expenditure
GUILDFORD BOROUGH COUNCIL,HRA Service Delivery,718130,A.I.M. Removals & Deliveries,21/12/2023,30118614,950,0,Expenses,Removal Service Providers,Invoice,CHAPS,No,18/12/2023 00:00,2023,9,1427,M8121,Strategic Support (SHS),D8004,Expenses,W3A05,Current Service Costs - Housing Services,W3A,Current Service Costs adjustment,W3,Current Service Costs,W,Other Operating Income and Expenditure
GUILDFORD BOROUGH COUNCIL,Community Services,354400,Age UK Surrey,12/10/2023,30113150,22437,0,Grants And Subscriptions,Adult Day Care Providers,Invoice,BACS,No,05/10/2023 00:00,2023,7,1654,C3111,Community Grant Scheme,D9001,Grants And Subscriptions,XXX99,*** UNASSIGNED ***,WCC,CEC Recharges,WC,CEC Recharges,A,Central Services
GUILDFORD BOROUGH COUNCIL,Commercial Services,877460,JJ Surveying Ltd,26/10/2023,30112937,708.5,0,Consultancy,Surveyors And Inspectors,Invoice,BACS,No,02/10/2023 00:00,2023,7,1794,D5700,Building Control - Fee,D6001,Consultancy,CPB00,Building Regulations,CPB,Building Control,CP,Planning and Development Services,C,"Cultural, Environmental & Planning Services"
GUILDFORD BOROUGH COUNCIL,Commercial Services,877460,JJ Surveying Ltd,02/11/2023,30114474,654,0,Consultancy,Surveyors And Inspectors,Invoice,BACS,No,09/10/2023 00:00,2023,7,1796,D5700,Building Control - Fee,D6001,Consultancy,CPB00,Building Regulations,CPB,Building Control,CP,Planning and Development Services,C,"Cultural, Environmental & Planning Services"
GUILDFORD BOROUGH COUNCIL,Commercial Services,877460,JJ Surveying Ltd,09/11/2023,30114466,599.5,0,Consultancy,Surveyors And Inspectors,Invoice,BACS,No,16/10/2023 00:00,2023,7,1798,D5700,Building Control - Fee,D6001,Consultancy,CPB00,Building Regulations,CPB,Building Control,CP,Planning and Development Services,C,"Cultural, Environmental & Planning Services"
GUILDFORD BOROUGH COUNCIL,Commercial Services,877460,JJ Surveying Ltd,16/11/2023,30114626,654,0,Consultancy,Surveyors And Inspectors,Invoice,BACS,No,23/10/2023 00:00,2023,7,1800,D5700,Building Control - Fee,D6001,Consultancy,CPB00,Building Regulations,CPB,Building Control,CP,Planning and Development Services,C,"Cultural, Environmental & Planning Services"
GUILDFORD BOROUGH COUNCIL,Assets and Property,130250,Owen Isherwood Limited,14/12/2023,30116970,1950,0,Valuers Fees,Property Letting And Estate Agents,Invoice,BACS,No,20/11/2023 00:00,2023,8,1893,G4575,Asset Management,D6002,Valuers Fees,DBX45,Property Services,DBX,Support Service and Management Costs,DB,Children's Social Care,E,Childrens and Education Services
GUILDFORD BOROUGH COUNCIL,HRA Service Delivery,130250,Owen Isherwood Limited,28/12/2023,30117724,2500,0,Valuers Fees,Property Letting And Estate Agents,Invoice,BACS,No,04/12/2023 00:00,2023,9,1906,M1151,Tenants Services (BHS),D6002,Valuers Fees,W3A05,Current Service Costs - Housing Services,W3A,Current Service Costs adjustment,W3,Current Service Costs,W,Other Operating Income and Expenditure
GUILDFORD BOROUGH COUNCIL,HRA Service Delivery,130250,Owen Isherwood Limited,28/12/2023,30117843,1250,0,Valuers Fees,Property Letting And Estate Agents,Invoice,BACS,No,05/12/2023 00:00,2023,9,1912,M1151,Tenants Services (BHS),D6002,Valuers Fees,W3A05,Current Service Costs - Housing Services,W3A,Current Service Costs adjustment,W3,Current Service Costs,W,Other Operating Income and Expenditure
GUILDFORD BOROUGH COUNCIL,IT Renewals,1000466,NimbusPoint Consulting Ltd,26/10/2023,30112916,11137.5,0,Consultants Fees,,Invoice,BACS,No,03/10/2023 00:00,2023,7,1940,P81037,Salesforce,1221,Consultants Fees,XXX99,*** UNASSIGNED ***,WCC,CEC Recharges,WC,CEC Recharges,A,Central Services
GUILDFORD BOROUGH COUNCIL,Communication & Customer Services,1000466,NimbusPoint Consulting Ltd,26/10/2023,30112940,3600,0,Services,,Invoice,BACS,No,03/10/2023 00:00,2023,7,1941,F1141,Internet Site Access,D6004,Services,DBX70,Other Management Costs,DBX,Support Service and Management Costs,DB,Children's Social Care,E,Childrens and Education Services
GUILDFORD BOROUGH COUNCIL,IT Renewals,1000466,NimbusPoint Consulting Ltd,14/11/2023,30114458,9618.75,0,Contractor Payments,,Invoice,BACS,No,18/10/2023 00:00,2023,7,1958,P81037,Salesforce,1233,Contractor Payments,XXX99,*** UNASSIGNED ***,WCC,CEC Recharges,WC,CEC Recharges,A,Central Services
GUILDFORD BOROUGH COUNCIL,IT Renewals,1000466,NimbusPoint Consulting Ltd,28/11/2023,30115370,14850,0,Consultants Fees,,Invoice,BACS,No,02/11/2023 00:00,2023,8,1960,P81037,Salesforce,1221,Consultants Fees,XXX99,*** UNASSIGNED ***,WCC,CEC Recharges,WC,CEC Recharges,A,Central Services
GUILDFORD BOROUGH COUNCIL,Communication & Customer Services,1000466,NimbusPoint Consulting Ltd,28/11/2023,30115356,3600,0,Services,,Invoice,BACS,No,02/11/2023 00:00,2023,8,1961,F1141,Internet Site Access,D6004,Services,DBX70,Other Management Costs,DBX,Support Service and Management Costs,DB,Children's Social Care,E,Childrens and Education Services
GUILDFORD BOROUGH COUNCIL,IT Renewals,1000466,NimbusPoint Consulting Ltd,07/12/2023,30115904,10466.5,0,Contractor Payments,,Invoice,BACS,No,13/11/2023 00:00,2023,8,1973,P81037,Salesforce,1233,Contractor Payments,XXX99,*** UNASSIGNED ***,WCC,CEC Recharges,WC,CEC Recharges,A,Central Services
GUILDFORD BOROUGH COUNCIL,Communication & Customer Services,1000466,NimbusPoint Consulting Ltd,28/12/2023,30117740,3600,0,Services,,Invoice,BACS,No,06/12/2023 00:00,2023,9,1985,F1141,Internet Site Access,D6004,Services,DBX70,Other Management Costs,DBX,Support Service and Management Costs,DB,Children's Social Care,E,Childrens and Education Services
GUILDFORD BOROUGH COUNCIL,IT Renewals,1000466,NimbusPoint Consulting Ltd,28/12/2023,30117861,10237.5,0,Contractor Payments,,Invoice,BACS,No,07/12/2023 00:00,2023,9,1995,P81037,Salesforce,1233,Contractor Payments,XXX99,*** UNASSIGNED ***,WCC,CEC Recharges,WC,CEC Recharges,A,Central Services
GUILDFORD BOROUGH COUNCIL,Renovations,921750,SCBS (CIS),03/10/2023,30112724,5478.21,0,Contractor Payments,Other Construction Contractors,Invoice,BACS,No,14/09/2023 00:00,2023,7,2016,N40295,Disabled adaptations,1233,Contractor Payments,XXX99,*** UNASSIGNED ***,WCC,CEC Recharges,WC,CEC Recharges,A,Central Services
GUILDFORD BOROUGH COUNCIL,Renovations,921750,SCBS (CIS),03/10/2023,30112725,4059,0,Contractor Payments,Other Construction Contractors,Invoice,BACS,No,18/09/2023 00:00,2023,7,2024,N40295,Disabled adaptations,1233,Contractor Payments,XXX99,*** UNASSIGNED ***,WCC,CEC Recharges,WC,CEC Recharges,A,Central Services
GUILDFORD BOROUGH COUNCIL,Renovations,921750,SCBS (CIS),03/10/2023,30112726,6397.12,0,Contractor Payments,Other Construction Contractors,Invoice,BACS,No,19/09/2023 00:00,2023,7,2025,N40295,Disabled adaptations,1233,Contractor Payments,XXX99,*** UNASSIGNED ***,WCC,CEC Recharges,WC,CEC Recharges,A,Central Services
GUILDFORD BOROUGH COUNCIL,Renovations,921750,SCBS (CIS),12/10/2023,30113412,6250.16,0,Contractor Payments,Other Construction Contractors,Invoice,BACS,No,22/06/2023 00:00,2023,7,2027,N40295,Disabled adaptations,1233,Contractor Payments,XXX99,*** UNASSIGNED ***,WCC,CEC Recharges,WC,CEC Recharges,A,Central Services
GUILDFORD BOROUGH COUNCIL,Renovations,921750,SCBS (CIS),19/10/2023,30114310,7951.84,0,Contractor Payments,Other Construction Contractors,Invoice,BACS,No,04/10/2023 00:00,2023,7,2034,N40295,Disabled adaptations,1233,Contractor Payments,XXX99,*** UNASSIGNED ***,WCC,CEC Recharges,WC,CEC Recharges,A,Central Services
GUILDFORD BOROUGH COUNCIL,Renovations,921750,SCBS (CIS),24/10/2023,30114570,5953.68,0,Contractor Payments,Other Construction Contractors,Invoice,BACS,No,09/10/2023 00:00,2023,7,2037,N40295,Disabled adaptations,1233,Contractor Payments,XXX99,*** UNASSIGNED ***,WCC,CEC Recharges,WC,CEC Recharges,A,Central Services
GUILDFORD BOROUGH COUNCIL,Renovations,921750,SCBS (CIS),31/10/2023,30115020,4036.94,0,Contractor Payments,Other Construction Contractors,Invoice,BACS,No,19/10/2023 00:00,2023,7,2045,N40295,Disabled adaptations,1233,Contractor Payments,XXX99,*** UNASSIGNED ***,WCC,CEC Recharges,WC,CEC Recharges,A,Central Services
GUILDFORD BOROUGH COUNCIL,Renovations,921750,SCBS (CIS),31/10/2023,30115021,742.17,0,Contractor Payments,Other Construction Contractors,Invoice,BACS,No,24/10/2023 00:00,2023,7,2049,N40295,Disabled adaptations,1233,Contractor Payments,XXX99,*** UNASSIGNED ***,WCC,CEC Recharges,WC,CEC Recharges,A,Central Services
GUILDFORD BOROUGH COUNCIL,Renovations,921750,SCBS (CIS),07/11/2023,30115429,6052.7,0,Contractor Payments,Other Construction Contractors,Invoice,BACS,No,26/10/2023 00:00,2023,8,2052,N40295,Disabled adaptations,1233,Contractor Payments,XXX99,*** UNASSIGNED ***,WCC,CEC Recharges,WC,CEC Recharges,A,Central Services
GUILDFORD BOROUGH COUNCIL,Renovations,921750,SCBS (CIS),23/11/2023,30116667,8494.4,0,Contractor Payments,Other Construction Contractors,Invoice,BACS,No,06/11/2023 00:00,2023,8,2058,N40295,Disabled adaptations,1233,Contractor Payments,XXX99,*** UNASSIGNED ***,WCC,CEC Recharges,WC,CEC Recharges,A,Central Services
GUILDFORD BOROUGH COUNCIL,Renovations,921750,SCBS (CIS),12/12/2023,30117773,2772.95,0,Contractor Payments,Other Construction Contractors,Invoice,BACS,No,22/11/2023 00:00,2023,9,2064,N40295,Disabled adaptations,1233,Contractor Payments,XXX99,*** UNASSIGNED ***,WCC,CEC Recharges,WC,CEC Recharges,A,Central Services
GUILDFORD BOROUGH COUNCIL,Renovations,921750,SCBS (CIS),19/12/2023,30118499,5217.93,0,Contractor Payments,Other Construction Contractors,Invoice,BACS,No,30/11/2023 00:00,2023,9,2070,N40295,Disabled adaptations,1233,Contractor Payments,XXX99,*** UNASSIGNED ***,WCC,CEC Recharges,WC,CEC Recharges,A,Central Services
GUILDFORD BOROUGH COUNCIL,Renovations,921750,SCBS (CIS),19/12/2023,30118500,6558.35,0,Contractor Payments,Other Construction Contractors,Invoice,BACS,No,30/11/2023 00:00,2023,9,2071,N40295,Disabled adaptations,1233,Contractor Payments,XXX99,*** UNASSIGNED ***,WCC,CEC Recharges,WC,CEC Recharges,A,Central Services
GUILDFORD BOROUGH COUNCIL,Assets and Property,926480,ABM Surveys Limited,14/11/2023,30114747,1150,0,Asset Maintenance,Pest And Vermin Control Service Providers,Invoice,BACS,No,19/10/2023 00:00,2023,7,2171,B5112,Roads & Footpaths Maintenance,B1001,Asset Maintenance,HTH30,Structural Maintenance - Other Roads,HTH,Structural Maintenance,HT,"Highways, Roads and Transport Services",H,"Highways, Roads and Transport Services"
GUILDFORD BOROUGH COUNCIL,HRA Service Delivery,926480,ABM Surveys Limited,05/12/2023,30116668,495,0,Services,Pest And Vermin Control Service Providers,Invoice,BACS,No,08/11/2023 00:00,2023,8,2181,M1151,Tenants Services (BHS),D6004,Services,W3A05,Current Service Costs - Housing Services,W3A,Current Service Costs adjustment,W3,Current Service Costs,W,Other Operating Income and Expenditure
GUILDFORD BOROUGH COUNCIL,Legal & Democratic Services,673000,Print For Business Ltd,24/10/2023,30113083,18334.3,0,"Printing, Photocopying And Reprographics External",Printing Service Providers,Invoice,BACS,No,29/09/2023 00:00,2023,7,2240,F2511,Electoral Registration,D5005,"Printing, Photocopying And Reprographics External",ACE00,Registration of Electors,ACE,Elections,AC,Central Services to the Public,A,Central Services
GUILDFORD BOROUGH COUNCIL,Legal & Democratic Services,673000,Print For Business Ltd,23/11/2023,30115203,9898.5,0,"Printing, Photocopying And Reprographics External",Printing Service Providers,Invoice,BACS,No,30/10/2023 00:00,2023,8,2282,F2151,Elections,D5005,"Printing, Photocopying And Reprographics External",ACE10,Conducting Elections,ACE,Elections,AC,Central Services to the Public,A,Central Services
GUILDFORD BOROUGH COUNCIL,Legal & Democratic Services,673000,Print For Business Ltd,24/10/2023,30113864,736.82,0,"Printing, Photocopying And Reprographics External",Printing Service Providers,Invoice,BACS,No,29/09/2023 00:00,2023,7,2338,F2511,Electoral Registration,D5005,"Printing, Photocopying And Reprographics External",ACE00,Registration of Electors,ACE,Elections,AC,Central Services to the Public,A,Central Services
GUILDFORD BOROUGH COUNCIL,Finance,996230,Imperial Treasury Services,05/12/2023,30117312,1276.71,0,Brokers Commission,,Invoice,BACS,No,30/09/2023 00:00,2023,9,2462,F1135,Treasury Management Admin,D6003,Brokers Commission,DBX35,Finance (including Internal Audit),DBX,Support Service and Management Costs,DB,Children's Social Care,E,Childrens and Education Services
GUILDFORD BOROUGH COUNCIL,Commercial Services,824480,Fitzgerald Building Services Ltd,11/10/2023,30112542,718,0,GF Assets - Maintenance,General Builders,Invoice,CHAPS,No,26/08/2023 00:00,2023,7,2466,B2277,Castle Mscp,B1004,GF Assets - Maintenance,HTP10,Off-Street Parking,HTP,Parking Services,HT,"Highways, Roads and Transport Services",H,"Highways, Roads and Transport Services"
GUILDFORD BOROUGH COUNCIL,Commercial Services,824480,Fitzgerald Building Services Ltd,11/10/2023,30112542,350,0,GF Assets - Maintenance,General Builders,Invoice,CHAPS,No,26/08/2023 00:00,2023,7,2466,B2277,Castle Mscp,B1004,GF Assets - Maintenance,HTP10,Off-Street Parking,HTP,Parking Services,HT,"Highways, Roads and Transport Services",H,"Highways, Roads and Transport Services"
GUILDFORD BOROUGH COUNCIL,Commercial Services,824480,Fitzgerald Building Services Ltd,09/10/2023,30113151,600,0,GF Assets - Maintenance,General Builders,Invoice,CHAPS,No,03/10/2023 00:00,2023,7,2467,B2277,Castle Mscp,B1004,GF Assets - Maintenance,HTP10,Off-Street Parking,HTP,Parking Services,HT,"Highways, Roads and Transport Services",H,"Highways, Roads and Transport Services"
GUILDFORD BOROUGH COUNCIL,Commercial Services,824480,Fitzgerald Building Services Ltd,09/10/2023,30113151,290,0,GF Assets - Maintenance,General Builders,Invoice,CHAPS,No,03/10/2023 00:00,2023,7,2467,B2277,Castle Mscp,B1004,GF Assets - Maintenance,HTP10,Off-Street Parking,HTP,Parking Services,HT,"Highways, Roads and Transport Services",H,"Highways, Roads and Transport Services"
GUILDFORD BOROUGH COUNCIL,Housing Services,946970,Davis Property Services GU Limited (CIS),10/10/2023,30113219,9827.5,0,Services,Roofers,Invoice,BACS,No,04/10/2023 00:00,2023,7,2475,K1515,Building Maintenance,D6004,Services,DBX45,Property Services,DBX,Support Service and Management Costs,DB,Children's Social Care,E,Childrens and Education Services
GUILDFORD BOROUGH COUNCIL,Housing Services,946970,Davis Property Services GU Limited (CIS),10/10/2023,30113242,1742.5,0,Services,Roofers,Invoice,BACS,No,04/10/2023 00:00,2023,7,2476,K1515,Building Maintenance,D6004,Services,DBX45,Property Services,DBX,Support Service and Management Costs,DB,Children's Social Care,E,Childrens and Education Services
GUILDFORD BOROUGH COUNCIL,Housing Services,946970,Davis Property Services GU Limited (CIS),17/10/2023,30113849,9827,0,Services,Roofers,Invoice,BACS,No,10/10/2023 00:00,2023,7,2477,K1515,Building Maintenance,D6004,Services,DBX45,Property Services,DBX,Support Service and Management Costs,DB,Children's Social Care,E,Childrens and Education Services
GUILDFORD BOROUGH COUNCIL,Housing Services,946970,Davis Property Services GU Limited (CIS),10/10/2023,30113216,6312.66,0,Services,Roofers,Invoice,BACS,No,05/10/2023 00:00,2023,7,2478,K1515,Building Maintenance,D6004,Services,DBX45,Property Services,DBX,Support Service and Management Costs,DB,Children's Social Care,E,Childrens and Education Services
GUILDFORD BOROUGH COUNCIL,Housing Services,946970,Davis Property Services GU Limited (CIS),10/10/2023,30113207,9440.99,0,Services,Roofers,Invoice,BACS,No,05/10/2023 00:00,2023,7,2479,K1515,Building Maintenance,D6004,Services,DBX45,Property Services,DBX,Support Service and Management Costs,DB,Children's Social Care,E,Childrens and Education Services
GUILDFORD BOROUGH COUNCIL,Housing Services,946970,Davis Property Services GU Limited (CIS),17/10/2023,30113790,9923,0,Services,Roofers,Invoice,BACS,No,10/10/2023 00:00,2023,7,2480,K1515,Building Maintenance,D6004,Services,DBX45,Property Services,DBX,Support Service and Management Costs,DB,Children's Social Care,E,Childrens and Education Services
GUILDFORD BOROUGH COUNCIL,Housing Services,946970,Davis Property Services GU Limited (CIS),17/10/2023,30113820,9981,0,Services,Roofers,Invoice,BACS,No,11/10/2023 00:00,2023,7,2481,K1515,Building Maintenance,D6004,Services,DBX45,Property Services,DBX,Support Service and Management Costs,DB,Children's Social Care,E,Childrens and Education Services
GUILDFORD BOROUGH COUNCIL,Housing Services,946970,Davis Property Services GU Limited (CIS),17/10/2023,30113814,9185.85,0,Services,Roofers,Invoice,BACS,No,10/10/2023 00:00,2023,7,2482,K1515,Building Maintenance,D6004,Services,DBX45,Property Services,DBX,Support Service and Management Costs,DB,Children's Social Care,E,Childrens and Education Services
GUILDFORD BOROUGH COUNCIL,Housing Services,946970,Davis Property Services GU Limited (CIS),17/10/2023,30113778,2647.15,0,Services,Roofers,Invoice,BACS,No,11/10/2023 00:00,2023,7,2483,K1515,Building Maintenance,D6004,Services,DBX45,Property Services,DBX,Support Service and Management Costs,DB,Children's Social Care,E,Childrens and Education Services
GUILDFORD BOROUGH COUNCIL,Housing Services,946970,Davis Property Services GU Limited (CIS),17/10/2023,30113767,2329.1,0,Services,Roofers,Invoice,BACS,No,11/10/2023 00:00,2023,7,2484,K1515,Building Maintenance,D6004,Services,DBX45,Property Services,DBX,Support Service and Management Costs,DB,Children's Social Care,E,Childrens and Education Services
GUILDFORD BOROUGH COUNCIL,Housing Services,946970,Davis Property Services GU Limited (CIS),19/10/2023,30114097,2298.35,0,Services,Roofers,Invoice,BACS,No,12/10/2023 00:00,2023,7,2485,K1515,Building Maintenance,D6004,Services,DBX45,Property Services,DBX,Support Service and Management Costs,DB,Children's Social Care,E,Childrens and Education Services
GUILDFORD BOROUGH COUNCIL,Housing Services,946970,Davis Property Services GU Limited (CIS),19/10/2023,30114265,2492.18,0,Services,Roofers,Invoice,BACS,No,12/10/2023 00:00,2023,7,2486,K1515,Building Maintenance,D6004,Services,DBX45,Property Services,DBX,Support Service and Management Costs,DB,Children's Social Care,E,Childrens and Education Services
GUILDFORD BOROUGH COUNCIL,Housing Services,946970,Davis Property Services GU Limited (CIS),19/10/2023,30114362,6206.4,0,Services,Roofers,Invoice,BACS,No,13/10/2023 00:00,2023,7,2487,K1515,Building Maintenance,D6004,Services,DBX45,Property Services,DBX,Support Service and Management Costs,DB,Children's Social Care,E,Childrens and Education Services
GUILDFORD BOROUGH COUNCIL,Housing Services,946970,Davis Property Services GU Limited (CIS),24/10/2023,30114456,6821.8,0,Services,Roofers,Invoice,BACS,No,14/10/2023 00:00,2023,7,2489,K1515,Building Maintenance,D6004,Services,DBX45,Property Services,DBX,Support Service and Management Costs,DB,Children's Social Care,E,Childrens and Education Services
GUILDFORD BOROUGH COUNCIL,Housing Services,946970,Davis Property Services GU Limited (CIS),02/11/2023,30115162,7886,0,Services,Roofers,Invoice,BACS,No,25/10/2023 00:00,2023,8,2490,K1515,Building Maintenance,D6004,Services,DBX45,Property Services,DBX,Support Service and Management Costs,DB,Children's Social Care,E,Childrens and Education Services
GUILDFORD BOROUGH COUNCIL,Housing Services,946970,Davis Property Services GU Limited (CIS),02/11/2023,30115169,5836.4,0,Services,Roofers,Invoice,BACS,No,25/10/2023 00:00,2023,8,2491,K1515,Building Maintenance,D6004,Services,DBX45,Property Services,DBX,Support Service and Management Costs,DB,Children's Social Care,E,Childrens and Education Services
GUILDFORD BOROUGH COUNCIL,Housing Services,946970,Davis Property Services GU Limited (CIS),02/11/2023,30115144,10655.4,0,Services,Roofers,Invoice,BACS,No,25/10/2023 00:00,2023,8,2492,K1515,Building Maintenance,D6004,Services,DBX45,Property Services,DBX,Support Service and Management Costs,DB,Children's Social Care,E,Childrens and Education Services
GUILDFORD BOROUGH COUNCIL,Housing Services,946970,Davis Property Services GU Limited (CIS),02/11/2023,30115133,9560.1,0,Services,Roofers,Invoice,BACS,No,25/10/2023 00:00,2023,8,2493,K1515,Building Maintenance,D6004,Services,DBX45,Property Services,DBX,Support Service and Management Costs,DB,Children's Social Care,E,Childrens and Education Services
GUILDFORD BOROUGH COUNCIL,Housing Services,946970,Davis Property Services GU Limited (CIS),02/11/2023,30115127,8586.45,0,Services,Roofers,Invoice,BACS,No,25/10/2023 00:00,2023,8,2494,K1515,Building Maintenance,D6004,Services,DBX45,Property Services,DBX,Support Service and Management Costs,DB,Children's Social Care,E,Childrens and Education Services
GUILDFORD BOROUGH COUNCIL,Housing Services,946970,Davis Property Services GU Limited (CIS),02/11/2023,30115156,9220,0,Services,Roofers,Invoice,BACS,No,25/10/2023 00:00,2023,8,2495,K1515,Building Maintenance,D6004,Services,DBX45,Property Services,DBX,Support Service and Management Costs,DB,Children's Social Care,E,Childrens and Education Services
GUILDFORD BOROUGH COUNCIL,Housing Services,946970,Davis Property Services GU Limited (CIS),02/11/2023,30115134,9949.5,0,Services,Roofers,Invoice,BACS,No,25/10/2023 00:00,2023,8,2496,K1515,Building Maintenance,D6004,Services,DBX45,Property Services,DBX,Support Service and Management Costs,DB,Children's Social Care,E,Childrens and Education Services
GUILDFORD BOROUGH COUNCIL,Housing Services,946970,Davis Property Services GU Limited (CIS),02/11/2023,30115168,4852.45,0,Services,Roofers,Invoice,BACS,No,25/10/2023 00:00,2023,8,2497,K1515,Building Maintenance,D6004,Services,DBX45,Property Services,DBX,Support Service and Management Costs,DB,Children's Social Care,E,Childrens and Education Services
GUILDFORD BOROUGH COUNCIL,Housing Services,946970,Davis Property Services GU Limited (CIS),16/11/2023,30116057,2183.4,0,Services,Roofers,Invoice,BACS,No,08/11/2023 00:00,2023,8,2499,K1515,Building Maintenance,D6004,Services,DBX45,Property Services,DBX,Support Service and Management Costs,DB,Children's Social Care,E,Childrens and Education Services
GUILDFORD BOROUGH COUNCIL,Housing Services,946970,Davis Property Services GU Limited (CIS),16/11/2023,30116046,8892.5,0,Services,Roofers,Invoice,BACS,No,08/11/2023 00:00,2023,8,2500,K1515,Building Maintenance,D6004,Services,DBX45,Property Services,DBX,Support Service and Management Costs,DB,Children's Social Care,E,Childrens and Education Services
GUILDFORD BOROUGH COUNCIL,Housing Services,946970,Davis Property Services GU Limited (CIS),21/11/2023,30116234,5793,0,Services,Roofers,Invoice,BACS,No,08/11/2023 00:00,2023,8,2501,K1515,Building Maintenance,D6004,Services,DBX45,Property Services,DBX,Support Service and Management Costs,DB,Children's Social Care,E,Childrens and Education Services
GUILDFORD BOROUGH COUNCIL,Housing Services,946970,Davis Property Services GU Limited (CIS),16/11/2023,30116035,1500,0,Services,Roofers,Invoice,BACS,No,08/11/2023 00:00,2023,8,2502,K1515,Building Maintenance,D6004,Services,DBX45,Property Services,DBX,Support Service and Management Costs,DB,Children's Social Care,E,Childrens and Education Services
GUILDFORD BOROUGH COUNCIL,Housing Services,946970,Davis Property Services GU Limited (CIS),16/11/2023,30116011,9951.7,0,Services,Roofers,Invoice,BACS,No,09/11/2023 00:00,2023,8,2504,K1515,Building Maintenance,D6004,Services,DBX45,Property Services,DBX,Support Service and Management Costs,DB,Children's Social Care,E,Childrens and Education Services
GUILDFORD BOROUGH COUNCIL,Housing Services,946970,Davis Property Services GU Limited (CIS),16/11/2023,30116043,9566.85,0,Services,Roofers,Invoice,BACS,No,09/11/2023 00:00,2023,8,2505,K1515,Building Maintenance,D6004,Services,DBX45,Property Services,DBX,Support Service and Management Costs,DB,Children's Social Care,E,Childrens and Education Services
GUILDFORD BOROUGH COUNCIL,Housing Services,946970,Davis Property Services GU Limited (CIS),16/11/2023,30116058,8001.26,0,Services,Roofers,Invoice,BACS,No,09/11/2023 00:00,2023,8,2506,K1515,Building Maintenance,D6004,Services,DBX45,Property Services,DBX,Support Service and Management Costs,DB,Children's Social Care,E,Childrens and Education Services
GUILDFORD BOROUGH COUNCIL,Housing Services,946970,Davis Property Services GU Limited (CIS),16/11/2023,30116030,2714.85,0,Services,Roofers,Invoice,BACS,No,09/11/2023 00:00,2023,8,2507,K1515,Building Maintenance,D6004,Services,DBX45,Property Services,DBX,Support Service and Management Costs,DB,Children's Social Care,E,Childrens and Education Services
GUILDFORD BOROUGH COUNCIL,Housing Services,946970,Davis Property Services GU Limited (CIS),16/11/2023,30116010,8358.5,0,Services,Roofers,Invoice,BACS,No,13/11/2023 00:00,2023,8,2508,K1515,Building Maintenance,D6004,Services,DBX45,Property Services,DBX,Support Service and Management Costs,DB,Children's Social Care,E,Childrens and Education Services
GUILDFORD BOROUGH COUNCIL,Housing Services,946970,Davis Property Services GU Limited (CIS),16/11/2023,30116048,9431.5,0,Services,Roofers,Invoice,BACS,No,13/11/2023 00:00,2023,8,2509,K1515,Building Maintenance,D6004,Services,DBX45,Property Services,DBX,Support Service and Management Costs,DB,Children's Social Care,E,Childrens and Education Services
GUILDFORD BOROUGH COUNCIL,Housing Services,946970,Davis Property Services GU Limited (CIS),23/11/2023,30116505,2623.5,0,Services,Roofers,Invoice,BACS,No,10/11/2023 00:00,2023,8,2510,K1515,Building Maintenance,D6004,Services,DBX45,Property Services,DBX,Support Service and Management Costs,DB,Children's Social Care,E,Childrens and Education Services
GUILDFORD BOROUGH COUNCIL,Housing Services,946970,Davis Property Services GU Limited (CIS),23/11/2023,30116521,4689,0,Services,Roofers,Invoice,BACS,No,13/11/2023 00:00,2023,8,2511,K1515,Building Maintenance,D6004,Services,DBX45,Property Services,DBX,Support Service and Management Costs,DB,Children's Social Care,E,Childrens and Education Services
GUILDFORD BOROUGH COUNCIL,Housing Services,946970,Davis Property Services GU Limited (CIS),23/11/2023,30116499,2605.5,0,Services,Roofers,Invoice,BACS,No,13/11/2023 00:00,2023,8,2512,K1515,Building Maintenance,D6004,Services,DBX45,Property Services,DBX,Support Service and Management Costs,DB,Children's Social Care,E,Childrens and Education Services
GUILDFORD BOROUGH COUNCIL,Housing Services,946970,Davis Property Services GU Limited (CIS),23/11/2023,30116577,9541.73,0,Services,Roofers,Invoice,BACS,No,16/11/2023 00:00,2023,8,2513,K1515,Building Maintenance,D6004,Services,DBX45,Property Services,DBX,Support Service and Management Costs,DB,Children's Social Care,E,Childrens and Education Services
GUILDFORD BOROUGH COUNCIL,Housing Services,946970,Davis Property Services GU Limited (CIS),28/11/2023,30116792,4839.91,0,Services,Roofers,Invoice,BACS,No,16/11/2023 00:00,2023,8,2514,K1515,Building Maintenance,D6004,Services,DBX45,Property Services,DBX,Support Service and Management Costs,DB,Children's Social Care,E,Childrens and Education Services
GUILDFORD BOROUGH COUNCIL,Housing Services,946970,Davis Property Services GU Limited (CIS),23/11/2023,30116553,1906.57,0,Services,Roofers,Invoice,BACS,No,16/11/2023 00:00,2023,8,2515,K1515,Building Maintenance,D6004,Services,DBX45,Property Services,DBX,Support Service and Management Costs,DB,Children's Social Care,E,Childrens and Education Services
GUILDFORD BOROUGH COUNCIL,Housing Services,946970,Davis Property Services GU Limited (CIS),05/12/2023,30117409,570,0,Services,Roofers,Invoice,BACS,No,28/11/2023 00:00,2023,9,2516,K1515,Building Maintenance,D6004,Services,DBX45,Property Services,DBX,Support Service and Management Costs,DB,Children's Social Care,E,Childrens and Education Services
GUILDFORD BOROUGH COUNCIL,Housing Services,946970,Davis Property Services GU Limited (CIS),05/12/2023,30117419,7793.3,0,Services,Roofers,Invoice,BACS,No,28/11/2023 00:00,2023,9,2517,K1515,Building Maintenance,D6004,Services,DBX45,Property Services,DBX,Support Service and Management Costs,DB,Children's Social Care,E,Childrens and Education Services
GUILDFORD BOROUGH COUNCIL,Housing Services,946970,Davis Property Services GU Limited (CIS),05/12/2023,30117403,4360,0,Services,Roofers,Invoice,BACS,No,28/11/2023 00:00,2023,9,2518,K1515,Building Maintenance,D6004,Services,DBX45,Property Services,DBX,Support Service and Management Costs,DB,Children's Social Care,E,Childrens and Education Services
GUILDFORD BOROUGH COUNCIL,Housing Services,946970,Davis Property Services GU Limited (CIS),05/12/2023,30117406,9860.86,0,Services,Roofers,Invoice,BACS,No,29/11/2023 00:00,2023,9,2519,K1515,Building Maintenance,D6004,Services,DBX45,Property Services,DBX,Support Service and Management Costs,DB,Children's Social Care,E,Childrens and Education Services
GUILDFORD BOROUGH COUNCIL,Housing Services,946970,Davis Property Services GU Limited (CIS),12/12/2023,30118013,1167,0,Services,Roofers,Invoice,BACS,No,30/11/2023 00:00,2023,9,2521,K1515,Building Maintenance,D6004,Services,DBX45,Property Services,DBX,Support Service and Management Costs,DB,Children's Social Care,E,Childrens and Education Services
GUILDFORD BOROUGH COUNCIL,Housing Services,946970,Davis Property Services GU Limited (CIS),12/12/2023,30118002,7189.5,0,Services,Roofers,Invoice,BACS,No,30/11/2023 00:00,2023,9,2522,K1515,Building Maintenance,D6004,Services,DBX45,Property Services,DBX,Support Service and Management Costs,DB,Children's Social Care,E,Childrens and Education Services
GUILDFORD BOROUGH COUNCIL,Housing Services,946970,Davis Property Services GU Limited (CIS),12/12/2023,30117991,2722,0,Services,Roofers,Invoice,BACS,No,30/11/2023 00:00,2023,9,2523,K1515,Building Maintenance,D6004,Services,DBX45,Property Services,DBX,Support Service and Management Costs,DB,Children's Social Care,E,Childrens and Education Services
GUILDFORD BOROUGH COUNCIL,Housing Services,946970,Davis Property Services GU Limited (CIS),19/12/2023,30118293,3805.2,0,Services,Roofers,Invoice,BACS,No,11/12/2023 00:00,2023,9,2524,K1515,Building Maintenance,D6004,Services,DBX45,Property Services,DBX,Support Service and Management Costs,DB,Children's Social Care,E,Childrens and Education Services
GUILDFORD BOROUGH COUNCIL,Housing Services,946970,Davis Property Services GU Limited (CIS),19/12/2023,30118277,2191.15,0,Services,Roofers,Invoice,BACS,No,11/12/2023 00:00,2023,9,2525,K1515,Building Maintenance,D6004,Services,DBX45,Property Services,DBX,Support Service and Management Costs,DB,Children's Social Care,E,Childrens and Education Services
GUILDFORD BOROUGH COUNCIL,Housing Services,946970,Davis Property Services GU Limited (CIS),19/12/2023,30118224,7285.75,0,Services,Roofers,Invoice,BACS,No,11/12/2023 00:00,2023,9,2526,K1515,Building Maintenance,D6004,Services,DBX45,Property Services,DBX,Support Service and Management Costs,DB,Children's Social Care,E,Childrens and Education Services
GUILDFORD BOROUGH COUNCIL,Housing Services,946970,Davis Property Services GU Limited (CIS),19/12/2023,30118278,5890.45,0,Services,Roofers,Invoice,BACS,No,10/12/2023 00:00,2023,9,2527,K1515,Building Maintenance,D6004,Services,DBX45,Property Services,DBX,Support Service and Management Costs,DB,Children's Social Care,E,Childrens and Education Services
GUILDFORD BOROUGH COUNCIL,Housing Services,946970,Davis Property Services GU Limited (CIS),19/12/2023,30118252,2956.15,0,Services,Roofers,Invoice,BACS,No,10/12/2023 00:00,2023,9,2528,K1515,Building Maintenance,D6004,Services,DBX45,Property Services,DBX,Support Service and Management Costs,DB,Children's Social Care,E,Childrens and Education Services
GUILDFORD BOROUGH COUNCIL,Housing Services,946970,Davis Property Services GU Limited (CIS),19/12/2023,30118275,8919.5,0,Services,Roofers,Invoice,BACS,No,09/12/2023 00:00,2023,9,2529,K1515,Building Maintenance,D6004,Services,DBX45,Property Services,DBX,Support Service and Management Costs,DB,Children's Social Care,E,Childrens and Education Services
GUILDFORD BOROUGH COUNCIL,Housing Services,946970,Davis Property Services GU Limited (CIS),19/12/2023,30118288,9963.96,0,Services,Roofers,Invoice,BACS,No,12/12/2023 00:00,2023,9,2530,K1515,Building Maintenance,D6004,Services,DBX45,Property Services,DBX,Support Service and Management Costs,DB,Children's Social Care,E,Childrens and Education Services
GUILDFORD BOROUGH COUNCIL,Housing Services,946970,Davis Property Services GU Limited (CIS),19/12/2023,30118223,6449.2,0,Services,Roofers,Invoice,BACS,No,13/12/2023 00:00,2023,9,2531,K1515,Building Maintenance,D6004,Services,DBX45,Property Services,DBX,Support Service and Management Costs,DB,Children's Social Care,E,Childrens and Education Services
GUILDFORD BOROUGH COUNCIL,Housing Services,946970,Davis Property Services GU Limited (CIS),19/12/2023,30118365,9113.5,0,Services,Roofers,Invoice,BACS,No,13/12/2023 00:00,2023,9,2532,K1515,Building Maintenance,D6004,Services,DBX45,Property Services,DBX,Support Service and Management Costs,DB,Children's Social Care,E,Childrens and Education Services
GUILDFORD BOROUGH COUNCIL,New Build,1000961,31ten Consulting Limited,24/10/2023,30112938,4000,0,Consultants Fees,,Invoice,BACS,No,30/09/2023 00:00,2023,7,2682,N30011,Guildford Park,1221,Consultants Fees,XXX99,*** UNASSIGNED ***,WCC,CEC Recharges,WC,CEC Recharges,A,Central Services
GUILDFORD BOROUGH COUNCIL,Commercial Services,777590,THDG (Consulting Engineers) Ltd,19/10/2023,30112674,1112.5,0,Consultancy,Civil Engineers,Invoice,BACS,No,25/09/2023 00:00,2023,7,3069,D5700,Building Control - Fee,D6001,Consultancy,CPB00,Building Regulations,CPB,Building Control,CP,Planning and Development Services,C,"Cultural, Environmental & Planning Services"
GUILDFORD BOROUGH COUNCIL,Commercial Services,777590,THDG (Consulting Engineers) Ltd,12/12/2023,30116893,1800,0,Consultancy,Civil Engineers,Invoice,BACS,No,18/11/2023 00:00,2023,8,3110,D5700,Building Control - Fee,D6001,Consultancy,CPB00,Building Regulations,CPB,Building Control,CP,Planning and Development Services,C,"Cultural, Environmental & Planning Services"
GUILDFORD BOROUGH COUNCIL,Commercial Services,777590,THDG (Consulting Engineers) Ltd,29/12/2023,30118991,1087.5,0,Consultancy,Civil Engineers,Invoice,CHAPS,No,21/12/2023 00:00,2023,9,3149,D5700,Building Control - Fee,D6001,Consultancy,CPB00,Building Regulations,CPB,Building Control,CP,Planning and Development Services,C,"Cultural, Environmental & Planning Services"
GUILDFORD BOROUGH COUNCIL,Environmental Services,342640,Gristman Tree Surgery Limited,24/10/2023,30112791,1247,0,Grounds Maintenance,Tree Work Contractors,Invoice,BACS,No,29/09/2023 00:00,2023,7,3192,A1300,Trees And Countryside,B6001,Grounds Maintenance,CCE00,Community Parks & Open Spaces,CCE,Open Spaces,CC,Cultural & Related Services,C,"Cultural, Environmental & Planning Services"
GUILDFORD BOROUGH COUNCIL,Environmental Services,342640,Gristman Tree Surgery Limited,31/10/2023,30113215,545,0,Grounds Maintenance,Tree Work Contractors,Invoice,BACS,No,06/10/2023 00:00,2023,7,3196,A1300,Trees And Countryside,B6001,Grounds Maintenance,CCE00,Community Parks & Open Spaces,CCE,Open Spaces,CC,Cultural & Related Services,C,"Cultural, Environmental & Planning Services"
GUILDFORD BOROUGH COUNCIL,Environmental Services,342640,Gristman Tree Surgery Limited,21/11/2023,30114738,790,0,Grounds Maintenance,Tree Work Contractors,Invoice,BACS,No,25/10/2023 00:00,2023,7,3211,A1300,Trees And Countryside,B6001,Grounds Maintenance,CCE00,Community Parks & Open Spaces,CCE,Open Spaces,CC,Cultural & Related Services,C,"Cultural, Environmental & Planning Services"
GUILDFORD BOROUGH COUNCIL,Environmental Services,342640,Gristman Tree Surgery Limited,28/11/2023,30115350,790,0,Grounds Maintenance,Tree Work Contractors,Invoice,BACS,No,01/11/2023 00:00,2023,8,3219,A1300,Trees And Countryside,B6001,Grounds Maintenance,CCE00,Community Parks & Open Spaces,CCE,Open Spaces,CC,Cultural & Related Services,C,"Cultural, Environmental & Planning Services"
GUILDFORD BOROUGH COUNCIL,Environmental Services,342640,Gristman Tree Surgery Limited,28/11/2023,30115347,430,0,Grounds Maintenance,Tree Work Contractors,Invoice,BACS,No,01/11/2023 00:00,2023,8,3220,A1300,Trees And Countryside,B6001,Grounds Maintenance,CCE00,Community Parks & Open Spaces,CCE,Open Spaces,CC,Cultural & Related Services,C,"Cultural, Environmental & Planning Services"
GUILDFORD BOROUGH COUNCIL,Environmental Services,342640,Gristman Tree Surgery Limited,28/11/2023,30115463,1564,0,Grounds Maintenance,Tree Work Contractors,Invoice,BACS,No,02/11/2023 00:00,2023,8,3225,A1300,Trees And Countryside,B6001,Grounds Maintenance,CCE00,Community Parks & Open Spaces,CCE,Open Spaces,CC,Cultural & Related Services,C,"Cultural, Environmental & Planning Services"
GUILDFORD BOROUGH COUNCIL,Environmental Services,342640,Gristman Tree Surgery Limited,28/11/2023,30115373,1480,0,Grounds Maintenance,Tree Work Contractors,Invoice,BACS,No,02/11/2023 00:00,2023,8,3226,A1300,Trees And Countryside,B6001,Grounds Maintenance,CCE00,Community Parks & Open Spaces,CCE,Open Spaces,CC,Cultural & Related Services,C,"Cultural, Environmental & Planning Services"
GUILDFORD BOROUGH COUNCIL,Environmental Services,342640,Gristman Tree Surgery Limited,28/11/2023,30115459,740,0,Grounds Maintenance,Tree Work Contractors,Invoice,BACS,No,02/11/2023 00:00,2023,8,3227,A1300,Trees And Countryside,B6001,Grounds Maintenance,CCE00,Community Parks & Open Spaces,CCE,Open Spaces,CC,Cultural & Related Services,C,"Cultural, Environmental & Planning Services"
GUILDFORD BOROUGH COUNCIL,Commercial Services,958530,Pierra Ltd (CIS),17/10/2023,30113723,6336.47,0,GF Assets - Maintenance,Other Construction Contractors,Invoice,BACS,No,25/09/2023 00:00,2023,7,3229,F3311,Guildhall,B1004,GF Assets - Maintenance,CCA30,Museums & Galleries,CCA,Culture & Heritage,CC,Cultural & Related Services,C,"Cultural, Environmental & Planning Services"
GUILDFORD BOROUGH COUNCIL,Environmental Services,342640,Gristman Tree Surgery Limited,05/12/2023,30115854,1500,0,Grounds Maintenance,Tree Work Contractors,Invoice,BACS,No,09/11/2023 00:00,2023,8,3235,A1300,Trees And Countryside,B6001,Grounds Maintenance,CCE00,Community Parks & Open Spaces,CCE,Open Spaces,CC,Cultural & Related Services,C,"Cultural, Environmental & Planning Services"
GUILDFORD BOROUGH COUNCIL,Environmental Services,958530,Pierra Ltd (CIS),16/11/2023,30116044,4109.29,0,GF Assets - Maintenance,Other Construction Contractors,Invoice,BACS,No,30/09/2023 00:00,2023,8,3242,A1200,Sports Grounds,B1004,GF Assets - Maintenance,CCE00,Community Parks & Open Spaces,CCE,Open Spaces,CC,Cultural & Related Services,C,"Cultural, Environmental & Planning Services"
GUILDFORD BOROUGH COUNCIL,Environmental Services,342640,Gristman Tree Surgery Limited,14/12/2023,30116528,400,0,Grounds Maintenance,Tree Work Contractors,Invoice,BACS,No,21/11/2023 00:00,2023,8,3247,A1300,Trees And Countryside,B6001,Grounds Maintenance,CCE00,Community Parks & Open Spaces,CCE,Open Spaces,CC,Cultural & Related Services,C,"Cultural, Environmental & Planning Services"
GUILDFORD BOROUGH COUNCIL,Environmental Services,342640,Gristman Tree Surgery Limited,19/12/2023,30116938,890,0,Grounds Maintenance,Tree Work Contractors,Invoice,BACS,No,23/11/2023 00:00,2023,8,3248,A1300,Trees And Countryside,B6001,Grounds Maintenance,CCE00,Community Parks & Open Spaces,CCE,Open Spaces,CC,Cultural & Related Services,C,"Cultural, Environmental & Planning Services"
GUILDFORD BOROUGH COUNCIL,Environmental Services,342640,Gristman Tree Surgery Limited,19/12/2023,30116937,900,0,Grounds Maintenance,Tree Work Contractors,Invoice,BACS,No,23/11/2023 00:00,2023,8,3249,A1300,Trees And Countryside,B6001,Grounds Maintenance,CCE00,Community Parks & Open Spaces,CCE,Open Spaces,CC,Cultural & Related Services,C,"Cultural, Environmental & Planning Services"
GUILDFORD BOROUGH COUNCIL,Environmental Services,342640,Gristman Tree Surgery Limited,19/12/2023,30116934,1000,0,Grounds Maintenance,Tree Work Contractors,Invoice,BACS,No,23/11/2023 00:00,2023,8,3250,A1300,Trees And Countryside,B6001,Grounds Maintenance,CCE00,Community Parks & Open Spaces,CCE,Open Spaces,CC,Cultural & Related Services,C,"Cultural, Environmental & Planning Services"
GUILDFORD BOROUGH COUNCIL,Environmental Services,342640,Gristman Tree Surgery Limited,21/12/2023,30117074,345,0,Grounds Maintenance,Tree Work Contractors,Invoice,BACS,No,27/11/2023 00:00,2023,8,3254,A1300,Trees And Countryside,B6001,Grounds Maintenance,CCE00,Community Parks & Open Spaces,CCE,Open Spaces,CC,Cultural & Related Services,C,"Cultural, Environmental & Planning Services"
GUILDFORD BOROUGH COUNCIL,Environmental Services,342640,Gristman Tree Surgery Limited,21/12/2023,30117168,450,0,Grounds Maintenance,Tree Work Contractors,Invoice,BACS,No,28/11/2023 00:00,2023,8,3255,A1300,Trees And Countryside,B6001,Grounds Maintenance,CCE00,Community Parks & Open Spaces,CCE,Open Spaces,CC,Cultural & Related Services,C,"Cultural, Environmental & Planning Services"
GUILDFORD BOROUGH COUNCIL,Environmental Services,342640,Gristman Tree Surgery Limited,21/12/2023,30117344,672.5,0,Grounds Maintenance,Tree Work Contractors,Invoice,BACS,No,29/11/2023 00:00,2023,9,3257,A1300,Trees And Countryside,B6001,Grounds Maintenance,CCE00,Community Parks & Open Spaces,CCE,Open Spaces,CC,Cultural & Related Services,C,"Cultural, Environmental & Planning Services"
GUILDFORD BOROUGH COUNCIL,Environmental Services,342640,Gristman Tree Surgery Limited,19/12/2023,30118382,3300,0,Grounds Maintenance,Tree Work Contractors,Invoice,CHAPS,No,13/12/2023 00:00,2023,9,3273,A1300,Trees And Countryside,B6001,Grounds Maintenance,CCE00,Community Parks & Open Spaces,CCE,Open Spaces,CC,Cultural & Related Services,C,"Cultural, Environmental & Planning Services"
GUILDFORD BOROUGH COUNCIL,Renovations,1000338,3MS Gold Services Ltd,12/10/2023,30113432,3967.75,0,Contractor Payments,,Invoice,BACS,No,27/09/2023 00:00,2023,7,3286,N40295,Disabled adaptations,1233,Contractor Payments,XXX99,*** UNASSIGNED ***,WCC,CEC Recharges,WC,CEC Recharges,A,Central Services
GUILDFORD BOROUGH COUNCIL,Renovations,1000338,3MS Gold Services Ltd,12/10/2023,30113432,2645.17,0,Contractor Payments,,Invoice,BACS,No,27/09/2023 00:00,2023,7,3286,N40295,Disabled adaptations,1233,Contractor Payments,XXX99,*** UNASSIGNED ***,WCC,CEC Recharges,WC,CEC Recharges,A,Central Services
GUILDFORD BOROUGH COUNCIL,Renovations,1000338,3MS Gold Services Ltd,12/10/2023,30113433,302,0,Contractor Payments,,Invoice,BACS,No,27/09/2023 00:00,2023,7,3287,N40295,Disabled adaptations,1233,Contractor Payments,XXX99,*** UNASSIGNED ***,WCC,CEC Recharges,WC,CEC Recharges,A,Central Services
GUILDFORD BOROUGH COUNCIL,Renovations,1000338,3MS Gold Services Ltd,12/10/2023,30113433,453,0,Contractor Payments,,Invoice,BACS,No,27/09/2023 00:00,2023,7,3287,N40295,Disabled adaptations,1233,Contractor Payments,XXX99,*** UNASSIGNED ***,WCC,CEC Recharges,WC,CEC Recharges,A,Central Services
GUILDFORD BOROUGH COUNCIL,Renovations,1000338,3MS Gold Services Ltd,31/10/2023,30115033,4243.15,0,Contractor Payments,,Invoice,BACS,No,12/10/2023 00:00,2023,7,3302,N40295,Disabled adaptations,1233,Contractor Payments,XXX99,*** UNASSIGNED ***,WCC,CEC Recharges,WC,CEC Recharges,A,Central Services
GUILDFORD BOROUGH COUNCIL,Renovations,1000338,3MS Gold Services Ltd,31/10/2023,30115033,2828.77,0,Contractor Payments,,Invoice,BACS,No,12/10/2023 00:00,2023,7,3302,N40295,Disabled adaptations,1233,Contractor Payments,XXX99,*** UNASSIGNED ***,WCC,CEC Recharges,WC,CEC Recharges,A,Central Services
GUILDFORD BOROUGH COUNCIL,Renovations,1000338,3MS Gold Services Ltd,07/11/2023,30115415,2809.97,0,Contractor Payments,,Invoice,BACS,No,25/10/2023 00:00,2023,8,3315,N40295,Disabled adaptations,1233,Contractor Payments,XXX99,*** UNASSIGNED ***,WCC,CEC Recharges,WC,CEC Recharges,A,Central Services
GUILDFORD BOROUGH COUNCIL,Renovations,1000338,3MS Gold Services Ltd,07/11/2023,30115415,4214.95,0,Contractor Payments,,Invoice,BACS,No,25/10/2023 00:00,2023,8,3315,N40295,Disabled adaptations,1233,Contractor Payments,XXX99,*** UNASSIGNED ***,WCC,CEC Recharges,WC,CEC Recharges,A,Central Services
GUILDFORD BOROUGH COUNCIL,Renovations,1000338,3MS Gold Services Ltd,12/12/2023,30117955,2982.6,0,Contractor Payments,,Invoice,BACS,No,16/11/2023 00:00,2023,9,3334,N40295,Disabled adaptations,1233,Contractor Payments,XXX99,*** UNASSIGNED ***,WCC,CEC Recharges,WC,CEC Recharges,A,Central Services
GUILDFORD BOROUGH COUNCIL,Renovations,1000338,3MS Gold Services Ltd,12/12/2023,30117955,1988.4,0,Contractor Payments,,Invoice,BACS,No,16/11/2023 00:00,2023,9,3334,N40295,Disabled adaptations,1233,Contractor Payments,XXX99,*** UNASSIGNED ***,WCC,CEC Recharges,WC,CEC Recharges,A,Central Services
GUILDFORD BOROUGH COUNCIL,Renovations,1000338,3MS Gold Services Ltd,12/12/2023,30117830,4133.95,0,Contractor Payments,,Invoice,BACS,No,22/11/2023 00:00,2023,9,3338,N40295,Disabled adaptations,1233,Contractor Payments,XXX99,*** UNASSIGNED ***,WCC,CEC Recharges,WC,CEC Recharges,A,Central Services
GUILDFORD BOROUGH COUNCIL,Renovations,1000338,3MS Gold Services Ltd,12/12/2023,30117830,2755.97,0,Contractor Payments,,Invoice,BACS,No,22/11/2023 00:00,2023,9,3338,N40295,Disabled adaptations,1233,Contractor Payments,XXX99,*** UNASSIGNED ***,WCC,CEC Recharges,WC,CEC Recharges,A,Central Services
GUILDFORD BOROUGH COUNCIL,Renovations,1000338,3MS Gold Services Ltd,19/12/2023,30118526,4228.03,0,Contractor Payments,,Invoice,BACS,No,01/12/2023 00:00,2023,9,3343,N40295,Disabled adaptations,1233,Contractor Payments,XXX99,*** UNASSIGNED ***,WCC,CEC Recharges,WC,CEC Recharges,A,Central Services
GUILDFORD BOROUGH COUNCIL,Renovations,1000338,3MS Gold Services Ltd,19/12/2023,30118526,2818.68,0,Contractor Payments,,Invoice,BACS,No,01/12/2023 00:00,2023,9,3343,N40295,Disabled adaptations,1233,Contractor Payments,XXX99,*** UNASSIGNED ***,WCC,CEC Recharges,WC,CEC Recharges,A,Central Services
GUILDFORD BOROUGH COUNCIL,Environmental Services,202390,Brand Pest Control,31/10/2023,30112076,360,0,Contractors,Pest And Vermin Control Service Providers,Invoice,BACS,No,21/09/2023 00:00,2023,7,3506,A1500,Crematorium,D6012,Contractors,CEA10,Crematoria,CEA,"Cemetery, Cremation and Mortuary Services",CE,Environmental & Regulatory Services,C,"Cultural, Environmental & Planning Services"
GUILDFORD BOROUGH COUNCIL,Environmental Services,656290,Binscombe Medical Centre,09/11/2023,30114711,627,0,Services,Other Medical Professionals,Invoice,BACS,No,17/10/2023 00:00,2023,7,3513,A1500,Crematorium,D6004,Services,CEA10,Crematoria,CEA,"Cemetery, Cremation and Mortuary Services",CE,Environmental & Regulatory Services,C,"Cultural, Environmental & Planning Services"
GUILDFORD BOROUGH COUNCIL,Commercial Services,202390,Brand Pest Control,31/10/2023,30113348,383.5,0,Cleaning Contractors,Pest And Vermin Control Service Providers,Invoice,BACS,No,04/10/2023 00:00,2023,7,3542,B2217,Guildford On-Street,D6006,Cleaning Contractors,HTP00,On-Street Parking,HTP,Parking Services,HT,"Highways, Roads and Transport Services",H,"Highways, Roads and Transport Services"
GUILDFORD BOROUGH COUNCIL,Commercial Services,202390,Brand Pest Control,28/12/2023,30117862,383.5,0,Cleaning Contractors,Pest And Vermin Control Service Providers,Invoice,BACS,No,05/12/2023 00:00,2023,9,3626,B2216,General Upkeep- Urban Car Pks,D6006,Cleaning Contractors,HTP10,Off-Street Parking,HTP,Parking Services,HT,"Highways, Roads and Transport Services",H,"Highways, Roads and Transport Services"
GUILDFORD BOROUGH COUNCIL,Housing Services,847120,Project 114 Ltd,26/10/2023,30113149,700,0,Emergency Accomodation,Property Letting And Estate Agents,Invoice,BACS,No,02/10/2023 00:00,2023,7,3693,C3311,Homelessness,D8009,Emergency Accomodation,KGU00,Supporting People - Strategy,KGU,Supporting People,KG,Housing General Fund,K,Housing Services
GUILDFORD BOROUGH COUNCIL,Housing Services,847120,Project 114 Ltd,02/11/2023,30113229,1000,0,Emergency Accomodation,Property Letting And Estate Agents,Invoice,BACS,No,09/10/2023 00:00,2023,7,3696,C3311,Homelessness,D8009,Emergency Accomodation,KGU00,Supporting People - Strategy,KGU,Supporting People,KG,Housing General Fund,K,Housing Services
GUILDFORD BOROUGH COUNCIL,Housing Services,847120,Project 114 Ltd,23/11/2023,30113907,1050,0,Emergency Accomodation,Property Letting And Estate Agents,Invoice,BACS,No,16/10/2023 00:00,2023,8,3700,C3311,Homelessness,D8009,Emergency Accomodation,KGU00,Supporting People - Strategy,KGU,Supporting People,KG,Housing General Fund,K,Housing Services
GUILDFORD BOROUGH COUNCIL,Housing Services,847120,Project 114 Ltd,23/11/2023,30114615,1050,0,Emergency Accomodation,Property Letting And Estate Agents,Invoice,BACS,No,23/10/2023 00:00,2023,8,3705,C3311,Homelessness,D8009,Emergency Accomodation,KGU00,Supporting People - Strategy,KGU,Supporting People,KG,Housing General Fund,K,Housing Services
GUILDFORD BOROUGH COUNCIL,Housing Services,847120,Project 114 Ltd,23/11/2023,30115047,1050,0,Emergency Accomodation,Property Letting And Estate Agents,Invoice,BACS,No,30/10/2023 00:00,2023,8,3711,C3311,Homelessness,D8009,Emergency Accomodation,KGU00,Supporting People - Strategy,KGU,Supporting People,KG,Housing General Fund,K,Housing Services
GUILDFORD BOROUGH COUNCIL,Housing Services,847120,Project 114 Ltd,30/11/2023,30115530,1050,0,Emergency Accomodation,Property Letting And Estate Agents,Invoice,BACS,No,06/11/2023 00:00,2023,8,3715,C3311,Homelessness,D8009,Emergency Accomodation,KGU00,Supporting People - Strategy,KGU,Supporting People,KG,Housing General Fund,K,Housing Services
GUILDFORD BOROUGH COUNCIL,Housing Services,847120,Project 114 Ltd,07/12/2023,30115898,1300,0,Emergency Accomodation,Property Letting And Estate Agents,Invoice,BACS,No,13/11/2023 00:00,2023,8,3719,C3311,Homelessness,D8009,Emergency Accomodation,KGU00,Supporting People - Strategy,KGU,Supporting People,KG,Housing General Fund,K,Housing Services
GUILDFORD BOROUGH COUNCIL,Housing Services,847120,Project 114 Ltd,14/12/2023,30116416,1300,0,Emergency Accomodation,Property Letting And Estate Agents,Invoice,BACS,No,20/11/2023 00:00,2023,8,3723,C3311,Homelessness,D8009,Emergency Accomodation,KGU00,Supporting People - Strategy,KGU,Supporting People,KG,Housing General Fund,K,Housing Services
GUILDFORD BOROUGH COUNCIL,Housing Services,847120,Project 114 Ltd,21/12/2023,30116965,1300,0,Emergency Accomodation,Property Letting And Estate Agents,Invoice,BACS,No,27/11/2023 00:00,2023,8,3726,C3311,Homelessness,D8009,Emergency Accomodation,KGU00,Supporting People - Strategy,KGU,Supporting People,KG,Housing General Fund,K,Housing Services
GUILDFORD BOROUGH COUNCIL,Housing Services,847120,Project 114 Ltd,28/12/2023,30117546,1400,0,Emergency Accomodation,Property Letting And Estate Agents,Invoice,BACS,No,04/12/2023 00:00,2023,9,3731,C3311,Homelessness,D8009,Emergency Accomodation,KGU00,Supporting People - Strategy,KGU,Supporting People,KG,Housing General Fund,K,Housing Services
GUILDFORD BOROUGH COUNCIL,Environmental Services,639100,Anonymous,07/11/2023,30115456,510,0,Repair And Maintenance Of Vehicles,,Invoice,BACS,No,10/10/2023 00:00,2023,8,4026,K5551,Fleet Workshops,C1002,Repair And Maintenance Of Vehicles,W3A48,Current Service Costs - Fleet Management,W3A,Current Service Costs adjustment,W3,Current Service Costs,W,Other Operating Income and Expenditure
GUILDFORD BOROUGH COUNCIL,Environmental Services,639100,Anonymous,14/11/2023,30115482,700,0,Repair And Maintenance Of Vehicles,,Invoice,BACS,No,16/10/2023 00:00,2023,8,4027,K5551,Fleet Workshops,C1002,Repair And Maintenance Of Vehicles,W3A48,Current Service Costs - Fleet Management,W3A,Current Service Costs adjustment,W3,Current Service Costs,W,Other Operating Income and Expenditure
GUILDFORD BOROUGH COUNCIL,Environmental Services,639100,Anonymous,14/11/2023,30115457,710,0,Repair And Maintenance Of Vehicles,,Invoice,BACS,No,23/11/2021 00:00,2023,8,4029,K5551,Fleet Workshops,C1002,Repair And Maintenance Of Vehicles,W3A48,Current Service Costs - Fleet Management,W3A,Current Service Costs adjustment,W3,Current Service Costs,W,Other Operating Income and Expenditure
GUILDFORD BOROUGH COUNCIL,Environmental Services,639100,Anonymous,23/11/2023,30115605,350,0,Repair And Maintenance Of Vehicles,,Invoice,BACS,No,31/10/2023 00:00,2023,8,4032,K5551,Fleet Workshops,C1002,Repair And Maintenance Of Vehicles,W3A48,Current Service Costs - Fleet Management,W3A,Current Service Costs adjustment,W3,Current Service Costs,W,Other Operating Income and Expenditure
GUILDFORD BOROUGH COUNCIL,Environmental Services,639100,Anonymous,28/12/2023,30118389,650,0,Repair And Maintenance Of Vehicles,,Invoice,BACS,No,07/12/2023 00:00,2023,9,4043,K5551,Fleet Workshops,C1002,Repair And Maintenance Of Vehicles,W3A48,Current Service Costs - Fleet Management,W3A,Current Service Costs adjustment,W3,Current Service Costs,W,Other Operating Income and Expenditure
GUILDFORD BOROUGH COUNCIL,HRA Service Delivery,986880,Wills Chandler Solicitors,21/12/2023,30117624,4166.67,0,Services,,Invoice,BACS,No,27/11/2023 00:00,2023,9,4065,M1151,Tenants Services (BHS),D6004,Services,W3A05,Current Service Costs - Housing Services,W3A,Current Service Costs adjustment,W3,Current Service Costs,W,Other Operating Income and Expenditure
GUILDFORD BOROUGH COUNCIL,Legal & Democratic Services,797700,HB Editorial Services Ltd,21/11/2023,30114911,2995,0,Vacancy And Interview Costs,Advertising Agencies,Invoice,BACS,No,25/10/2023 00:00,2023,7,4354,G4525,Legal Services,A7120,Vacancy And Interview Costs,DBX40,Legal,DBX,Support Service and Management Costs,DB,Children's Social Care,E,Childrens and Education Services
GUILDFORD BOROUGH COUNCIL,Environmental Services,145000,Connections UK,07/11/2023,30113853,368.5,0,Materials,Event Management Agencies,Invoice,BACS,No,11/10/2023 00:00,2023,7,4482,K5551,Fleet Workshops,D2003,Materials,W3A48,Current Service Costs - Fleet Management,W3A,Current Service Costs adjustment,W3,Current Service Costs,W,Other Operating Income and Expenditure
GUILDFORD BOROUGH COUNCIL,Environmental Services,145000,Connections UK,07/11/2023,30113780,250.55,0,Materials,Event Management Agencies,Invoice,BACS,No,11/10/2023 00:00,2023,7,4483,K5551,Fleet Workshops,D2003,Materials,W3A48,Current Service Costs - Fleet Management,W3A,Current Service Costs adjustment,W3,Current Service Costs,W,Other Operating Income and Expenditure
GUILDFORD BOROUGH COUNCIL,Environmental Services,145000,Connections UK,14/11/2023,30114918,740,0,Materials,Event Management Agencies,Invoice,BACS,No,18/10/2023 00:00,2023,7,4488,K5551,Fleet Workshops,D2003,Materials,W3A48,Current Service Costs - Fleet Management,W3A,Current Service Costs adjustment,W3,Current Service Costs,W,Other Operating Income and Expenditure
GUILDFORD BOROUGH COUNCIL,Environmental Services,145000,Connections UK,21/11/2023,30114966,290,0,Materials,Event Management Agencies,Invoice,BACS,No,25/10/2023 00:00,2023,7,4491,K5551,Fleet Workshops,D2003,Materials,W3A48,Current Service Costs - Fleet Management,W3A,Current Service Costs adjustment,W3,Current Service Costs,W,Other Operating Income and Expenditure
GUILDFORD BOROUGH COUNCIL,Environmental Services,145000,Connections UK,28/11/2023,30115355,280.55,0,Materials,Event Management Agencies,Invoice,BACS,No,01/11/2023 00:00,2023,8,4498,K5551,Fleet Workshops,D2003,Materials,W3A48,Current Service Costs - Fleet Management,W3A,Current Service Costs adjustment,W3,Current Service Costs,W,Other Operating Income and Expenditure
GUILDFORD BOROUGH COUNCIL,Environmental Services,145000,Connections UK,05/12/2023,30116039,340,0,Materials,Event Management Agencies,Invoice,BACS,No,08/11/2023 00:00,2023,8,4503,K5551,Fleet Workshops,D2003,Materials,W3A48,Current Service Costs - Fleet Management,W3A,Current Service Costs adjustment,W3,Current Service Costs,W,Other Operating Income and Expenditure
GUILDFORD BOROUGH COUNCIL,Environmental Services,145000,Connections UK,05/12/2023,30116056,283.7,0,Materials,Event Management Agencies,Invoice,BACS,No,08/11/2023 00:00,2023,8,4504,K5551,Fleet Workshops,D2003,Materials,W3A48,Current Service Costs - Fleet Management,W3A,Current Service Costs adjustment,W3,Current Service Costs,W,Other Operating Income and Expenditure
GUILDFORD BOROUGH COUNCIL,Environmental Services,145000,Connections UK,12/12/2023,30116225,285.85,0,Materials,Event Management Agencies,Invoice,BACS,No,15/11/2023 00:00,2023,8,4509,K5551,Fleet Workshops,D2003,Materials,W3A48,Current Service Costs - Fleet Management,W3A,Current Service Costs adjustment,W3,Current Service Costs,W,Other Operating Income and Expenditure
GUILDFORD BOROUGH COUNCIL,Environmental Services,145000,Connections UK,12/12/2023,30116216,320,0,Materials,Event Management Agencies,Invoice,BACS,No,15/11/2023 00:00,2023,8,4510,K5551,Fleet Workshops,D2003,Materials,W3A48,Current Service Costs - Fleet Management,W3A,Current Service Costs adjustment,W3,Current Service Costs,W,Other Operating Income and Expenditure
GUILDFORD BOROUGH COUNCIL,Environmental Services,145000,Connections UK,12/12/2023,30116224,320,0,Materials,Event Management Agencies,Invoice,BACS,No,15/11/2023 00:00,2023,8,4511,K5551,Fleet Workshops,D2003,Materials,W3A48,Current Service Costs - Fleet Management,W3A,Current Service Costs adjustment,W3,Current Service Costs,W,Other Operating Income and Expenditure
GUILDFORD BOROUGH COUNCIL,Environmental Services,145000,Connections UK,12/12/2023,30116240,320,0,Materials,Event Management Agencies,Invoice,BACS,No,15/11/2023 00:00,2023,8,4512,K5551,Fleet Workshops,D2003,Materials,W3A48,Current Service Costs - Fleet Management,W3A,Current Service Costs adjustment,W3,Current Service Costs,W,Other Operating Income and Expenditure
GUILDFORD BOROUGH COUNCIL,Environmental Services,145000,Connections UK,19/12/2023,30116901,380.85,0,Materials,Event Management Agencies,Invoice,BACS,No,22/11/2023 00:00,2023,8,4513,K5551,Fleet Workshops,D2003,Materials,W3A48,Current Service Costs - Fleet Management,W3A,Current Service Costs adjustment,W3,Current Service Costs,W,Other Operating Income and Expenditure
GUILDFORD BOROUGH COUNCIL,Environmental Services,145000,Connections UK,19/12/2023,30116926,293.15,0,Materials,Event Management Agencies,Invoice,BACS,No,22/11/2023 00:00,2023,8,4514,K5551,Fleet Workshops,D2003,Materials,W3A48,Current Service Costs - Fleet Management,W3A,Current Service Costs adjustment,W3,Current Service Costs,W,Other Operating Income and Expenditure
GUILDFORD BOROUGH COUNCIL,Environmental Services,145000,Connections UK,21/12/2023,30117355,280.65,0,Materials,Event Management Agencies,Invoice,BACS,No,01/12/2023 00:00,2023,9,4520,K5551,Fleet Workshops,D2003,Materials,W3A48,Current Service Costs - Fleet Management,W3A,Current Service Costs adjustment,W3,Current Service Costs,W,Other Operating Income and Expenditure
GUILDFORD BOROUGH COUNCIL,Environmental Services,145000,Connections UK,28/12/2023,30117707,270,0,Materials,Event Management Agencies,Invoice,BACS,No,06/12/2023 00:00,2023,9,4522,K5551,Fleet Workshops,D2003,Materials,W3A48,Current Service Costs - Fleet Management,W3A,Current Service Costs adjustment,W3,Current Service Costs,W,Other Operating Income and Expenditure
GUILDFORD BOROUGH COUNCIL,Environmental Services,145000,Connections UK,28/12/2023,30117729,256.25,0,Materials,Event Management Agencies,Invoice,BACS,No,06/12/2023 00:00,2023,9,4523,K5551,Fleet Workshops,D2003,Materials,W3A48,Current Service Costs - Fleet Management,W3A,Current Service Costs adjustment,W3,Current Service Costs,W,Other Operating Income and Expenditure
GUILDFORD BOROUGH COUNCIL,Housing Services,898090,Top Mill Limited,31/10/2023,30113077,560,0,Emergency Accomodation,Hotels,Invoice,BACS,No,02/10/2023 00:00,2023,7,4724,C3311,Homelessness,D8009,Emergency Accomodation,KGU00,Supporting People - Strategy,KGU,Supporting People,KG,Housing General Fund,K,Housing Services
GUILDFORD BOROUGH COUNCIL,Housing Services,898090,Top Mill Limited,28/11/2023,30115509,700,0,Emergency Accomodation,Hotels,Invoice,BACS,No,30/10/2023 00:00,2023,8,4754,C3311,Homelessness,D8009,Emergency Accomodation,KGU00,Supporting People - Strategy,KGU,Supporting People,KG,Housing General Fund,K,Housing Services
GUILDFORD BOROUGH COUNCIL,Housing Services,898090,Top Mill Limited,28/11/2023,30115502,770,0,Emergency Accomodation,Hotels,Invoice,BACS,No,30/10/2023 00:00,2023,8,4755,C3311,Homelessness,D8009,Emergency Accomodation,KGU00,Supporting People - Strategy,KGU,Supporting People,KG,Housing General Fund,K,Housing Services
GUILDFORD BOROUGH COUNCIL,Housing Services,898090,Top Mill Limited,07/12/2023,30116233,700,0,Emergency Accomodation,Hotels,Invoice,BACS,No,13/11/2023 00:00,2023,8,4762,C3311,Homelessness,D8009,Emergency Accomodation,KGU00,Supporting People - Strategy,KGU,Supporting People,KG,Housing General Fund,K,Housing Services
GUILDFORD BOROUGH COUNCIL,Housing Services,898090,Top Mill Limited,07/12/2023,30116239,700,0,Emergency Accomodation,Hotels,Invoice,BACS,No,13/11/2023 00:00,2023,8,4763,C3311,Homelessness,D8009,Emergency Accomodation,KGU00,Supporting People - Strategy,KGU,Supporting People,KG,Housing General Fund,K,Housing Services
GUILDFORD BOROUGH COUNCIL,Housing Services,898090,Top Mill Limited,07/12/2023,30116219,300,0,Emergency Accomodation,Hotels,Invoice,BACS,No,13/11/2023 00:00,2023,8,4765,C3311,Homelessness,D8009,Emergency Accomodation,KGU00,Supporting People - Strategy,KGU,Supporting People,KG,Housing General Fund,K,Housing Services
GUILDFORD BOROUGH COUNCIL,Housing Services,898090,Top Mill Limited,21/12/2023,30117329,600,0,Emergency Accomodation,Hotels,Invoice,BACS,No,28/11/2023 00:00,2023,9,4772,C3311,Homelessness,D8009,Emergency Accomodation,KGU00,Supporting People - Strategy,KGU,Supporting People,KG,Housing General Fund,K,Housing Services
GUILDFORD BOROUGH COUNCIL,Housing Services,898090,Top Mill Limited,21/12/2023,30117373,700,0,Emergency Accomodation,Hotels,Invoice,BACS,No,27/11/2023 00:00,2023,9,4774,C3311,Homelessness,D8009,Emergency Accomodation,KGU00,Supporting People - Strategy,KGU,Supporting People,KG,Housing General Fund,K,Housing Services
GUILDFORD BOROUGH COUNCIL,Renovations,1001036,Vistar Construction Ltd,12/12/2023,30117823,10615,0,Contractor Payments,,Invoice,BACS,No,11/10/2023 00:00,2023,9,4814,N40295,Disabled adaptations,1233,Contractor Payments,XXX99,*** UNASSIGNED ***,WCC,CEC Recharges,WC,CEC Recharges,A,Central Services
GUILDFORD BOROUGH COUNCIL,Renovations,1001036,Vistar Construction Ltd,12/12/2023,30117824,14450,0,Contractor Payments,,Invoice,BACS,No,17/11/2023 00:00,2023,9,4832,N40295,Disabled adaptations,1233,Contractor Payments,XXX99,*** UNASSIGNED ***,WCC,CEC Recharges,WC,CEC Recharges,A,Central Services
GUILDFORD BOROUGH COUNCIL,Organisational Development,1001011,Medigold Health Consultancy Limited,28/12/2023,30117622,632,0,Staff Training,,Invoice,BACS,No,06/12/2023 00:00,2023,9,5320,G2555,HR Services,A7100,Staff Training,DBX70,Other Management Costs,DBX,Support Service and Management Costs,DB,Children's Social Care,E,Childrens and Education Services
GUILDFORD BOROUGH COUNCIL,Environmental Services,668590,Land Skills Training & Assessments Ltd,19/12/2023,30117881,608.68,0,Staff Training,Other Training Providers,Invoice,BACS,No,22/11/2023 00:00,2023,9,5382,A1100,Horticulture,A7100,Staff Training,CCE00,Community Parks & Open Spaces,CCE,Open Spaces,CC,Cultural & Related Services,C,"Cultural, Environmental & Planning Services"
GUILDFORD BOROUGH COUNCIL,Environmental Services,668590,Land Skills Training & Assessments Ltd,19/12/2023,30116963,1437.32,0,Staff Training,Other Training Providers,Invoice,BACS,No,22/11/2023 00:00,2023,8,5383,A1100,Horticulture,A7100,Staff Training,CCE00,Community Parks & Open Spaces,CCE,Open Spaces,CC,Cultural & Related Services,C,"Cultural, Environmental & Planning Services"
GUILDFORD BOROUGH COUNCIL,Environmental Services,668590,Land Skills Training & Assessments Ltd,19/12/2023,30117555,1722,0,Staff Training,Other Training Providers,Invoice,BACS,No,22/11/2023 00:00,2023,9,5384,A1100,Horticulture,A7100,Staff Training,CCE00,Community Parks & Open Spaces,CCE,Open Spaces,CC,Cultural & Related Services,C,"Cultural, Environmental & Planning Services"
GUILDFORD BOROUGH COUNCIL,Environmental Services,668590,Land Skills Training & Assessments Ltd,19/12/2023,30116995,1541,0,Staff Training,Other Training Providers,Invoice,BACS,No,22/11/2023 00:00,2023,8,5385,A1100,Horticulture,A7100,Staff Training,CCE00,Community Parks & Open Spaces,CCE,Open Spaces,CC,Cultural & Related Services,C,"Cultural, Environmental & Planning Services"
GUILDFORD BOROUGH COUNCIL,Environmental Services,668590,Land Skills Training & Assessments Ltd,19/12/2023,30116954,1856,0,Staff Training,Other Training Providers,Invoice,BACS,No,22/11/2023 00:00,2023,8,5386,A1100,Horticulture,A7100,Staff Training,CCE00,Community Parks & Open Spaces,CCE,Open Spaces,CC,Cultural & Related Services,C,"Cultural, Environmental & Planning Services"
GUILDFORD BOROUGH COUNCIL,Environmental Services,668590,Land Skills Training & Assessments Ltd,19/12/2023,30116987,1270.5,0,Staff Training,Other Training Providers,Invoice,BACS,No,22/11/2023 00:00,2023,8,5387,A1100,Horticulture,A7100,Staff Training,CCE00,Community Parks & Open Spaces,CCE,Open Spaces,CC,Cultural & Related Services,C,"Cultural, Environmental & Planning Services"
GUILDFORD BOROUGH COUNCIL,Environmental Services,1000922,Green Gardens,26/10/2023,30114709,1670,0,Agency,,Invoice,BACS,No,23/10/2023 00:00,2023,7,5488,A1410,Cemeteries - Admin,A5191,Agency,CEA00,Cemeteries,CEA,"Cemetery, Cremation and Mortuary Services",CE,Environmental & Regulatory Services,C,"Cultural, Environmental & Planning Services"
GUILDFORD BOROUGH COUNCIL,Environmental Services,1000922,Green Gardens,07/11/2023,30114697,1370,0,Agency,,Invoice,BACS,No,23/10/2023 00:00,2023,8,5489,A1410,Cemeteries - Admin,A5191,Agency,CEA00,Cemeteries,CEA,"Cemetery, Cremation and Mortuary Services",CE,Environmental & Regulatory Services,C,"Cultural, Environmental & Planning Services"
GUILDFORD BOROUGH COUNCIL,Environmental Services,1000922,Green Gardens,07/11/2023,30114763,2350,0,Agency,,Invoice,BACS,No,25/10/2023 00:00,2023,8,5492,A1410,Cemeteries - Admin,A5191,Agency,CEA00,Cemeteries,CEA,"Cemetery, Cremation and Mortuary Services",CE,Environmental & Regulatory Services,C,"Cultural, Environmental & Planning Services"
GUILDFORD BOROUGH COUNCIL,HRA Service Delivery,959140,Corrigenda Limited,07/11/2023,30115426,265.21,0,Asset Maintenance,"Plumbing, Heating And Ac (Hvac) Equipment Suppliers",Invoice,BACS,No,13/10/2023 00:00,2023,8,6147,M5107,Repairs-Shelt-Cyclical (BHS),B1001,Asset Maintenance,W3A05,Current Service Costs - Housing Services,W3A,Current Service Costs adjustment,W3,Current Service Costs,W,Other Operating Income and Expenditure
GUILDFORD BOROUGH COUNCIL,HRA Service Delivery,959140,Corrigenda Limited,07/11/2023,30115426,337.54,0,Asset Maintenance,"Plumbing, Heating And Ac (Hvac) Equipment Suppliers",Invoice,BACS,No,13/10/2023 00:00,2023,8,6147,M5107,Repairs-Shelt-Cyclical (BHS),B1001,Asset Maintenance,W3A05,Current Service Costs - Housing Services,W3A,Current Service Costs adjustment,W3,Current Service Costs,W,Other Operating Income and Expenditure
GUILDFORD BOROUGH COUNCIL,New Build,1000049,The Ecology Co-operation Ltd,26/10/2023,30112977,639.45,0,Consultants Fees,,Invoice,BACS,No,03/10/2023 00:00,2023,7,6224,N30022,Manor House Flats,1221,Consultants Fees,XXX99,*** UNASSIGNED ***,WCC,CEC Recharges,WC,CEC Recharges,A,Central Services
GUILDFORD BOROUGH COUNCIL,Environmental Services,198500,Farnborough Communications,05/12/2023,30115793,950,0,Contractors,Radio Communications Equipment Providers,Invoice,BACS,No,08/11/2023 00:00,2023,8,6236,K4551,Street Cleansing,D6012,Contractors,CES00,Street Cleansing (not chargeable to highways),CES,Street Cleansing (not chargeable to highways),CE,Environmental & Regulatory Services,C,"Cultural, Environmental & Planning Services"
GUILDFORD BOROUGH COUNCIL,Commercial Services,1000761,Jade Security Services Ltd,24/10/2023,30114361,2349.1,0,Bank Charges,,Invoice,BACS,No,30/09/2023 00:00,2023,7,6259,B2111,Car Parks - Administration,D8002,Bank Charges,HTP10,Off-Street Parking,HTP,Parking Services,HT,"Highways, Roads and Transport Services",H,"Highways, Roads and Transport Services"
GUILDFORD BOROUGH COUNCIL,Commercial Services,1000761,Jade Security Services Ltd,24/10/2023,30114361,10703,0,Bank Charges,,Invoice,BACS,No,30/09/2023 00:00,2023,7,6259,B2111,Car Parks - Administration,D8002,Bank Charges,HTP10,Off-Street Parking,HTP,Parking Services,HT,"Highways, Roads and Transport Services",H,"Highways, Roads and Transport Services"
GUILDFORD BOROUGH COUNCIL,Environmental Services,941010,A1 Wokingham Wet Waste Limited Ltd,23/11/2023,30113146,1636.8,0,Services,Car And Van Parts Suppliers,Invoice,BACS,No,29/09/2023 00:00,2023,8,6264,B4452,Woking Road Depot,D6004,Services,XXX99,*** UNASSIGNED ***,WCC,CEC Recharges,WC,CEC Recharges,A,Central Services
GUILDFORD BOROUGH COUNCIL,Commercial Services,1000761,Jade Security Services Ltd,23/11/2023,30116017,13232.8,0,Bank Charges,,Invoice,BACS,No,31/10/2023 00:00,2023,8,6408,B2216,General Upkeep- Urban Car Pks,D8002,Bank Charges,HTP10,Off-Street Parking,HTP,Parking Services,HT,"Highways, Roads and Transport Services",H,"Highways, Roads and Transport Services"
GUILDFORD BOROUGH COUNCIL,Commercial Services,1000843,Jokers Comedy Ltd,14/12/2023,30116559,975,0,"Advertising, Publicity & Promotion",,Invoice,BACS,No,20/11/2023 00:00,2023,8,6535,A1850,Events,D5002,"Advertising, Publicity & Promotion",CCD00,Community Centres and Public Halls,CCD,Recreation & Sport,CC,Cultural & Related Services,C,"Cultural, Environmental & Planning Services"
GUILDFORD BOROUGH COUNCIL,HRA Service Delivery,959140,Corrigenda Limited,12/12/2023,30117914,1228.44,0,Asset Maintenance,"Plumbing, Heating And Ac (Hvac) Equipment Suppliers",Invoice,BACS,No,31/10/2023 00:00,2023,9,6548,M5107,Repairs-Shelt-Cyclical (BHS),B1001,Asset Maintenance,W3A05,Current Service Costs - Housing Services,W3A,Current Service Costs adjustment,W3,Current Service Costs,W,Other Operating Income and Expenditure
GUILDFORD BOROUGH COUNCIL,HRA Service Delivery,959140,Corrigenda Limited,12/12/2023,30117914,687.15,0,Asset Maintenance,"Plumbing, Heating And Ac (Hvac) Equipment Suppliers",Invoice,BACS,No,31/10/2023 00:00,2023,9,6548,M5107,Repairs-Shelt-Cyclical (BHS),B1001,Asset Maintenance,W3A05,Current Service Costs - Housing Services,W3A,Current Service Costs adjustment,W3,Current Service Costs,W,Other Operating Income and Expenditure
GUILDFORD BOROUGH COUNCIL,HRA Service Delivery,959140,Corrigenda Limited,12/12/2023,30117914,470.15,0,Asset Maintenance,"Plumbing, Heating And Ac (Hvac) Equipment Suppliers",Invoice,BACS,No,31/10/2023 00:00,2023,9,6548,M5107,Repairs-Shelt-Cyclical (BHS),B1001,Asset Maintenance,W3A05,Current Service Costs - Housing Services,W3A,Current Service Costs adjustment,W3,Current Service Costs,W,Other Operating Income and Expenditure
GUILDFORD BOROUGH COUNCIL,Environmental Services,959140,Corrigenda Limited,23/11/2023,30116643,378.4,0,Asset Maintenance,"Plumbing, Heating And Ac (Hvac) Equipment Suppliers",Invoice,BACS,No,31/10/2023 00:00,2023,8,6565,B4452,Woking Road Depot,B1001,Asset Maintenance,XXX99,*** UNASSIGNED ***,WCC,CEC Recharges,WC,CEC Recharges,A,Central Services
GUILDFORD BOROUGH COUNCIL,HRA Service Delivery,959140,Corrigenda Limited,23/11/2023,30116643,487,0,Asset Maintenance,"Plumbing, Heating And Ac (Hvac) Equipment Suppliers",Invoice,BACS,No,31/10/2023 00:00,2023,8,6565,M5106,Repairs-Shelt-Responsive (BHS),B1001,Asset Maintenance,W3A05,Current Service Costs - Housing Services,W3A,Current Service Costs adjustment,W3,Current Service Costs,W,Other Operating Income and Expenditure
GUILDFORD BOROUGH COUNCIL,HRA Service Delivery,959140,Corrigenda Limited,23/11/2023,30116643,500.4,0,Asset Maintenance,"Plumbing, Heating And Ac (Hvac) Equipment Suppliers",Invoice,BACS,No,31/10/2023 00:00,2023,8,6565,M5106,Repairs-Shelt-Responsive (BHS),B1001,Asset Maintenance,W3A05,Current Service Costs - Housing Services,W3A,Current Service Costs adjustment,W3,Current Service Costs,W,Other Operating Income and Expenditure
GUILDFORD BOROUGH COUNCIL,HRA Service Delivery,959140,Corrigenda Limited,23/11/2023,30116643,1064.51,0,Asset Maintenance,"Plumbing, Heating And Ac (Hvac) Equipment Suppliers",Invoice,BACS,No,31/10/2023 00:00,2023,8,6565,M5113,Repairs-Responsive (BHS),B1001,Asset Maintenance,W3A05,Current Service Costs - Housing Services,W3A,Current Service Costs adjustment,W3,Current Service Costs,W,Other Operating Income and Expenditure
GUILDFORD BOROUGH COUNCIL,Environmental Services,959140,Corrigenda Limited,23/11/2023,30116643,277.27,0,Asset Maintenance,"Plumbing, Heating And Ac (Hvac) Equipment Suppliers",Invoice,BACS,No,31/10/2023 00:00,2023,8,6565,A1500,Crematorium,B1001,Asset Maintenance,CEA10,Crematoria,CEA,"Cemetery, Cremation and Mortuary Services",CE,Environmental & Regulatory Services,C,"Cultural, Environmental & Planning Services"
GUILDFORD BOROUGH COUNCIL,HRA Service Delivery,959140,Corrigenda Limited,23/11/2023,30116643,295.33,0,Asset Maintenance,"Plumbing, Heating And Ac (Hvac) Equipment Suppliers",Invoice,BACS,No,31/10/2023 00:00,2023,8,6565,M5106,Repairs-Shelt-Responsive (BHS),B1001,Asset Maintenance,W3A05,Current Service Costs - Housing Services,W3A,Current Service Costs adjustment,W3,Current Service Costs,W,Other Operating Income and Expenditure
GUILDFORD BOROUGH COUNCIL,HRA Service Delivery,959140,Corrigenda Limited,23/11/2023,30116643,289.32,0,Asset Maintenance,"Plumbing, Heating And Ac (Hvac) Equipment Suppliers",Invoice,BACS,No,31/10/2023 00:00,2023,8,6565,M2736,Friary House 1-61 (61),B1001,Asset Maintenance,W3A05,Current Service Costs - Housing Services,W3A,Current Service Costs adjustment,W3,Current Service Costs,W,Other Operating Income and Expenditure
GUILDFORD BOROUGH COUNCIL,Community Services,959140,Corrigenda Limited,23/11/2023,30116643,451.2,0,Asset Maintenance,"Plumbing, Heating And Ac (Hvac) Equipment Suppliers",Invoice,BACS,No,31/10/2023 00:00,2023,8,6565,A8121,Bellfields Youth and Community Centre,B1001,Asset Maintenance,CCD00,Community Centres and Public Halls,CCD,Recreation & Sport,CC,Cultural & Related Services,C,"Cultural, Environmental & Planning Services"
GUILDFORD BOROUGH COUNCIL,Assets and Property,959140,Corrigenda Limited,23/11/2023,30116643,385.76,0,Asset Maintenance,"Plumbing, Heating And Ac (Hvac) Equipment Suppliers",Invoice,BACS,No,31/10/2023 00:00,2023,8,6565,G7515,Old Millmead House,B1001,Asset Maintenance,DBX45,Property Services,DBX,Support Service and Management Costs,DB,Children's Social Care,E,Childrens and Education Services
GUILDFORD BOROUGH COUNCIL,HRA Service Delivery,959140,Corrigenda Limited,23/11/2023,30116643,470.56,0,Asset Maintenance,"Plumbing, Heating And Ac (Hvac) Equipment Suppliers",Invoice,BACS,No,31/10/2023 00:00,2023,8,6565,M5113,Repairs-Responsive (BHS),B1001,Asset Maintenance,W3A05,Current Service Costs - Housing Services,W3A,Current Service Costs adjustment,W3,Current Service Costs,W,Other Operating Income and Expenditure
GUILDFORD BOROUGH COUNCIL,Commercial Services,1000761,Jade Security Services Ltd,21/12/2023,30118274,11328.5,0,Bank Charges,,Invoice,BACS,No,30/11/2023 00:00,2023,9,6566,B2216,General Upkeep- Urban Car Pks,D8002,Bank Charges,HTP10,Off-Street Parking,HTP,Parking Services,HT,"Highways, Roads and Transport Services",H,"Highways, Roads and Transport Services"
GUILDFORD BOROUGH COUNCIL,Environmental Services,941010,A1 Wokingham Wet Waste Limited Ltd,21/12/2023,30117553,884.4,0,Services,Car And Van Parts Suppliers,Invoice,BACS,No,30/11/2023 00:00,2023,9,7316,B4452,Woking Road Depot,D6004,Services,XXX99,*** UNASSIGNED ***,WCC,CEC Recharges,WC,CEC Recharges,A,Central Services
GUILDFORD BOROUGH COUNCIL,Environmental Services,1000265,Maps Platforms,21/11/2023,30115155,1900,0,External Vehicle Hire,,Invoice,BACS,No,26/10/2023 00:00,2023,8,7673,K5551,Fleet Workshops,C3001,External Vehicle Hire,W3A48,Current Service Costs - Fleet Management,W3A,Current Service Costs adjustment,W3,Current Service Costs,W,Other Operating Income and Expenditure
GUILDFORD BOROUGH COUNCIL,Environmental Services,1000265,Maps Platforms,12/12/2023,30116980,2375,0,External Vehicle Hire,,Invoice,BACS,No,17/11/2023 00:00,2023,8,7725,K5551,Fleet Workshops,C3001,External Vehicle Hire,W3A48,Current Service Costs - Fleet Management,W3A,Current Service Costs adjustment,W3,Current Service Costs,W,Other Operating Income and Expenditure
GUILDFORD BOROUGH COUNCIL,Environmental Services,1000265,Maps Platforms,28/12/2023,30118883,1900,0,External Vehicle Hire,,Invoice,CHAPS,No,15/12/2023 00:00,2023,9,7791,K5551,Fleet Workshops,C3001,External Vehicle Hire,W3A48,Current Service Costs - Fleet Management,W3A,Current Service Costs adjustment,W3,Current Service Costs,W,Other Operating Income and Expenditure
GUILDFORD BOROUGH COUNCIL,Environmental Services,232320,Treeworks Services Ltd,28/12/2023,30118139,1000,0,ICT Software,Tree Work Contractors,Invoice,BACS,No,08/12/2023 00:00,2023,9,7901,A1300,Trees And Countryside,D7002,ICT Software,CCE00,Community Parks & Open Spaces,CCE,Open Spaces,CC,Cultural & Related Services,C,"Cultural, Environmental & Planning Services"
GUILDFORD BOROUGH COUNCIL,HRA Service Delivery,358720,J K Build Ltd (CIS),23/11/2023,30116650,4605,0,Asset Maintenance,,Invoice,BACS,No,03/10/2023 00:00,2023,8,7965,M5113,Repairs-Responsive (BHS),B1001,Asset Maintenance,W3A05,Current Service Costs - Housing Services,W3A,Current Service Costs adjustment,W3,Current Service Costs,W,Other Operating Income and Expenditure
GUILDFORD BOROUGH COUNCIL,HRA Service Delivery,358720,J K Build Ltd (CIS),24/10/2023,30114565,1650,0,Asset Maintenance,,Invoice,BACS,No,10/10/2023 00:00,2023,7,7997,M5105,Repairs-Garages (BHS),B1001,Asset Maintenance,W3A05,Current Service Costs - Housing Services,W3A,Current Service Costs adjustment,W3,Current Service Costs,W,Other Operating Income and Expenditure
GUILDFORD BOROUGH COUNCIL,HRA Service Delivery,358720,J K Build Ltd (CIS),31/10/2023,30115013,3655,0,Asset Maintenance,,Invoice,BACS,No,13/10/2023 00:00,2023,7,8002,M5113,Repairs-Responsive (BHS),B1001,Asset Maintenance,W3A05,Current Service Costs - Housing Services,W3A,Current Service Costs adjustment,W3,Current Service Costs,W,Other Operating Income and Expenditure
GUILDFORD BOROUGH COUNCIL,Environmental Services,320160,A & P Services (Surrey) Ltd,24/10/2023,30112663,516.98,0,Services,Agricultural Engineers,Invoice,BACS,No,27/09/2023 00:00,2023,7,8015,K5551,Fleet Workshops,D6004,Services,W3A48,Current Service Costs - Fleet Management,W3A,Current Service Costs adjustment,W3,Current Service Costs,W,Other Operating Income and Expenditure
GUILDFORD BOROUGH COUNCIL,Environmental Services,320160,A & P Services (Surrey) Ltd,24/10/2023,30112676,1321.92,0,Services,Agricultural Engineers,Invoice,BACS,No,27/09/2023 00:00,2023,7,8018,K5551,Fleet Workshops,D6004,Services,W3A48,Current Service Costs - Fleet Management,W3A,Current Service Costs adjustment,W3,Current Service Costs,W,Other Operating Income and Expenditure
GUILDFORD BOROUGH COUNCIL,HRA Service Delivery,358720,J K Build Ltd (CIS),07/11/2023,30115427,970,0,Asset Maintenance,,Invoice,BACS,No,25/10/2023 00:00,2023,8,8035,M5113,Repairs-Responsive (BHS),B1001,Asset Maintenance,W3A05,Current Service Costs - Housing Services,W3A,Current Service Costs adjustment,W3,Current Service Costs,W,Other Operating Income and Expenditure
GUILDFORD BOROUGH COUNCIL,HRA Service Delivery,358720,J K Build Ltd (CIS),07/11/2023,30115398,1680,0,Asset Maintenance,,Invoice,BACS,No,26/10/2023 00:00,2023,8,8036,M5113,Repairs-Responsive (BHS),B1001,Asset Maintenance,W3A05,Current Service Costs - Housing Services,W3A,Current Service Costs adjustment,W3,Current Service Costs,W,Other Operating Income and Expenditure
GUILDFORD BOROUGH COUNCIL,Environmental Services,320160,A & P Services (Surrey) Ltd,02/11/2023,30114481,288.63,0,Services,Agricultural Engineers,Invoice,BACS,No,09/10/2023 00:00,2023,7,8049,K5551,Fleet Workshops,D6004,Services,W3A48,Current Service Costs - Fleet Management,W3A,Current Service Costs adjustment,W3,Current Service Costs,W,Other Operating Income and Expenditure
GUILDFORD BOROUGH COUNCIL,Environmental Services,320160,A & P Services (Surrey) Ltd,23/11/2023,30115477,293.3,0,Services,Agricultural Engineers,Invoice,BACS,No,30/10/2023 00:00,2023,8,8077,K5551,Fleet Workshops,D6004,Services,W3A48,Current Service Costs - Fleet Management,W3A,Current Service Costs adjustment,W3,Current Service Costs,W,Other Operating Income and Expenditure
GUILDFORD BOROUGH COUNCIL,Environmental Services,320160,A & P Services (Surrey) Ltd,07/12/2023,30115890,605,0,Repair And Maintenance Of Vehicles,Agricultural Engineers,Invoice,BACS,No,13/11/2023 00:00,2023,8,8088,A1100,Horticulture,C1002,Repair And Maintenance Of Vehicles,CCE00,Community Parks & Open Spaces,CCE,Open Spaces,CC,Cultural & Related Services,C,"Cultural, Environmental & Planning Services"
GUILDFORD BOROUGH COUNCIL,HRA Service Delivery,358720,J K Build Ltd (CIS),12/12/2023,30117916,720,0,Asset Maintenance,,Invoice,BACS,No,17/11/2023 00:00,2023,9,8088,M5113,Repairs-Responsive (BHS),B1001,Asset Maintenance,W3A05,Current Service Costs - Housing Services,W3A,Current Service Costs adjustment,W3,Current Service Costs,W,Other Operating Income and Expenditure
GUILDFORD BOROUGH COUNCIL,Environmental Services,320160,A & P Services (Surrey) Ltd,14/12/2023,30116511,671.64,0,Repair And Maintenance Of Vehicles,Agricultural Engineers,Invoice,BACS,No,21/11/2023 00:00,2023,8,8098,A1100,Horticulture,C1002,Repair And Maintenance Of Vehicles,CCE00,Community Parks & Open Spaces,CCE,Open Spaces,CC,Cultural & Related Services,C,"Cultural, Environmental & Planning Services"
GUILDFORD BOROUGH COUNCIL,HRA Service Delivery,358720,J K Build Ltd (CIS),19/12/2023,30118497,680,0,Asset Maintenance,,Invoice,BACS,No,23/11/2023 00:00,2023,9,8108,M5113,Repairs-Responsive (BHS),B1001,Asset Maintenance,W3A05,Current Service Costs - Housing Services,W3A,Current Service Costs adjustment,W3,Current Service Costs,W,Other Operating Income and Expenditure
GUILDFORD BOROUGH COUNCIL,HRA Service Delivery,358720,J K Build Ltd (CIS),19/12/2023,30118498,950,0,Asset Maintenance,,Invoice,BACS,No,23/11/2023 00:00,2023,9,8109,M5113,Repairs-Responsive (BHS),B1001,Asset Maintenance,W3A05,Current Service Costs - Housing Services,W3A,Current Service Costs adjustment,W3,Current Service Costs,W,Other Operating Income and Expenditure
GUILDFORD BOROUGH COUNCIL,Renovations,342910,Rand Associates Consultancy Services Ltd,24/10/2023,30113125,14525.44,0,Consultants Fees,Quantity Surveyors,Invoice,BACS,No,30/09/2023 00:00,2023,7,9242,N40291,Condition Appraisals,1221,Consultants Fees,XXX99,*** UNASSIGNED ***,WCC,CEC Recharges,WC,CEC Recharges,A,Central Services
GUILDFORD BOROUGH COUNCIL,Renovations,342910,Rand Associates Consultancy Services Ltd,23/11/2023,30115270,11314.07,0,Consultants Fees,Quantity Surveyors,Invoice,BACS,No,31/10/2023 00:00,2023,8,9282,N40291,Condition Appraisals,1221,Consultants Fees,XXX99,*** UNASSIGNED ***,WCC,CEC Recharges,WC,CEC Recharges,A,Central Services
GUILDFORD BOROUGH COUNCIL,HRA Service Delivery,538000,Alpine Preservations Limited,23/11/2023,30116690,513,0,Asset Maintenance,Building Damage Prevention Contractors,Invoice,BACS,No,07/11/2023 00:00,2023,8,9284,M5113,Repairs-Responsive (BHS),B1001,Asset Maintenance,W3A05,Current Service Costs - Housing Services,W3A,Current Service Costs adjustment,W3,Current Service Costs,W,Other Operating Income and Expenditure
GUILDFORD BOROUGH COUNCIL,Environmental Services,204900,Forest & Garden Timber Services,05/10/2023,30112838,3000,0,Contractors,,Invoice,BACS,No,29/09/2023 00:00,2023,7,9297,A1300,Trees And Countryside,D6012,Contractors,CCE00,Community Parks & Open Spaces,CCE,Open Spaces,CC,Cultural & Related Services,C,"Cultural, Environmental & Planning Services"
GUILDFORD BOROUGH COUNCIL,HRA Service Delivery,204900,Forest & Garden Timber Services,03/10/2023,30112847,280,0,Grounds Maintenance,,Invoice,BACS,No,29/09/2023 00:00,2023,7,9298,M1151,Tenants Services (BHS),B6001,Grounds Maintenance,W3A05,Current Service Costs - Housing Services,W3A,Current Service Costs adjustment,W3,Current Service Costs,W,Other Operating Income and Expenditure
GUILDFORD BOROUGH COUNCIL,Environmental Services,204900,Forest & Garden Timber Services,10/10/2023,30113155,1220,0,Grounds Maintenance,,Invoice,BACS,No,05/10/2023 00:00,2023,7,9300,A1300,Trees And Countryside,B6001,Grounds Maintenance,CCE00,Community Parks & Open Spaces,CCE,Open Spaces,CC,Cultural & Related Services,C,"Cultural, Environmental & Planning Services"
GUILDFORD BOROUGH COUNCIL,Renovations,342910,Rand Associates Consultancy Services Ltd,21/12/2023,30117357,11144.05,0,Consultants Fees,Quantity Surveyors,Invoice,BACS,No,30/11/2023 00:00,2023,9,9322,N40291,Condition Appraisals,1221,Consultants Fees,XXX99,*** UNASSIGNED ***,WCC,CEC Recharges,WC,CEC Recharges,A,Central Services
GUILDFORD BOROUGH COUNCIL,HRA Service Delivery,204900,Forest & Garden Timber Services,28/11/2023,30116815,330,0,Grounds Maintenance,,Invoice,BACS,No,23/11/2023 00:00,2023,8,9326,M4615,Env Wks To Estate (BHS),B6001,Grounds Maintenance,W3A05,Current Service Costs - Housing Services,W3A,Current Service Costs adjustment,W3,Current Service Costs,W,Other Operating Income and Expenditure
GUILDFORD BOROUGH COUNCIL,HRA Service Delivery,204900,Forest & Garden Timber Services,28/11/2023,30116800,440,0,Grounds Maintenance,,Invoice,BACS,No,23/11/2023 00:00,2023,8,9327,M4615,Env Wks To Estate (BHS),B6001,Grounds Maintenance,W3A05,Current Service Costs - Housing Services,W3A,Current Service Costs adjustment,W3,Current Service Costs,W,Other Operating Income and Expenditure
GUILDFORD BOROUGH COUNCIL,Renovations,342910,Rand Associates Consultancy Services Ltd,22/12/2023,30118863,2803.17,0,Consultants Fees,Quantity Surveyors,Invoice,CHAPS,No,21/12/2023 00:00,2023,9,9363,N40291,Condition Appraisals,1221,Consultants Fees,XXX99,*** UNASSIGNED ***,WCC,CEC Recharges,WC,CEC Recharges,A,Central Services
GUILDFORD BOROUGH COUNCIL,Assets and Property,711600,Anonymous,30/11/2023,30116816,378,0,Asset Maintenance,Sewerage And Drainage Service Providers,Invoice,BACS,No,23/11/2023 00:00,2023,8,9931,B5511,Land Drainage,B1001,Asset Maintenance,CEK10,Land Drainage and related work excluding levy,CEK,Flood Defences & Land Drainage,CE,Environmental & Regulatory Services,C,"Cultural, Environmental & Planning Services"
GUILDFORD BOROUGH COUNCIL,Housing Services,147690,Fenay Machine Safety Limited,21/11/2023,30115220,1105,0,Services,Health And Safety Consultants,Invoice,BACS,No,27/10/2023 00:00,2023,8,10973,K1515,Building Maintenance,D6004,Services,DBX45,Property Services,DBX,Support Service and Management Costs,DB,Children's Social Care,E,Childrens and Education Services
GUILDFORD BOROUGH COUNCIL,New Build,1000965,Broad Oak Tree Consultants Limited,05/12/2023,30115842,560,0,Consultants Fees,,Invoice,BACS,No,09/11/2023 00:00,2023,8,11151,N30022,Manor House Flats,1221,Consultants Fees,XXX99,*** UNASSIGNED ***,WCC,CEC Recharges,WC,CEC Recharges,A,Central Services
GUILDFORD BOROUGH COUNCIL,Industrial Estates,698460,Ermc Limited,24/10/2023,30112601,780,0,Consultants Fees,Construction Project Management Consultants,Invoice,BACS,No,27/09/2023 00:00,2023,7,11188,P72037,Midleton Ind Est Redevelop,1221,Consultants Fees,XXX99,*** UNASSIGNED ***,WCC,CEC Recharges,WC,CEC Recharges,A,Central Services
GUILDFORD BOROUGH COUNCIL,New Build,698460,Ermc Limited,24/10/2023,30112917,375,0,Consultants Fees,Construction Project Management Consultants,Invoice,BACS,No,30/09/2023 00:00,2023,7,11208,N30027,Station Road East,1221,Consultants Fees,XXX99,*** UNASSIGNED ***,WCC,CEC Recharges,WC,CEC Recharges,A,Central Services
GUILDFORD BOROUGH COUNCIL,New Build,698460,Ermc Limited,21/11/2023,30115040,325,0,Consultants Fees,Construction Project Management Consultants,Invoice,BACS,No,27/10/2023 00:00,2023,8,11275,N30030,Clover Road Garages,1221,Consultants Fees,XXX99,*** UNASSIGNED ***,WCC,CEC Recharges,WC,CEC Recharges,A,Central Services
GUILDFORD BOROUGH COUNCIL,New Build,698460,Ermc Limited,21/11/2023,30115049,325,0,Consultants Fees,Construction Project Management Consultants,Invoice,BACS,No,27/10/2023 00:00,2023,8,11276,N30031,Rapleys Field,1221,Consultants Fees,XXX99,*** UNASSIGNED ***,WCC,CEC Recharges,WC,CEC Recharges,A,Central Services
GUILDFORD BOROUGH COUNCIL,New Build,698460,Ermc Limited,21/11/2023,30115053,325,0,Consultants Fees,Construction Project Management Consultants,Invoice,BACS,No,27/10/2023 00:00,2023,8,11277,N30032,Georgelands 108,1221,Consultants Fees,XXX99,*** UNASSIGNED ***,WCC,CEC Recharges,WC,CEC Recharges,A,Central Services
GUILDFORD BOROUGH COUNCIL,New Build,698460,Ermc Limited,23/11/2023,30115600,1920,0,Consultants Fees,Construction Project Management Consultants,Invoice,BACS,No,31/10/2023 00:00,2023,8,11288,N30032,Georgelands 108,1221,Consultants Fees,XXX99,*** UNASSIGNED ***,WCC,CEC Recharges,WC,CEC Recharges,A,Central Services
GUILDFORD BOROUGH COUNCIL,New Build,698460,Ermc Limited,23/11/2023,30115608,1344,0,Consultants Fees,Construction Project Management Consultants,Invoice,BACS,No,31/10/2023 00:00,2023,8,11289,N30027,Station Road East,1221,Consultants Fees,XXX99,*** UNASSIGNED ***,WCC,CEC Recharges,WC,CEC Recharges,A,Central Services
GUILDFORD BOROUGH COUNCIL,New Build,698460,Ermc Limited,23/11/2023,30115260,637.5,0,Consultants Fees,Construction Project Management Consultants,Invoice,BACS,No,31/10/2023 00:00,2023,8,11290,N30028,Dunmore Garden Land,1221,Consultants Fees,XXX99,*** UNASSIGNED ***,WCC,CEC Recharges,WC,CEC Recharges,A,Central Services
GUILDFORD BOROUGH COUNCIL,Planning & Development,129780,Surrey Wildlife Trust Ltd (Woking),07/11/2023,30115467,12600,0,Consultancy,Charities And Voluntary Organisations,Invoice,BACS,No,31/10/2023 00:00,2023,8,11486,D5100,Development Control - Fee Earn,D6001,Consultancy,CPC00,Development Control Advice,CPC,Development Control,CP,Planning and Development Services,C,"Cultural, Environmental & Planning Services"
GUILDFORD BOROUGH COUNCIL,HRA Service Delivery,177600,Dryad Tree Specialists Limited,21/11/2023,30116259,560,0,Grounds Maintenance,Tree Work Contractors,Invoice,BACS,No,23/10/2023 00:00,2023,8,11911,M4615,Env Wks To Estate (BHS),B6001,Grounds Maintenance,W3A05,Current Service Costs - Housing Services,W3A,Current Service Costs adjustment,W3,Current Service Costs,W,Other Operating Income and Expenditure
GUILDFORD BOROUGH COUNCIL,Environmental Services,177600,Dryad Tree Specialists Limited,19/12/2023,30116779,560,0,Grounds Maintenance,Tree Work Contractors,Invoice,BACS,No,22/11/2023 00:00,2023,8,11977,A1300,Trees And Countryside,B6001,Grounds Maintenance,CCE00,Community Parks & Open Spaces,CCE,Open Spaces,CC,Cultural & Related Services,C,"Cultural, Environmental & Planning Services"
GUILDFORD BOROUGH COUNCIL,Environmental Services,177600,Dryad Tree Specialists Limited,19/12/2023,30116794,1400,0,Grounds Maintenance,Tree Work Contractors,Invoice,BACS,No,22/11/2023 00:00,2023,8,11978,A1010,SPA Sites,B6001,Grounds Maintenance,CCE00,Community Parks & Open Spaces,CCE,Open Spaces,CC,Cultural & Related Services,C,"Cultural, Environmental & Planning Services"
GUILDFORD BOROUGH COUNCIL,Executive - Miscellaneous,200000,Fidelis Security Limited,02/11/2023,30107448,1438.68,0,Consultants Fees,Security Guards,Invoice,BACS,No,01/07/2023 00:00,2023,8,12193,P79100,Wuv - Allotment Relocation,1221,Consultants Fees,XXX99,*** UNASSIGNED ***,WCC,CEC Recharges,WC,CEC Recharges,A,Central Services
GUILDFORD BOROUGH COUNCIL,Environmental Services,200000,Fidelis Security Limited,09/11/2023,30108660,268.65,0,Contractors,Security Guards,Invoice,BACS,No,01/08/2023 00:00,2023,8,12246,A1700,Parks Ranger Service,D6012,Contractors,CCD20,Sports Development & Community Recreation,CCD,Recreation & Sport,CC,Cultural & Related Services,C,"Cultural, Environmental & Planning Services"
GUILDFORD BOROUGH COUNCIL,Executive - Miscellaneous,200000,Fidelis Security Limited,02/11/2023,30108664,1438.68,0,Consultants Fees,Security Guards,Invoice,BACS,No,01/08/2023 00:00,2023,8,12247,P79100,Wuv - Allotment Relocation,1221,Consultants Fees,XXX99,*** UNASSIGNED ***,WCC,CEC Recharges,WC,CEC Recharges,A,Central Services
GUILDFORD BOROUGH COUNCIL,Executive - Miscellaneous,200000,Fidelis Security Limited,31/10/2023,30113903,953.33,0,Contractor Payments,Security Guards,Invoice,BACS,No,01/10/2023 00:00,2023,7,12335,P79100,Wuv - Allotment Relocation,1233,Contractor Payments,XXX99,*** UNASSIGNED ***,WCC,CEC Recharges,WC,CEC Recharges,A,Central Services
GUILDFORD BOROUGH COUNCIL,Environmental Services,200000,Fidelis Security Limited,17/10/2023,30113841,639.38,0,Contractors,Security Guards,Invoice,BACS,No,01/09/2023 00:00,2023,7,12349,A1410,Cemeteries - Admin,D6012,Contractors,CEA00,Cemeteries,CEA,"Cemetery, Cremation and Mortuary Services",CE,Environmental & Regulatory Services,C,"Cultural, Environmental & Planning Services"
GUILDFORD BOROUGH COUNCIL,Environmental Services,200000,Fidelis Security Limited,31/10/2023,30113826,639.38,0,Contractors,Security Guards,Invoice,BACS,No,01/10/2023 00:00,2023,7,12350,A1410,Cemeteries - Admin,D6012,Contractors,CEA00,Cemeteries,CEA,"Cemetery, Cremation and Mortuary Services",CE,Environmental & Regulatory Services,C,"Cultural, Environmental & Planning Services"
GUILDFORD BOROUGH COUNCIL,Environmental Services,200000,Fidelis Security Limited,17/10/2023,30113822,1083.33,0,Contractors,Security Guards,Invoice,BACS,No,01/09/2023 00:00,2023,7,12351,A1410,Cemeteries - Admin,D6012,Contractors,CEA00,Cemeteries,CEA,"Cemetery, Cremation and Mortuary Services",CE,Environmental & Regulatory Services,C,"Cultural, Environmental & Planning Services"
GUILDFORD BOROUGH COUNCIL,Environmental Services,200000,Fidelis Security Limited,24/10/2023,30113769,1083.33,0,Contractors,Security Guards,Invoice,BACS,No,01/10/2023 00:00,2023,7,12352,A1410,Cemeteries - Admin,D6012,Contractors,CEA00,Cemeteries,CEA,"Cemetery, Cremation and Mortuary Services",CE,Environmental & Regulatory Services,C,"Cultural, Environmental & Planning Services"
GUILDFORD BOROUGH COUNCIL,Environmental Services,200000,Fidelis Security Limited,17/10/2023,30113803,298.5,0,Contractors,Security Guards,Invoice,BACS,No,01/09/2023 00:00,2023,7,12355,A1700,Parks Ranger Service,D6012,Contractors,CCD20,Sports Development & Community Recreation,CCD,Recreation & Sport,CC,Cultural & Related Services,C,"Cultural, Environmental & Planning Services"
GUILDFORD BOROUGH COUNCIL,Executive - Miscellaneous,200000,Fidelis Security Limited,07/11/2023,30113783,1438.68,0,Contractor Payments,Security Guards,Invoice,BACS,No,01/09/2023 00:00,2023,8,12357,P79100,Wuv - Allotment Relocation,1233,Contractor Payments,XXX99,*** UNASSIGNED ***,WCC,CEC Recharges,WC,CEC Recharges,A,Central Services
GUILDFORD BOROUGH COUNCIL,Executive - Miscellaneous,200000,Fidelis Security Limited,31/10/2023,30113869,1438.68,0,Contractor Payments,Security Guards,Invoice,BACS,No,01/10/2023 00:00,2023,7,12359,P79100,Wuv - Allotment Relocation,1233,Contractor Payments,XXX99,*** UNASSIGNED ***,WCC,CEC Recharges,WC,CEC Recharges,A,Central Services
GUILDFORD BOROUGH COUNCIL,Assets and Property,200000,Fidelis Security Limited,07/11/2023,30113898,275,0,Asset Maintenance,Security Guards,Invoice,BACS,No,13/10/2023 00:00,2023,7,12361,B5341,Midleton Industrial Estate,B1001,Asset Maintenance,CPJ00,Market Undertakings,CPJ,Economic Development,CP,Planning and Development Services,C,"Cultural, Environmental & Planning Services"
GUILDFORD BOROUGH COUNCIL,Environmental Services,200000,Fidelis Security Limited,07/11/2023,30113870,315,0,Enforcement,Security Guards,Invoice,BACS,No,13/10/2023 00:00,2023,7,12365,A1600,Stoke Park Depot,D6008,Enforcement,CCE00,Community Parks & Open Spaces,CCE,Open Spaces,CC,Cultural & Related Services,C,"Cultural, Environmental & Planning Services"
GUILDFORD BOROUGH COUNCIL,Assets and Property,200000,Fidelis Security Limited,23/11/2023,30115210,275,0,Asset Maintenance,Security Guards,Invoice,BACS,No,31/10/2023 00:00,2023,8,12390,B5341,Midleton Industrial Estate,B1001,Asset Maintenance,CPJ00,Market Undertakings,CPJ,Economic Development,CP,Planning and Development Services,C,"Cultural, Environmental & Planning Services"
GUILDFORD BOROUGH COUNCIL,Environmental Services,200000,Fidelis Security Limited,12/12/2023,30117420,1083.33,0,Contractors,Security Guards,Invoice,BACS,No,01/11/2023 00:00,2023,9,12426,A1410,Cemeteries - Admin,D6012,Contractors,CEA00,Cemeteries,CEA,"Cemetery, Cremation and Mortuary Services",CE,Environmental & Regulatory Services,C,"Cultural, Environmental & Planning Services"
GUILDFORD BOROUGH COUNCIL,Environmental Services,200000,Fidelis Security Limited,07/12/2023,30117436,639.38,0,Contractors,Security Guards,Invoice,BACS,No,01/11/2023 00:00,2023,9,12427,A1410,Cemeteries - Admin,D6012,Contractors,CEA00,Cemeteries,CEA,"Cemetery, Cremation and Mortuary Services",CE,Environmental & Regulatory Services,C,"Cultural, Environmental & Planning Services"
GUILDFORD BOROUGH COUNCIL,Environmental Services,200000,Fidelis Security Limited,07/12/2023,30117388,268.65,0,Contractors,Security Guards,Invoice,BACS,No,01/11/2023 00:00,2023,9,12428,A1700,Parks Ranger Service,D6012,Contractors,CCD20,Sports Development & Community Recreation,CCD,Recreation & Sport,CC,Cultural & Related Services,C,"Cultural, Environmental & Planning Services"
GUILDFORD BOROUGH COUNCIL,Assets and Property,200000,Fidelis Security Limited,28/12/2023,30118367,762.5,0,Services,Security Guards,Invoice,BACS,No,01/11/2023 00:00,2023,9,12429,G4575,Asset Management,D6004,Services,DBX45,Property Services,DBX,Support Service and Management Costs,DB,Children's Social Care,E,Childrens and Education Services
GUILDFORD BOROUGH COUNCIL,Assets and Property,200000,Fidelis Security Limited,21/12/2023,30117426,275,0,Asset Maintenance,Security Guards,Invoice,BACS,No,30/11/2023 00:00,2023,9,12436,B5341,Midleton Industrial Estate,B1001,Asset Maintenance,CPJ00,Market Undertakings,CPJ,Economic Development,CP,Planning and Development Services,C,"Cultural, Environmental & Planning Services"
GUILDFORD BOROUGH COUNCIL,Assets and Property,200000,Fidelis Security Limited,21/12/2023,30117434,275,0,Services,Security Guards,Invoice,BACS,No,30/11/2023 00:00,2023,9,12437,B6550,"Multiplex Cinema, Bedford Road",D6004,Services,DBX45,Property Services,DBX,Support Service and Management Costs,DB,Children's Social Care,E,Childrens and Education Services
GUILDFORD BOROUGH COUNCIL,Environmental Services,200000,Fidelis Security Limited,21/12/2023,30117424,639.38,0,Contractors,Security Guards,Invoice,BACS,No,01/12/2023 00:00,2023,9,12453,A1410,Cemeteries - Admin,D6012,Contractors,CEA00,Cemeteries,CEA,"Cemetery, Cremation and Mortuary Services",CE,Environmental & Regulatory Services,C,"Cultural, Environmental & Planning Services"
GUILDFORD BOROUGH COUNCIL,Assets and Property,200000,Fidelis Security Limited,28/12/2023,30118388,610,0,Services,Security Guards,Invoice,BACS,No,01/12/2023 00:00,2023,9,12454,G4575,Asset Management,D6004,Services,DBX45,Property Services,DBX,Support Service and Management Costs,DB,Children's Social Care,E,Childrens and Education Services
GUILDFORD BOROUGH COUNCIL,Environmental Services,200000,Fidelis Security Limited,21/12/2023,30117386,1083.33,0,Contractors,Security Guards,Invoice,BACS,No,01/12/2023 00:00,2023,9,12455,A1410,Cemeteries - Admin,D6012,Contractors,CEA00,Cemeteries,CEA,"Cemetery, Cremation and Mortuary Services",CE,Environmental & Regulatory Services,C,"Cultural, Environmental & Planning Services"
GUILDFORD BOROUGH COUNCIL,Executive - Miscellaneous,1000751,Geo-Environmental Services Ltd,24/10/2023,30112829,16759,0,Consultants Fees,,Invoice,BACS,No,29/09/2023 00:00,2023,7,12634,P79110,WUV – SANG,1221,Consultants Fees,XXX99,*** UNASSIGNED ***,WCC,CEC Recharges,WC,CEC Recharges,A,Central Services
GUILDFORD BOROUGH COUNCIL,Executive - Miscellaneous,1000751,Geo-Environmental Services Ltd,07/12/2023,30115895,26893.98,0,Consultants Fees,,Invoice,BACS,No,13/11/2023 00:00,2023,8,12718,P79100,Wuv - Allotment Relocation,1221,Consultants Fees,XXX99,*** UNASSIGNED ***,WCC,CEC Recharges,WC,CEC Recharges,A,Central Services
GUILDFORD BOROUGH COUNCIL,HRA Service Delivery,436000,Greens Printing Services Ltd T/A AM&M,23/11/2023,30115451,1568.47,0,"Printing, Photocopying And Reprographics External",Postal And Courier Service Providers,Invoice,BACS,No,31/10/2023 00:00,2023,8,12737,M1121,Income Collection (BHS),D5005,"Printing, Photocopying And Reprographics External",W3A05,Current Service Costs - Housing Services,W3A,Current Service Costs adjustment,W3,Current Service Costs,W,Other Operating Income and Expenditure
GUILDFORD BOROUGH COUNCIL,Housing Services,774120,Advanced Electronic Security Ltd,07/12/2023,30116034,1125,0,Services,Other Security Equipment Suppliers,Invoice,BACS,No,14/11/2023 00:00,2023,8,12756,F7540,Town Centre CCTV System,D6004,Services,HTX10,Highways & Transport - Professional and Engineering Services,HTX,Highways Management and Support,HT,"Highways, Roads and Transport Services",H,"Highways, Roads and Transport Services"
GUILDFORD BOROUGH COUNCIL,Housing Services,774120,Advanced Electronic Security Ltd,07/12/2023,30116028,910,0,Services,Other Security Equipment Suppliers,Invoice,BACS,No,14/11/2023 00:00,2023,8,12757,F7540,Town Centre CCTV System,D6004,Services,HTX10,Highways & Transport - Professional and Engineering Services,HTX,Highways Management and Support,HT,"Highways, Roads and Transport Services",H,"Highways, Roads and Transport Services"
GUILDFORD BOROUGH COUNCIL,Executive - Miscellaneous,1000751,Geo-Environmental Services Ltd,21/12/2023,30117365,22304.35,0,Consultants Fees,,Invoice,BACS,No,29/11/2023 00:00,2023,9,12760,P79100,Wuv - Allotment Relocation,1221,Consultants Fees,XXX99,*** UNASSIGNED ***,WCC,CEC Recharges,WC,CEC Recharges,A,Central Services
GUILDFORD BOROUGH COUNCIL,Organisational Development,957830,TP Health Ltd,24/10/2023,30113710,425,0,Staff Training,Health And Safety Training Providers,Invoice,BACS,No,30/09/2023 00:00,2023,7,12898,G2555,HR Services,A7100,Staff Training,DBX70,Other Management Costs,DBX,Support Service and Management Costs,DB,Children's Social Care,E,Childrens and Education Services
GUILDFORD BOROUGH COUNCIL,Organisational Development,957830,TP Health Ltd,23/11/2023,30115833,332,0,Staff Training,Health And Safety Training Providers,Invoice,BACS,No,31/10/2023 00:00,2023,8,13437,G2555,HR Services,A7100,Staff Training,DBX70,Other Management Costs,DBX,Support Service and Management Costs,DB,Children's Social Care,E,Childrens and Education Services
GUILDFORD BOROUGH COUNCIL,HRA Service Delivery,756000,Solace In Business Ltd,28/12/2023,30118160,7850,0,Agency,Professional Associations,Invoice,BACS,No,08/12/2023 00:00,2023,9,13444,M8121,Strategic Support (SHS),A5191,Agency,W3A05,Current Service Costs - Housing Services,W3A,Current Service Costs adjustment,W3,Current Service Costs,W,Other Operating Income and Expenditure
GUILDFORD BOROUGH COUNCIL,HRA Service Delivery,756000,Solace In Business Ltd,21/12/2023,30118627,7850,0,Agency,Professional Associations,Invoice,CHAPS,No,18/12/2023 00:00,2023,9,13465,M8121,Strategic Support (SHS),A5191,Agency,W3A05,Current Service Costs - Housing Services,W3A,Current Service Costs adjustment,W3,Current Service Costs,W,Other Operating Income and Expenditure
GUILDFORD BOROUGH COUNCIL,Environmental Services,1000824,HTS Holm Filters,23/11/2023,30115468,752.46,0,Materials,,Invoice,BACS,No,31/10/2023 00:00,2023,8,13557,K5551,Fleet Workshops,D2003,Materials,W3A48,Current Service Costs - Fleet Management,W3A,Current Service Costs adjustment,W3,Current Service Costs,W,Other Operating Income and Expenditure
GUILDFORD BOROUGH COUNCIL,Renovations,1000518,Liquid Recruit Solutions Limited,17/10/2023,30112033,704.05,0,Contractor Payments,,Invoice,BACS,No,20/09/2023 00:00,2023,7,13705,N40292,Fire protection works,1233,Contractor Payments,XXX99,*** UNASSIGNED ***,WCC,CEC Recharges,WC,CEC Recharges,A,Central Services
GUILDFORD BOROUGH COUNCIL,Renovations,1000518,Liquid Recruit Solutions Limited,17/10/2023,30112033,704.05,0,Contractor Payments,,Invoice,BACS,No,20/09/2023 00:00,2023,7,13705,N40287,Electrical testing and smoke detectors,1233,Contractor Payments,XXX99,*** UNASSIGNED ***,WCC,CEC Recharges,WC,CEC Recharges,A,Central Services
GUILDFORD BOROUGH COUNCIL,HRA Service Delivery,1000518,Liquid Recruit Solutions Limited,24/10/2023,30112649,1292.5,0,Agency,,Invoice,BACS,No,28/09/2023 00:00,2023,7,13730,M5111,Repairs-Admin (BHS),A5191,Agency,W3A05,Current Service Costs - Housing Services,W3A,Current Service Costs adjustment,W3,Current Service Costs,W,Other Operating Income and Expenditure
GUILDFORD BOROUGH COUNCIL,Renovations,1000518,Liquid Recruit Solutions Limited,24/10/2023,30112652,704.05,0,Contractor Payments,,Invoice,BACS,No,28/09/2023 00:00,2023,7,13731,N40292,Fire protection works,1233,Contractor Payments,XXX99,*** UNASSIGNED ***,WCC,CEC Recharges,WC,CEC Recharges,A,Central Services
GUILDFORD BOROUGH COUNCIL,Renovations,1000518,Liquid Recruit Solutions Limited,24/10/2023,30112652,704.05,0,Contractor Payments,,Invoice,BACS,No,28/09/2023 00:00,2023,7,13731,N40287,Electrical testing and smoke detectors,1233,Contractor Payments,XXX99,*** UNASSIGNED ***,WCC,CEC Recharges,WC,CEC Recharges,A,Central Services
GUILDFORD BOROUGH COUNCIL,HRA Service Delivery,1000518,Liquid Recruit Solutions Limited,24/10/2023,30112684,1096.43,0,Agency,,Invoice,BACS,No,28/09/2023 00:00,2023,7,13732,M5111,Repairs-Admin (BHS),A5191,Agency,W3A05,Current Service Costs - Housing Services,W3A,Current Service Costs adjustment,W3,Current Service Costs,W,Other Operating Income and Expenditure
GUILDFORD BOROUGH COUNCIL,HRA Service Delivery,1000518,Liquid Recruit Solutions Limited,24/10/2023,30112655,1117.1,0,Agency,,Invoice,BACS,No,28/09/2023 00:00,2023,7,13733,M5111,Repairs-Admin (BHS),A5191,Agency,W3A05,Current Service Costs - Housing Services,W3A,Current Service Costs adjustment,W3,Current Service Costs,W,Other Operating Income and Expenditure
GUILDFORD BOROUGH COUNCIL,Renovations,1000518,Liquid Recruit Solutions Limited,24/10/2023,30112690,343.82,0,Miscellaneous Expenses,,Invoice,BACS,No,28/09/2023 00:00,2023,7,13734,N40292,Fire protection works,1444,Miscellaneous Expenses,XXX99,*** UNASSIGNED ***,WCC,CEC Recharges,WC,CEC Recharges,A,Central Services
GUILDFORD BOROUGH COUNCIL,Modern Homes,1000518,Liquid Recruit Solutions Limited,24/10/2023,30112690,859.56,0,Miscellaneous Expenses,,Invoice,BACS,No,28/09/2023 00:00,2023,7,13734,N42068,"Kitchen, bathroom and electrical upgrades",1444,Miscellaneous Expenses,XXX99,*** UNASSIGNED ***,WCC,CEC Recharges,WC,CEC Recharges,A,Central Services
GUILDFORD BOROUGH COUNCIL,Doors and Windows,1000518,Liquid Recruit Solutions Limited,24/10/2023,30112690,343.82,0,Miscellaneous Expenses,,Invoice,BACS,No,28/09/2023 00:00,2023,7,13734,N45075,Replacement of windows and doors,1444,Miscellaneous Expenses,XXX99,*** UNASSIGNED ***,WCC,CEC Recharges,WC,CEC Recharges,A,Central Services
GUILDFORD BOROUGH COUNCIL,HRA Service Delivery,1000518,Liquid Recruit Solutions Limited,31/10/2023,30113070,1450.15,0,Agency,,Invoice,BACS,No,04/10/2023 00:00,2023,7,13759,M5111,Repairs-Admin (BHS),A5191,Agency,W3A05,Current Service Costs - Housing Services,W3A,Current Service Costs adjustment,W3,Current Service Costs,W,Other Operating Income and Expenditure
GUILDFORD BOROUGH COUNCIL,HRA Service Delivery,1000518,Liquid Recruit Solutions Limited,31/10/2023,30113103,1163.25,0,Agency,,Invoice,BACS,No,04/10/2023 00:00,2023,7,13760,M5111,Repairs-Admin (BHS),A5191,Agency,W3A05,Current Service Costs - Housing Services,W3A,Current Service Costs adjustment,W3,Current Service Costs,W,Other Operating Income and Expenditure
GUILDFORD BOROUGH COUNCIL,Renovations,1000518,Liquid Recruit Solutions Limited,31/10/2023,30113105,704.05,0,Contractor Payments,,Invoice,BACS,No,04/10/2023 00:00,2023,7,13761,N40292,Fire protection works,1233,Contractor Payments,XXX99,*** UNASSIGNED ***,WCC,CEC Recharges,WC,CEC Recharges,A,Central Services
GUILDFORD BOROUGH COUNCIL,Renovations,1000518,Liquid Recruit Solutions Limited,31/10/2023,30113105,704.05,0,Contractor Payments,,Invoice,BACS,No,04/10/2023 00:00,2023,7,13761,N40287,Electrical testing and smoke detectors,1233,Contractor Payments,XXX99,*** UNASSIGNED ***,WCC,CEC Recharges,WC,CEC Recharges,A,Central Services
GUILDFORD BOROUGH COUNCIL,HRA Service Delivery,1000518,Liquid Recruit Solutions Limited,31/10/2023,30113081,1051.88,0,Agency,,Invoice,BACS,No,04/10/2023 00:00,2023,7,13762,M5111,Repairs-Admin (BHS),A5191,Agency,W3A05,Current Service Costs - Housing Services,W3A,Current Service Costs adjustment,W3,Current Service Costs,W,Other Operating Income and Expenditure
GUILDFORD BOROUGH COUNCIL,Renovations,1000518,Liquid Recruit Solutions Limited,31/10/2023,30113073,396.67,0,Miscellaneous Expenses,,Invoice,BACS,No,04/10/2023 00:00,2023,7,13763,N40292,Fire protection works,1444,Miscellaneous Expenses,XXX99,*** UNASSIGNED ***,WCC,CEC Recharges,WC,CEC Recharges,A,Central Services
GUILDFORD BOROUGH COUNCIL,Modern Homes,1000518,Liquid Recruit Solutions Limited,31/10/2023,30113073,991.68,0,Miscellaneous Expenses,,Invoice,BACS,No,04/10/2023 00:00,2023,7,13763,N42068,"Kitchen, bathroom and electrical upgrades",1444,Miscellaneous Expenses,XXX99,*** UNASSIGNED ***,WCC,CEC Recharges,WC,CEC Recharges,A,Central Services
GUILDFORD BOROUGH COUNCIL,Doors and Windows,1000518,Liquid Recruit Solutions Limited,31/10/2023,30113073,396.67,0,Miscellaneous Expenses,,Invoice,BACS,No,04/10/2023 00:00,2023,7,13763,N45075,Replacement of windows and doors,1444,Miscellaneous Expenses,XXX99,*** UNASSIGNED ***,WCC,CEC Recharges,WC,CEC Recharges,A,Central Services
GUILDFORD BOROUGH COUNCIL,HRA Service Delivery,1000518,Liquid Recruit Solutions Limited,07/11/2023,30113707,1292.5,0,Agency,,Invoice,BACS,No,11/10/2023 00:00,2023,7,13777,M5111,Repairs-Admin (BHS),A5191,Agency,W3A05,Current Service Costs - Housing Services,W3A,Current Service Costs adjustment,W3,Current Service Costs,W,Other Operating Income and Expenditure
GUILDFORD BOROUGH COUNCIL,HRA Service Delivery,1000518,Liquid Recruit Solutions Limited,07/11/2023,30113721,1096.43,0,Agency,,Invoice,BACS,No,11/10/2023 00:00,2023,7,13778,M5111,Repairs-Admin (BHS),A5191,Agency,W3A05,Current Service Costs - Housing Services,W3A,Current Service Costs adjustment,W3,Current Service Costs,W,Other Operating Income and Expenditure
GUILDFORD BOROUGH COUNCIL,Renovations,1000518,Liquid Recruit Solutions Limited,07/11/2023,30113719,343.7,0,Miscellaneous Expenses,,Invoice,BACS,No,11/10/2023 00:00,2023,7,13779,N40292,Fire protection works,1444,Miscellaneous Expenses,XXX99,*** UNASSIGNED ***,WCC,CEC Recharges,WC,CEC Recharges,A,Central Services
GUILDFORD BOROUGH COUNCIL,Modern Homes,1000518,Liquid Recruit Solutions Limited,07/11/2023,30113719,859.26,0,Miscellaneous Expenses,,Invoice,BACS,No,11/10/2023 00:00,2023,7,13779,N42068,"Kitchen, bathroom and electrical upgrades",1444,Miscellaneous Expenses,XXX99,*** UNASSIGNED ***,WCC,CEC Recharges,WC,CEC Recharges,A,Central Services
GUILDFORD BOROUGH COUNCIL,Doors and Windows,1000518,Liquid Recruit Solutions Limited,07/11/2023,30113719,343.7,0,Miscellaneous Expenses,,Invoice,BACS,No,11/10/2023 00:00,2023,7,13779,N45075,Replacement of windows and doors,1444,Miscellaneous Expenses,XXX99,*** UNASSIGNED ***,WCC,CEC Recharges,WC,CEC Recharges,A,Central Services
GUILDFORD BOROUGH COUNCIL,Renovations,1000518,Liquid Recruit Solutions Limited,07/11/2023,30113725,704.05,0,Contractor Payments,,Invoice,BACS,No,11/10/2023 00:00,2023,7,13780,N40292,Fire protection works,1233,Contractor Payments,XXX99,*** UNASSIGNED ***,WCC,CEC Recharges,WC,CEC Recharges,A,Central Services
GUILDFORD BOROUGH COUNCIL,Renovations,1000518,Liquid Recruit Solutions Limited,07/11/2023,30113725,704.05,0,Contractor Payments,,Invoice,BACS,No,11/10/2023 00:00,2023,7,13780,N40287,Electrical testing and smoke detectors,1233,Contractor Payments,XXX99,*** UNASSIGNED ***,WCC,CEC Recharges,WC,CEC Recharges,A,Central Services
GUILDFORD BOROUGH COUNCIL,HRA Service Delivery,1000518,Liquid Recruit Solutions Limited,07/11/2023,30113514,284.45,0,Agency,,Invoice,BACS,No,11/10/2023 00:00,2023,7,13781,M5111,Repairs-Admin (BHS),A5191,Agency,W3A05,Current Service Costs - Housing Services,W3A,Current Service Costs adjustment,W3,Current Service Costs,W,Other Operating Income and Expenditure
GUILDFORD BOROUGH COUNCIL,Renovations,1000518,Liquid Recruit Solutions Limited,14/11/2023,30114509,704.05,0,Contractor Payments,,Invoice,BACS,No,19/10/2023 00:00,2023,7,13806,N40292,Fire protection works,1233,Contractor Payments,XXX99,*** UNASSIGNED ***,WCC,CEC Recharges,WC,CEC Recharges,A,Central Services
GUILDFORD BOROUGH COUNCIL,Renovations,1000518,Liquid Recruit Solutions Limited,14/11/2023,30114509,704.05,0,Contractor Payments,,Invoice,BACS,No,19/10/2023 00:00,2023,7,13806,N40287,Electrical testing and smoke detectors,1233,Contractor Payments,XXX99,*** UNASSIGNED ***,WCC,CEC Recharges,WC,CEC Recharges,A,Central Services
GUILDFORD BOROUGH COUNCIL,HRA Service Delivery,1000518,Liquid Recruit Solutions Limited,30/11/2023,30116986,318.5,0,Agency,,Invoice,BACS,No,19/10/2023 00:00,2023,8,13807,M8121,Strategic Support (SHS),A5191,Agency,W3A05,Current Service Costs - Housing Services,W3A,Current Service Costs adjustment,W3,Current Service Costs,W,Other Operating Income and Expenditure
GUILDFORD BOROUGH COUNCIL,HRA Service Delivery,1000518,Liquid Recruit Solutions Limited,14/11/2023,30114443,835.8,0,Agency,,Invoice,BACS,No,19/10/2023 00:00,2023,7,13808,M5111,Repairs-Admin (BHS),A5191,Agency,W3A05,Current Service Costs - Housing Services,W3A,Current Service Costs adjustment,W3,Current Service Costs,W,Other Operating Income and Expenditure
GUILDFORD BOROUGH COUNCIL,Renovations,1000518,Liquid Recruit Solutions Limited,14/11/2023,30114506,343.61,0,Miscellaneous Expenses,,Invoice,BACS,No,19/10/2023 00:00,2023,7,13809,N40292,Fire protection works,1444,Miscellaneous Expenses,XXX99,*** UNASSIGNED ***,WCC,CEC Recharges,WC,CEC Recharges,A,Central Services
GUILDFORD BOROUGH COUNCIL,Modern Homes,1000518,Liquid Recruit Solutions Limited,14/11/2023,30114506,859.04,0,Miscellaneous Expenses,,Invoice,BACS,No,19/10/2023 00:00,2023,7,13809,N42068,"Kitchen, bathroom and electrical upgrades",1444,Miscellaneous Expenses,XXX99,*** UNASSIGNED ***,WCC,CEC Recharges,WC,CEC Recharges,A,Central Services
GUILDFORD BOROUGH COUNCIL,Doors and Windows,1000518,Liquid Recruit Solutions Limited,14/11/2023,30114506,343.61,0,Miscellaneous Expenses,,Invoice,BACS,No,19/10/2023 00:00,2023,7,13809,N45075,Replacement of windows and doors,1444,Miscellaneous Expenses,XXX99,*** UNASSIGNED ***,WCC,CEC Recharges,WC,CEC Recharges,A,Central Services
GUILDFORD BOROUGH COUNCIL,HRA Service Delivery,1000518,Liquid Recruit Solutions Limited,14/11/2023,30114528,1133.55,0,Agency,,Invoice,BACS,No,19/10/2023 00:00,2023,7,13810,M5111,Repairs-Admin (BHS),A5191,Agency,W3A05,Current Service Costs - Housing Services,W3A,Current Service Costs adjustment,W3,Current Service Costs,W,Other Operating Income and Expenditure
GUILDFORD BOROUGH COUNCIL,HRA Service Delivery,1000518,Liquid Recruit Solutions Limited,30/11/2023,30116972,1375,0,Agency,,Invoice,BACS,No,26/10/2023 00:00,2023,8,13843,M1151,Tenants Services (BHS),A5191,Agency,W3A05,Current Service Costs - Housing Services,W3A,Current Service Costs adjustment,W3,Current Service Costs,W,Other Operating Income and Expenditure
GUILDFORD BOROUGH COUNCIL,HRA Service Delivery,1000518,Liquid Recruit Solutions Limited,21/11/2023,30114919,1385.8,0,Agency,,Invoice,BACS,No,26/10/2023 00:00,2023,7,13845,M5111,Repairs-Admin (BHS),A5191,Agency,W3A05,Current Service Costs - Housing Services,W3A,Current Service Costs adjustment,W3,Current Service Costs,W,Other Operating Income and Expenditure
GUILDFORD BOROUGH COUNCIL,HRA Service Delivery,1000518,Liquid Recruit Solutions Limited,30/11/2023,30116979,1292.5,0,Agency,,Invoice,BACS,No,26/10/2023 00:00,2023,8,13846,M8121,Strategic Support (SHS),A5191,Agency,W3A05,Current Service Costs - Housing Services,W3A,Current Service Costs adjustment,W3,Current Service Costs,W,Other Operating Income and Expenditure
GUILDFORD BOROUGH COUNCIL,Renovations,1000518,Liquid Recruit Solutions Limited,21/11/2023,30114956,704.05,0,Contractor Payments,,Invoice,BACS,No,26/10/2023 00:00,2023,7,13847,N40292,Fire protection works,1233,Contractor Payments,XXX99,*** UNASSIGNED ***,WCC,CEC Recharges,WC,CEC Recharges,A,Central Services
GUILDFORD BOROUGH COUNCIL,Renovations,1000518,Liquid Recruit Solutions Limited,21/11/2023,30114956,704.05,0,Contractor Payments,,Invoice,BACS,No,26/10/2023 00:00,2023,7,13847,N40287,Electrical testing and smoke detectors,1233,Contractor Payments,XXX99,*** UNASSIGNED ***,WCC,CEC Recharges,WC,CEC Recharges,A,Central Services
GUILDFORD BOROUGH COUNCIL,HRA Service Delivery,1000518,Liquid Recruit Solutions Limited,21/11/2023,30114949,940.5,0,Agency,,Invoice,BACS,No,26/10/2023 00:00,2023,7,13848,M5111,Repairs-Admin (BHS),A5191,Agency,W3A05,Current Service Costs - Housing Services,W3A,Current Service Costs adjustment,W3,Current Service Costs,W,Other Operating Income and Expenditure
GUILDFORD BOROUGH COUNCIL,Renovations,1000518,Liquid Recruit Solutions Limited,21/11/2023,30114947,343.78,0,Miscellaneous Expenses,,Invoice,BACS,No,26/10/2023 00:00,2023,7,13849,N40292,Fire protection works,1444,Miscellaneous Expenses,XXX99,*** UNASSIGNED ***,WCC,CEC Recharges,WC,CEC Recharges,A,Central Services
GUILDFORD BOROUGH COUNCIL,Modern Homes,1000518,Liquid Recruit Solutions Limited,21/11/2023,30114947,859.44,0,Miscellaneous Expenses,,Invoice,BACS,No,26/10/2023 00:00,2023,7,13849,N42068,"Kitchen, bathroom and electrical upgrades",1444,Miscellaneous Expenses,XXX99,*** UNASSIGNED ***,WCC,CEC Recharges,WC,CEC Recharges,A,Central Services
GUILDFORD BOROUGH COUNCIL,Doors and Windows,1000518,Liquid Recruit Solutions Limited,21/11/2023,30114947,343.78,0,Miscellaneous Expenses,,Invoice,BACS,No,26/10/2023 00:00,2023,7,13849,N45075,Replacement of windows and doors,1444,Miscellaneous Expenses,XXX99,*** UNASSIGNED ***,WCC,CEC Recharges,WC,CEC Recharges,A,Central Services
GUILDFORD BOROUGH COUNCIL,Renovations,1000518,Liquid Recruit Solutions Limited,28/11/2023,30115360,704.05,0,Contractor Payments,,Invoice,BACS,No,02/11/2023 00:00,2023,8,13878,N40292,Fire protection works,1233,Contractor Payments,XXX99,*** UNASSIGNED ***,WCC,CEC Recharges,WC,CEC Recharges,A,Central Services
GUILDFORD BOROUGH COUNCIL,Renovations,1000518,Liquid Recruit Solutions Limited,28/11/2023,30115360,704.05,0,Contractor Payments,,Invoice,BACS,No,02/11/2023 00:00,2023,8,13878,N40287,Electrical testing and smoke detectors,1233,Contractor Payments,XXX99,*** UNASSIGNED ***,WCC,CEC Recharges,WC,CEC Recharges,A,Central Services
GUILDFORD BOROUGH COUNCIL,HRA Service Delivery,1000518,Liquid Recruit Solutions Limited,28/11/2023,30115368,856.35,0,Agency,,Invoice,BACS,No,02/11/2023 00:00,2023,8,13879,M5111,Repairs-Admin (BHS),A5191,Agency,W3A05,Current Service Costs - Housing Services,W3A,Current Service Costs adjustment,W3,Current Service Costs,W,Other Operating Income and Expenditure
GUILDFORD BOROUGH COUNCIL,Modern Homes,1000518,Liquid Recruit Solutions Limited,28/11/2023,30115366,859.8,0,Miscellaneous Expenses,,Invoice,BACS,No,02/11/2023 00:00,2023,8,13880,N42068,"Kitchen, bathroom and electrical upgrades",1444,Miscellaneous Expenses,XXX99,*** UNASSIGNED ***,WCC,CEC Recharges,WC,CEC Recharges,A,Central Services
GUILDFORD BOROUGH COUNCIL,Renovations,1000518,Liquid Recruit Solutions Limited,28/11/2023,30115366,343.92,0,Miscellaneous Expenses,,Invoice,BACS,No,02/11/2023 00:00,2023,8,13880,N40292,Fire protection works,1444,Miscellaneous Expenses,XXX99,*** UNASSIGNED ***,WCC,CEC Recharges,WC,CEC Recharges,A,Central Services
GUILDFORD BOROUGH COUNCIL,Doors and Windows,1000518,Liquid Recruit Solutions Limited,28/11/2023,30115366,343.92,0,Miscellaneous Expenses,,Invoice,BACS,No,02/11/2023 00:00,2023,8,13880,N45075,Replacement of windows and doors,1444,Miscellaneous Expenses,XXX99,*** UNASSIGNED ***,WCC,CEC Recharges,WC,CEC Recharges,A,Central Services
GUILDFORD BOROUGH COUNCIL,HRA Service Delivery,1000518,Liquid Recruit Solutions Limited,28/11/2023,30115446,1390.75,0,Agency,,Invoice,BACS,No,02/11/2023 00:00,2023,8,13882,M5111,Repairs-Admin (BHS),A5191,Agency,W3A05,Current Service Costs - Housing Services,W3A,Current Service Costs adjustment,W3,Current Service Costs,W,Other Operating Income and Expenditure
GUILDFORD BOROUGH COUNCIL,HRA Service Delivery,1000518,Liquid Recruit Solutions Limited,28/11/2023,30115453,1292.5,0,Agency,,Invoice,BACS,No,02/11/2023 00:00,2023,8,13883,M8121,Strategic Support (SHS),A5191,Agency,W3A05,Current Service Costs - Housing Services,W3A,Current Service Costs adjustment,W3,Current Service Costs,W,Other Operating Income and Expenditure
GUILDFORD BOROUGH COUNCIL,Renovations,1000518,Liquid Recruit Solutions Limited,05/12/2023,30115823,704.05,0,Contractor Payments,,Invoice,BACS,No,09/11/2023 00:00,2023,8,13909,N40292,Fire protection works,1233,Contractor Payments,XXX99,*** UNASSIGNED ***,WCC,CEC Recharges,WC,CEC Recharges,A,Central Services
GUILDFORD BOROUGH COUNCIL,Renovations,1000518,Liquid Recruit Solutions Limited,05/12/2023,30115823,704.05,0,Contractor Payments,,Invoice,BACS,No,09/11/2023 00:00,2023,8,13909,N40287,Electrical testing and smoke detectors,1233,Contractor Payments,XXX99,*** UNASSIGNED ***,WCC,CEC Recharges,WC,CEC Recharges,A,Central Services
GUILDFORD BOROUGH COUNCIL,Renovations,1000518,Liquid Recruit Solutions Limited,05/12/2023,30115859,343.8,0,Miscellaneous Expenses,,Invoice,BACS,No,09/11/2023 00:00,2023,8,13910,N40292,Fire protection works,1444,Miscellaneous Expenses,XXX99,*** UNASSIGNED ***,WCC,CEC Recharges,WC,CEC Recharges,A,Central Services
GUILDFORD BOROUGH COUNCIL,Modern Homes,1000518,Liquid Recruit Solutions Limited,05/12/2023,30115859,859.5,0,Miscellaneous Expenses,,Invoice,BACS,No,09/11/2023 00:00,2023,8,13910,N42068,"Kitchen, bathroom and electrical upgrades",1444,Miscellaneous Expenses,XXX99,*** UNASSIGNED ***,WCC,CEC Recharges,WC,CEC Recharges,A,Central Services
GUILDFORD BOROUGH COUNCIL,Doors and Windows,1000518,Liquid Recruit Solutions Limited,05/12/2023,30115859,343.8,0,Miscellaneous Expenses,,Invoice,BACS,No,09/11/2023 00:00,2023,8,13910,N45075,Replacement of windows and doors,1444,Miscellaneous Expenses,XXX99,*** UNASSIGNED ***,WCC,CEC Recharges,WC,CEC Recharges,A,Central Services
GUILDFORD BOROUGH COUNCIL,HRA Service Delivery,1000518,Liquid Recruit Solutions Limited,21/12/2023,30118636,1111.25,0,Agency,,Invoice,BACS,No,09/11/2023 00:00,2023,9,13911,M5111,Repairs-Admin (BHS),A5191,Agency,W3A05,Current Service Costs - Housing Services,W3A,Current Service Costs adjustment,W3,Current Service Costs,W,Other Operating Income and Expenditure
GUILDFORD BOROUGH COUNCIL,HRA Service Delivery,1000518,Liquid Recruit Solutions Limited,05/12/2023,30115827,1375,0,Agency,,Invoice,BACS,No,09/11/2023 00:00,2023,8,13912,M1151,Tenants Services (BHS),A5191,Agency,W3A05,Current Service Costs - Housing Services,W3A,Current Service Costs adjustment,W3,Current Service Costs,W,Other Operating Income and Expenditure
GUILDFORD BOROUGH COUNCIL,HRA Service Delivery,1000518,Liquid Recruit Solutions Limited,05/12/2023,30115829,1145.93,0,Agency,,Invoice,BACS,No,09/11/2023 00:00,2023,8,13913,M5111,Repairs-Admin (BHS),A5191,Agency,W3A05,Current Service Costs - Housing Services,W3A,Current Service Costs adjustment,W3,Current Service Costs,W,Other Operating Income and Expenditure
GUILDFORD BOROUGH COUNCIL,HRA Service Delivery,1000518,Liquid Recruit Solutions Limited,12/12/2023,30116167,1408.3,0,Agency,,Invoice,BACS,No,15/11/2023 00:00,2023,8,13940,M5111,Repairs-Admin (BHS),A5191,Agency,W3A05,Current Service Costs - Housing Services,W3A,Current Service Costs adjustment,W3,Current Service Costs,W,Other Operating Income and Expenditure
GUILDFORD BOROUGH COUNCIL,Environmental Services,1000824,HTS Holm Filters,14/12/2023,30116519,923.09,0,Materials,,Invoice,BACS,No,20/11/2023 00:00,2023,8,13941,K5551,Fleet Workshops,D2003,Materials,W3A48,Current Service Costs - Fleet Management,W3A,Current Service Costs adjustment,W3,Current Service Costs,W,Other Operating Income and Expenditure
GUILDFORD BOROUGH COUNCIL,Modern Homes,1000518,Liquid Recruit Solutions Limited,12/12/2023,30116170,860.94,0,Miscellaneous Expenses,,Invoice,BACS,No,15/11/2023 00:00,2023,8,13941,N42068,"Kitchen, bathroom and electrical upgrades",1444,Miscellaneous Expenses,XXX99,*** UNASSIGNED ***,WCC,CEC Recharges,WC,CEC Recharges,A,Central Services
GUILDFORD BOROUGH COUNCIL,Renovations,1000518,Liquid Recruit Solutions Limited,12/12/2023,30116170,344.38,0,Miscellaneous Expenses,,Invoice,BACS,No,15/11/2023 00:00,2023,8,13941,N40292,Fire protection works,1444,Miscellaneous Expenses,XXX99,*** UNASSIGNED ***,WCC,CEC Recharges,WC,CEC Recharges,A,Central Services
GUILDFORD BOROUGH COUNCIL,Doors and Windows,1000518,Liquid Recruit Solutions Limited,12/12/2023,30116170,344.38,0,Miscellaneous Expenses,,Invoice,BACS,No,15/11/2023 00:00,2023,8,13941,N45075,Replacement of windows and doors,1444,Miscellaneous Expenses,XXX99,*** UNASSIGNED ***,WCC,CEC Recharges,WC,CEC Recharges,A,Central Services
GUILDFORD BOROUGH COUNCIL,HRA Service Delivery,1000518,Liquid Recruit Solutions Limited,12/12/2023,30116187,1375,0,Agency,,Invoice,BACS,No,15/11/2023 00:00,2023,8,13942,M1151,Tenants Services (BHS),A5191,Agency,W3A05,Current Service Costs - Housing Services,W3A,Current Service Costs adjustment,W3,Current Service Costs,W,Other Operating Income and Expenditure
GUILDFORD BOROUGH COUNCIL,HRA Service Delivery,1000518,Liquid Recruit Solutions Limited,12/12/2023,30116178,1051.88,0,Agency,,Invoice,BACS,No,15/11/2023 00:00,2023,8,13943,M5111,Repairs-Admin (BHS),A5191,Agency,W3A05,Current Service Costs - Housing Services,W3A,Current Service Costs adjustment,W3,Current Service Costs,W,Other Operating Income and Expenditure
GUILDFORD BOROUGH COUNCIL,Renovations,1000518,Liquid Recruit Solutions Limited,12/12/2023,30116140,704.05,0,Contractor Payments,,Invoice,BACS,No,15/11/2023 00:00,2023,8,13944,N40292,Fire protection works,1233,Contractor Payments,XXX99,*** UNASSIGNED ***,WCC,CEC Recharges,WC,CEC Recharges,A,Central Services
GUILDFORD BOROUGH COUNCIL,Renovations,1000518,Liquid Recruit Solutions Limited,12/12/2023,30116140,704.05,0,Contractor Payments,,Invoice,BACS,No,15/11/2023 00:00,2023,8,13944,N40287,Electrical testing and smoke detectors,1233,Contractor Payments,XXX99,*** UNASSIGNED ***,WCC,CEC Recharges,WC,CEC Recharges,A,Central Services
GUILDFORD BOROUGH COUNCIL,HRA Service Delivery,1000518,Liquid Recruit Solutions Limited,19/12/2023,30116818,1375,0,Agency,,Invoice,BACS,No,23/11/2023 00:00,2023,8,13975,M1151,Tenants Services (BHS),A5191,Agency,W3A05,Current Service Costs - Housing Services,W3A,Current Service Costs adjustment,W3,Current Service Costs,W,Other Operating Income and Expenditure
GUILDFORD BOROUGH COUNCIL,HRA Service Delivery,1000518,Liquid Recruit Solutions Limited,19/12/2023,30116805,1153.35,0,Agency,,Invoice,BACS,No,23/11/2023 00:00,2023,8,13976,M5111,Repairs-Admin (BHS),A5191,Agency,W3A05,Current Service Costs - Housing Services,W3A,Current Service Costs adjustment,W3,Current Service Costs,W,Other Operating Income and Expenditure
GUILDFORD BOROUGH COUNCIL,HRA Service Delivery,1000518,Liquid Recruit Solutions Limited,19/12/2023,30116837,1379.95,0,Agency,,Invoice,BACS,No,23/11/2023 00:00,2023,9,13977,M5111,Repairs-Admin (BHS),A5191,Agency,W3A05,Current Service Costs - Housing Services,W3A,Current Service Costs adjustment,W3,Current Service Costs,W,Other Operating Income and Expenditure
GUILDFORD BOROUGH COUNCIL,Modern Homes,1000518,Liquid Recruit Solutions Limited,19/12/2023,30116845,861.08,0,Miscellaneous Expenses,,Invoice,BACS,No,23/11/2023 00:00,2023,9,13978,N42068,"Kitchen, bathroom and electrical upgrades",1444,Miscellaneous Expenses,XXX99,*** UNASSIGNED ***,WCC,CEC Recharges,WC,CEC Recharges,A,Central Services
GUILDFORD BOROUGH COUNCIL,Renovations,1000518,Liquid Recruit Solutions Limited,19/12/2023,30116845,344.43,0,Miscellaneous Expenses,,Invoice,BACS,No,23/11/2023 00:00,2023,9,13978,N40292,Fire protection works,1444,Miscellaneous Expenses,XXX99,*** UNASSIGNED ***,WCC,CEC Recharges,WC,CEC Recharges,A,Central Services
GUILDFORD BOROUGH COUNCIL,Doors and Windows,1000518,Liquid Recruit Solutions Limited,19/12/2023,30116845,344.43,0,Miscellaneous Expenses,,Invoice,BACS,No,23/11/2023 00:00,2023,9,13978,N45075,Replacement of windows and doors,1444,Miscellaneous Expenses,XXX99,*** UNASSIGNED ***,WCC,CEC Recharges,WC,CEC Recharges,A,Central Services
GUILDFORD BOROUGH COUNCIL,Renovations,1000518,Liquid Recruit Solutions Limited,19/12/2023,30116826,563.24,0,Agency Staff,,Invoice,BACS,No,23/11/2023 00:00,2023,9,13979,N40292,Fire protection works,1222,Agency Staff,XXX99,*** UNASSIGNED ***,WCC,CEC Recharges,WC,CEC Recharges,A,Central Services
GUILDFORD BOROUGH COUNCIL,Renovations,1000518,Liquid Recruit Solutions Limited,19/12/2023,30116826,563.24,0,Agency Staff,,Invoice,BACS,No,23/11/2023 00:00,2023,9,13979,N40287,Electrical testing and smoke detectors,1222,Agency Staff,XXX99,*** UNASSIGNED ***,WCC,CEC Recharges,WC,CEC Recharges,A,Central Services
GUILDFORD BOROUGH COUNCIL,HRA Service Delivery,1000518,Liquid Recruit Solutions Limited,21/12/2023,30117333,1410.1,0,Agency,,Invoice,BACS,No,29/11/2023 00:00,2023,9,14010,M5111,Repairs-Admin (BHS),A5191,Agency,W3A05,Current Service Costs - Housing Services,W3A,Current Service Costs adjustment,W3,Current Service Costs,W,Other Operating Income and Expenditure
GUILDFORD BOROUGH COUNCIL,Renovations,1000518,Liquid Recruit Solutions Limited,21/12/2023,30117271,344.28,0,Miscellaneous Expenses,,Invoice,BACS,No,29/11/2023 00:00,2023,9,14011,N40292,Fire protection works,1444,Miscellaneous Expenses,XXX99,*** UNASSIGNED ***,WCC,CEC Recharges,WC,CEC Recharges,A,Central Services
GUILDFORD BOROUGH COUNCIL,Modern Homes,1000518,Liquid Recruit Solutions Limited,21/12/2023,30117271,860.7,0,Miscellaneous Expenses,,Invoice,BACS,No,29/11/2023 00:00,2023,9,14011,N42068,"Kitchen, bathroom and electrical upgrades",1444,Miscellaneous Expenses,XXX99,*** UNASSIGNED ***,WCC,CEC Recharges,WC,CEC Recharges,A,Central Services
GUILDFORD BOROUGH COUNCIL,Doors and Windows,1000518,Liquid Recruit Solutions Limited,21/12/2023,30117271,344.28,0,Miscellaneous Expenses,,Invoice,BACS,No,29/11/2023 00:00,2023,9,14011,N45075,Replacement of windows and doors,1444,Miscellaneous Expenses,XXX99,*** UNASSIGNED ***,WCC,CEC Recharges,WC,CEC Recharges,A,Central Services
GUILDFORD BOROUGH COUNCIL,Renovations,1000518,Liquid Recruit Solutions Limited,21/12/2023,30117287,704.05,0,Agency Staff,,Invoice,BACS,No,29/11/2023 00:00,2023,9,14012,N40292,Fire protection works,1222,Agency Staff,XXX99,*** UNASSIGNED ***,WCC,CEC Recharges,WC,CEC Recharges,A,Central Services
GUILDFORD BOROUGH COUNCIL,Renovations,1000518,Liquid Recruit Solutions Limited,21/12/2023,30117287,704.05,0,Agency Staff,,Invoice,BACS,No,29/11/2023 00:00,2023,9,14012,N40287,Electrical testing and smoke detectors,1222,Agency Staff,XXX99,*** UNASSIGNED ***,WCC,CEC Recharges,WC,CEC Recharges,A,Central Services
GUILDFORD BOROUGH COUNCIL,HRA Service Delivery,1000518,Liquid Recruit Solutions Limited,21/12/2023,30117275,1194.93,0,Agency,,Invoice,BACS,No,29/11/2023 00:00,2023,9,14013,M5111,Repairs-Admin (BHS),A5191,Agency,W3A05,Current Service Costs - Housing Services,W3A,Current Service Costs adjustment,W3,Current Service Costs,W,Other Operating Income and Expenditure
GUILDFORD BOROUGH COUNCIL,Renovations,1000518,Liquid Recruit Solutions Limited,28/12/2023,30117738,704.05,0,Agency Staff,,Invoice,BACS,No,07/12/2023 00:00,2023,9,14040,N40292,Fire protection works,1222,Agency Staff,XXX99,*** UNASSIGNED ***,WCC,CEC Recharges,WC,CEC Recharges,A,Central Services
GUILDFORD BOROUGH COUNCIL,Renovations,1000518,Liquid Recruit Solutions Limited,28/12/2023,30117738,704.05,0,Agency Staff,,Invoice,BACS,No,07/12/2023 00:00,2023,9,14040,N40287,Electrical testing and smoke detectors,1222,Agency Staff,XXX99,*** UNASSIGNED ***,WCC,CEC Recharges,WC,CEC Recharges,A,Central Services
GUILDFORD BOROUGH COUNCIL,HRA Service Delivery,1000518,Liquid Recruit Solutions Limited,28/12/2023,30118782,1393.35,0,Agency,,Invoice,BACS,No,07/12/2023 00:00,2023,9,14042,M5111,Repairs-Admin (BHS),A5191,Agency,W3A05,Current Service Costs - Housing Services,W3A,Current Service Costs adjustment,W3,Current Service Costs,W,Other Operating Income and Expenditure
GUILDFORD BOROUGH COUNCIL,HRA Service Delivery,1000518,Liquid Recruit Solutions Limited,28/12/2023,30117723,1118.7,0,Agency,,Invoice,BACS,No,07/12/2023 00:00,2023,9,14043,M5111,Repairs-Admin (BHS),A5191,Agency,W3A05,Current Service Costs - Housing Services,W3A,Current Service Costs adjustment,W3,Current Service Costs,W,Other Operating Income and Expenditure
GUILDFORD BOROUGH COUNCIL,Renovations,1000518,Liquid Recruit Solutions Limited,20/12/2023,30118225,704.05,0,Agency Staff,,Invoice,CHAPS,No,13/12/2023 00:00,2023,9,14080,N40287,Electrical testing and smoke detectors,1222,Agency Staff,XXX99,*** UNASSIGNED ***,WCC,CEC Recharges,WC,CEC Recharges,A,Central Services
GUILDFORD BOROUGH COUNCIL,Renovations,1000518,Liquid Recruit Solutions Limited,20/12/2023,30118225,704.05,0,Agency Staff,,Invoice,CHAPS,No,13/12/2023 00:00,2023,9,14080,N40292,Fire protection works,1222,Agency Staff,XXX99,*** UNASSIGNED ***,WCC,CEC Recharges,WC,CEC Recharges,A,Central Services
GUILDFORD BOROUGH COUNCIL,HRA Service Delivery,1000518,Liquid Recruit Solutions Limited,18/12/2023,30118227,1175.49,0,Agency,,Invoice,CHAPS,No,13/12/2023 00:00,2023,9,14081,M5111,Repairs-Admin (BHS),A5191,Agency,W3A05,Current Service Costs - Housing Services,W3A,Current Service Costs adjustment,W3,Current Service Costs,W,Other Operating Income and Expenditure
GUILDFORD BOROUGH COUNCIL,HRA Service Delivery,1000518,Liquid Recruit Solutions Limited,18/12/2023,30118247,1375,0,Agency,,Invoice,CHAPS,No,13/12/2023 00:00,2023,9,14082,M1151,Tenants Services (BHS),A5191,Agency,W3A05,Current Service Costs - Housing Services,W3A,Current Service Costs adjustment,W3,Current Service Costs,W,Other Operating Income and Expenditure
GUILDFORD BOROUGH COUNCIL,HRA Service Delivery,144020,Perega Limited,31/10/2023,30115012,1170,0,Consultancy,Other Construction Consultants,Invoice,BACS,No,30/09/2023 00:00,2023,7,14580,M5113,Repairs-Responsive (BHS),D6001,Consultancy,W3A05,Current Service Costs - Housing Services,W3A,Current Service Costs adjustment,W3,Current Service Costs,W,Other Operating Income and Expenditure
GUILDFORD BOROUGH COUNCIL,HRA Service Delivery,144020,Perega Limited,24/10/2023,30113210,5865.6,0,Consultancy,Other Construction Consultants,Invoice,BACS,No,30/09/2023 00:00,2023,7,14596,M5114,Repairs-Cyclical (BHS),D6001,Consultancy,W3A05,Current Service Costs - Housing Services,W3A,Current Service Costs adjustment,W3,Current Service Costs,W,Other Operating Income and Expenditure
GUILDFORD BOROUGH COUNCIL,Modern Homes,144020,Perega Limited,23/11/2023,30116647,680,0,Contractor Payments,Other Construction Consultants,Invoice,BACS,No,27/10/2023 00:00,2023,8,14671,N48057,Structural works - various properties,1233,Contractor Payments,XXX99,*** UNASSIGNED ***,WCC,CEC Recharges,WC,CEC Recharges,A,Central Services
GUILDFORD BOROUGH COUNCIL,Modern Homes,144020,Perega Limited,23/11/2023,30116648,714,0,Contractor Payments,Other Construction Consultants,Invoice,BACS,No,30/10/2023 00:00,2023,8,14679,N48057,Structural works - various properties,1233,Contractor Payments,XXX99,*** UNASSIGNED ***,WCC,CEC Recharges,WC,CEC Recharges,A,Central Services
GUILDFORD BOROUGH COUNCIL,Modern Homes,144020,Perega Limited,23/11/2023,30116649,450,0,Contractor Payments,Other Construction Consultants,Invoice,BACS,No,31/10/2023 00:00,2023,8,14698,N48057,Structural works - various properties,1233,Contractor Payments,XXX99,*** UNASSIGNED ***,WCC,CEC Recharges,WC,CEC Recharges,A,Central Services
GUILDFORD BOROUGH COUNCIL,Modern Homes,144020,Perega Limited,14/12/2023,30117770,714,0,Contractor Payments,Other Construction Consultants,Invoice,BACS,No,21/11/2023 00:00,2023,9,14707,N48057,Structural works - various properties,1233,Contractor Payments,XXX99,*** UNASSIGNED ***,WCC,CEC Recharges,WC,CEC Recharges,A,Central Services
GUILDFORD BOROUGH COUNCIL,Modern Homes,144020,Perega Limited,14/12/2023,30117771,714,0,Contractor Payments,Other Construction Consultants,Invoice,BACS,No,21/11/2023 00:00,2023,9,14709,N48057,Structural works - various properties,1233,Contractor Payments,XXX99,*** UNASSIGNED ***,WCC,CEC Recharges,WC,CEC Recharges,A,Central Services
GUILDFORD BOROUGH COUNCIL,Modern Homes,144020,Perega Limited,19/12/2023,30118494,800,0,Contractor Payments,Other Construction Consultants,Invoice,BACS,No,24/11/2023 00:00,2023,9,14719,N48057,Structural works - various properties,1233,Contractor Payments,XXX99,*** UNASSIGNED ***,WCC,CEC Recharges,WC,CEC Recharges,A,Central Services
GUILDFORD BOROUGH COUNCIL,Modern Homes,144020,Perega Limited,21/12/2023,30118495,714,0,Contractor Payments,Other Construction Consultants,Invoice,BACS,No,27/11/2023 00:00,2023,9,14736,N48057,Structural works - various properties,1233,Contractor Payments,XXX99,*** UNASSIGNED ***,WCC,CEC Recharges,WC,CEC Recharges,A,Central Services
GUILDFORD BOROUGH COUNCIL,Modern Homes,144020,Perega Limited,21/12/2023,30118496,714,0,Contractor Payments,Other Construction Consultants,Invoice,BACS,No,27/11/2023 00:00,2023,9,14737,N48057,Structural works - various properties,1233,Contractor Payments,XXX99,*** UNASSIGNED ***,WCC,CEC Recharges,WC,CEC Recharges,A,Central Services
GUILDFORD BOROUGH COUNCIL,Commercial Services,546900,Patrol,14/11/2023,30114636,1491.3,0,Enforcement,Other Information Service Providers,Invoice,BACS,No,18/10/2023 00:00,2023,7,14813,B2111,Car Parks - Administration,D6008,Enforcement,HTP10,Off-Street Parking,HTP,Parking Services,HT,"Highways, Roads and Transport Services",H,"Highways, Roads and Transport Services"
GUILDFORD BOROUGH COUNCIL,Housing Services,969700,A Star Maintenance Contractors Ltd (CIS),10/10/2023,30113230,1000,0,Services,Property Maintenance Contractors,Invoice,BACS,No,28/09/2023 00:00,2023,7,14891,K1515,Building Maintenance,D6004,Services,DBX45,Property Services,DBX,Support Service and Management Costs,DB,Children's Social Care,E,Childrens and Education Services
GUILDFORD BOROUGH COUNCIL,Housing Services,969700,A Star Maintenance Contractors Ltd (CIS),10/10/2023,30113230,3824.1,0,Materials,Property Maintenance Contractors,Invoice,BACS,No,28/09/2023 00:00,2023,7,14891,K1515,Building Maintenance,D2003,Materials,DBX45,Property Services,DBX,Support Service and Management Costs,DB,Children's Social Care,E,Childrens and Education Services
GUILDFORD BOROUGH COUNCIL,Housing Services,969700,A Star Maintenance Contractors Ltd (CIS),10/10/2023,30113198,2000,0,Services,Property Maintenance Contractors,Invoice,BACS,No,28/09/2023 00:00,2023,7,14892,K1515,Building Maintenance,D6004,Services,DBX45,Property Services,DBX,Support Service and Management Costs,DB,Children's Social Care,E,Childrens and Education Services
GUILDFORD BOROUGH COUNCIL,Housing Services,969700,A Star Maintenance Contractors Ltd (CIS),10/10/2023,30113198,4636.19,0,Materials,Property Maintenance Contractors,Invoice,BACS,No,28/09/2023 00:00,2023,7,14892,K1515,Building Maintenance,D2003,Materials,DBX45,Property Services,DBX,Support Service and Management Costs,DB,Children's Social Care,E,Childrens and Education Services
GUILDFORD BOROUGH COUNCIL,Housing Services,969700,A Star Maintenance Contractors Ltd (CIS),17/10/2023,30113845,1252.9,0,Services,Property Maintenance Contractors,Invoice,BACS,No,10/10/2023 00:00,2023,7,14893,K1515,Building Maintenance,D6004,Services,DBX45,Property Services,DBX,Support Service and Management Costs,DB,Children's Social Care,E,Childrens and Education Services
GUILDFORD BOROUGH COUNCIL,Housing Services,969700,A Star Maintenance Contractors Ltd (CIS),17/10/2023,30113845,939.14,0,Materials,Property Maintenance Contractors,Invoice,BACS,No,10/10/2023 00:00,2023,7,14893,K1515,Building Maintenance,D2003,Materials,DBX45,Property Services,DBX,Support Service and Management Costs,DB,Children's Social Care,E,Childrens and Education Services
GUILDFORD BOROUGH COUNCIL,Housing Services,969700,A Star Maintenance Contractors Ltd (CIS),17/10/2023,30113794,4000,0,Services,Property Maintenance Contractors,Invoice,BACS,No,10/10/2023 00:00,2023,7,14895,K1515,Building Maintenance,D6004,Services,DBX45,Property Services,DBX,Support Service and Management Costs,DB,Children's Social Care,E,Childrens and Education Services
GUILDFORD BOROUGH COUNCIL,Housing Services,969700,A Star Maintenance Contractors Ltd (CIS),17/10/2023,30113794,4378.7,0,Materials,Property Maintenance Contractors,Invoice,BACS,No,10/10/2023 00:00,2023,7,14895,K1515,Building Maintenance,D2003,Materials,DBX45,Property Services,DBX,Support Service and Management Costs,DB,Children's Social Care,E,Childrens and Education Services
GUILDFORD BOROUGH COUNCIL,Housing Services,969700,A Star Maintenance Contractors Ltd (CIS),17/10/2023,30113842,1000,0,Services,Property Maintenance Contractors,Invoice,BACS,No,10/10/2023 00:00,2023,7,14896,K1515,Building Maintenance,D6004,Services,DBX45,Property Services,DBX,Support Service and Management Costs,DB,Children's Social Care,E,Childrens and Education Services
GUILDFORD BOROUGH COUNCIL,Housing Services,969700,A Star Maintenance Contractors Ltd (CIS),17/10/2023,30113842,1285.1,0,Materials,Property Maintenance Contractors,Invoice,BACS,No,10/10/2023 00:00,2023,7,14896,K1515,Building Maintenance,D2003,Materials,DBX45,Property Services,DBX,Support Service and Management Costs,DB,Children's Social Care,E,Childrens and Education Services
GUILDFORD BOROUGH COUNCIL,Housing Services,969700,A Star Maintenance Contractors Ltd (CIS),17/10/2023,30113779,3000,0,Services,Property Maintenance Contractors,Invoice,BACS,No,10/10/2023 00:00,2023,7,14897,K1515,Building Maintenance,D6004,Services,DBX45,Property Services,DBX,Support Service and Management Costs,DB,Children's Social Care,E,Childrens and Education Services
GUILDFORD BOROUGH COUNCIL,Housing Services,969700,A Star Maintenance Contractors Ltd (CIS),17/10/2023,30113779,4109.2,0,Materials,Property Maintenance Contractors,Invoice,BACS,No,10/10/2023 00:00,2023,7,14897,K1515,Building Maintenance,D2003,Materials,DBX45,Property Services,DBX,Support Service and Management Costs,DB,Children's Social Care,E,Childrens and Education Services
GUILDFORD BOROUGH COUNCIL,Housing Services,969700,A Star Maintenance Contractors Ltd (CIS),17/10/2023,30113830,4065.32,0,Materials,Property Maintenance Contractors,Invoice,BACS,No,10/10/2023 00:00,2023,7,14898,K1515,Building Maintenance,D2003,Materials,DBX45,Property Services,DBX,Support Service and Management Costs,DB,Children's Social Care,E,Childrens and Education Services
GUILDFORD BOROUGH COUNCIL,Housing Services,969700,A Star Maintenance Contractors Ltd (CIS),17/10/2023,30113830,3500,0,Services,Property Maintenance Contractors,Invoice,BACS,No,10/10/2023 00:00,2023,7,14898,K1515,Building Maintenance,D6004,Services,DBX45,Property Services,DBX,Support Service and Management Costs,DB,Children's Social Care,E,Childrens and Education Services
GUILDFORD BOROUGH COUNCIL,Housing Services,969700,A Star Maintenance Contractors Ltd (CIS),24/10/2023,30114451,662.25,0,Materials,Property Maintenance Contractors,Invoice,BACS,No,17/10/2023 00:00,2023,7,14913,K1515,Building Maintenance,D2003,Materials,DBX45,Property Services,DBX,Support Service and Management Costs,DB,Children's Social Care,E,Childrens and Education Services
GUILDFORD BOROUGH COUNCIL,Housing Services,969700,A Star Maintenance Contractors Ltd (CIS),24/10/2023,30114451,1000,0,Services,Property Maintenance Contractors,Invoice,BACS,No,17/10/2023 00:00,2023,7,14913,K1515,Building Maintenance,D6004,Services,DBX45,Property Services,DBX,Support Service and Management Costs,DB,Children's Social Care,E,Childrens and Education Services
GUILDFORD BOROUGH COUNCIL,Housing Services,969700,A Star Maintenance Contractors Ltd (CIS),24/10/2023,30114450,2000,0,Services,Property Maintenance Contractors,Invoice,BACS,No,17/10/2023 00:00,2023,7,14914,K1515,Building Maintenance,D6004,Services,DBX45,Property Services,DBX,Support Service and Management Costs,DB,Children's Social Care,E,Childrens and Education Services
GUILDFORD BOROUGH COUNCIL,Housing Services,969700,A Star Maintenance Contractors Ltd (CIS),24/10/2023,30114450,5617,0,Materials,Property Maintenance Contractors,Invoice,BACS,No,17/10/2023 00:00,2023,7,14914,K1515,Building Maintenance,D2003,Materials,DBX45,Property Services,DBX,Support Service and Management Costs,DB,Children's Social Care,E,Childrens and Education Services
GUILDFORD BOROUGH COUNCIL,Housing Services,969700,A Star Maintenance Contractors Ltd (CIS),24/10/2023,30114444,3500,0,Services,Property Maintenance Contractors,Invoice,BACS,No,17/10/2023 00:00,2023,7,14915,K1515,Building Maintenance,D6004,Services,DBX45,Property Services,DBX,Support Service and Management Costs,DB,Children's Social Care,E,Childrens and Education Services
GUILDFORD BOROUGH COUNCIL,Housing Services,969700,A Star Maintenance Contractors Ltd (CIS),24/10/2023,30114444,4184.32,0,Materials,Property Maintenance Contractors,Invoice,BACS,No,17/10/2023 00:00,2023,7,14915,K1515,Building Maintenance,D2003,Materials,DBX45,Property Services,DBX,Support Service and Management Costs,DB,Children's Social Care,E,Childrens and Education Services
GUILDFORD BOROUGH COUNCIL,Housing Services,969700,A Star Maintenance Contractors Ltd (CIS),24/10/2023,30114453,3500,0,Services,Property Maintenance Contractors,Invoice,BACS,No,17/10/2023 00:00,2023,7,14916,K1515,Building Maintenance,D6004,Services,DBX45,Property Services,DBX,Support Service and Management Costs,DB,Children's Social Care,E,Childrens and Education Services
GUILDFORD BOROUGH COUNCIL,Housing Services,969700,A Star Maintenance Contractors Ltd (CIS),24/10/2023,30114453,4335.86,0,Materials,Property Maintenance Contractors,Invoice,BACS,No,17/10/2023 00:00,2023,7,14916,K1515,Building Maintenance,D2003,Materials,DBX45,Property Services,DBX,Support Service and Management Costs,DB,Children's Social Care,E,Childrens and Education Services
GUILDFORD BOROUGH COUNCIL,Housing Services,969700,A Star Maintenance Contractors Ltd (CIS),24/10/2023,30114462,1572.5,0,Services,Property Maintenance Contractors,Invoice,BACS,No,17/10/2023 00:00,2023,7,14921,K1515,Building Maintenance,D6004,Services,DBX45,Property Services,DBX,Support Service and Management Costs,DB,Children's Social Care,E,Childrens and Education Services
GUILDFORD BOROUGH COUNCIL,Housing Services,969700,A Star Maintenance Contractors Ltd (CIS),24/10/2023,30114462,1225.93,0,Materials,Property Maintenance Contractors,Invoice,BACS,No,17/10/2023 00:00,2023,7,14921,K1515,Building Maintenance,D2003,Materials,DBX45,Property Services,DBX,Support Service and Management Costs,DB,Children's Social Care,E,Childrens and Education Services
GUILDFORD BOROUGH COUNCIL,Housing Services,969700,A Star Maintenance Contractors Ltd (CIS),02/11/2023,30115172,2347.5,0,Materials,Property Maintenance Contractors,Invoice,BACS,No,24/10/2023 00:00,2023,8,14925,K1515,Building Maintenance,D2003,Materials,DBX45,Property Services,DBX,Support Service and Management Costs,DB,Children's Social Care,E,Childrens and Education Services
GUILDFORD BOROUGH COUNCIL,Housing Services,969700,A Star Maintenance Contractors Ltd (CIS),02/11/2023,30115172,4000,0,Services,Property Maintenance Contractors,Invoice,BACS,No,24/10/2023 00:00,2023,8,14925,K1515,Building Maintenance,D6004,Services,DBX45,Property Services,DBX,Support Service and Management Costs,DB,Children's Social Care,E,Childrens and Education Services
GUILDFORD BOROUGH COUNCIL,Housing Services,969700,A Star Maintenance Contractors Ltd (CIS),02/11/2023,30115147,1313.5,0,Services,Property Maintenance Contractors,Invoice,BACS,No,25/10/2023 00:00,2023,8,14926,K1515,Building Maintenance,D6004,Services,DBX45,Property Services,DBX,Support Service and Management Costs,DB,Children's Social Care,E,Childrens and Education Services
